Transaction Number,Service - Fund ,Service  - Function ,Service - Cost Centre,Expense Type ,Expense Description,Supplier Name,Supplier Post Code (first 4 digits),Payment Date,Amount �
132114233,Physical Support,Adults,Physical Support 65 and over,3rd Party Payments,Personal Budget - Domiciliary care,247 HOME CARE LTD,SN5 ,20/03/2024,761.60
132114233,Physical Support,Adults,Physical Support 65 and over,3rd Party Payments,Personal Budget - Domiciliary care,247 HOME CARE LTD,SN5 ,20/03/2024,-58.24
132114233,Physical Support,Adults,Physical Support 18 - 64,3rd Party Payments,Personal Budget - Domiciliary care,247 HOME CARE LTD,SN5 ,20/03/2024,"3,245.76"
132114233,Physical Support,Adults,Physical Support 18 - 64,3rd Party Payments,Personal Budget - Domiciliary care,247 HOME CARE LTD,SN5 ,20/03/2024,"1,141.28"
132114233,Physical Support,Adults,Physical Support 65 and over,3rd Party Payments,Personal Budget - Domiciliary care,247 HOME CARE LTD,SN5 ,20/03/2024,"2,163.84"
132114233,Physical Support,Adults,Physical Support 65 and over,3rd Party Payments,Personal Budget - Domiciliary care,247 HOME CARE LTD,SN5 ,20/03/2024,"2,885.12"
133094233,Physical Support,Adults,Physical Support 65 and over,Transport Costs,Home to Centre Transport,24X7 LTD,CM6 ,22/03/2024,"1,125.00"
133998233,Streetsmart,Streetsmart,Refuse Collection,Employees,Temporary / Agency - by Accounts Payable,911 STAFFING LTD,SN2 ,27/03/2024,"16,298.70"
131084233,Streetsmart,Streetsmart,Refuse Collection,Employees,Temporary / Agency - by Accounts Payable,911 STAFFING LTD,SN2 ,15/03/2024,"15,277.46"
133996233,Streetsmart,Streetsmart,Refuse Collection,Employees,Temporary / Agency - by Accounts Payable,911 STAFFING LTD,SN2 ,27/03/2024,"14,882.92"
128095234,Streetsmart,Streetsmart,Waste - Processing,Transport Costs,Vehicle Hire / Contract,911 STAFFING LTD,SN2 ,01/03/2024,"12,163.25"
131066237,Streetsmart,Streetsmart,Refuse Collection,Employees,Temporary / Agency - by Accounts Payable,911 STAFFING LTD,SN2 ,15/03/2024,"12,462.93"
131071235,Streetsmart,Streetsmart,Refuse Collection,Employees,Temporary / Agency - by Accounts Payable,911 STAFFING LTD,SN2 ,15/03/2024,"14,525.95"
131078233,Streetsmart,Streetsmart,Refuse Collection,Employees,Temporary / Agency - by Accounts Payable,911 STAFFING LTD,SN2 ,15/03/2024,"14,950.44"
128212233,Sheltered Accomodation,Special Services,Sheltered Housing Management General,Employees,Training,A PLUS SAFETY & TRAINING SERVICES LTD,SN3 ,01/03/2024,625.00
129075233,Human Resources and Organisational Development,"People, Culture and Organisational Resilience",Organisational Development,Employees,Training,A PLUS SAFETY & TRAINING SERVICES LTD,SN3 ,06/03/2024,675.00
132482255,Homelessness and Travellers,Housing Services,Private Sector Landlords,Transfer Payments,Payment of Costs,REDACTED PERSONAL DATA,SN3 ,25/03/2024,945.00
131263369,High Needs Block,Dedicated Schools Grant (DSG),SEN Resourcing Assessment Panel,3rd Party Payments,Top up funding - Academies and Free Schools Pre 16,ABBEY FARM EDUCATE TOGETHER PRIMARY,SN25,15/03/2024,690.42
131795233,Early Years Block,Dedicated Schools Grant (DSG),Free Nursery Education Commissioning - three & four  year olds,3rd Party Payments,Contracts - Child Care,ABBEY FARM EDUCATE TOGETHER PRIMARY,SN25,20/03/2024,858.92
130201244,High Needs Block,Dedicated Schools Grant (DSG),Notional SEN,3rd Party Payments,Top up funding - Academies and Free Schools Pre 16,ABBEY FARM EDUCATE TOGETHER PRIMARY,SN25,13/03/2024,"19,004.00"
129797233,Early Years Block,Dedicated Schools Grant (DSG),Free Nursery Education Commissioning - three & four  year olds,3rd Party Payments,Contracts - Child Care,ABBEY FARM EDUCATE TOGETHER PRIMARY,SN25,13/03/2024,"8,653.50"
131263306,High Needs Block,Dedicated Schools Grant (DSG),SEN Resourcing Assessment Panel,3rd Party Payments,Top up funding - Academies and Free Schools Pre 16,ABBEY MEADS COMMUNITY PRIMARY SCHOOL,SN25,15/03/2024,"5,645.01"
129798233,Early Years Block,Dedicated Schools Grant (DSG),Free Nursery Education Commissioning - three & four  year olds,3rd Party Payments,Contracts - Child Care,ABBEY MEADS COMMUNITY PRIMARY SCHOOL,SN25,13/03/2024,"12,045.24"
131788234,Public Health,Public Health,Sexual Health & Health Protection Budget,3rd Party Payments,Contract Payments,ABBEY MEADS MEDICAL GROUP,SN25,20/03/2024,904.00
128241233,Public Health,Public Health,Sexual Health & Health Protection Budget,3rd Party Payments,Contract Payments,ABBEY MEADS MEDICAL GROUP,SN25,01/03/2024,696.00
130344233,High Needs Block,Dedicated Schools Grant (DSG),Out of Borough School Fees,3rd Party Payments,OLA Special schools- Pre 16,ABBEY SCHOOL LIMITED,CH1 ,13/03/2024,"87,409.67"
134274233,Mental Health,Adults,Mental Health 65 and over,3rd Party Payments,Personal Budget - Domiciliary care,ABICARE SERVICES LTD,BS32,27/03/2024,-156.80
134274233,Mental Health,Adults,Mental Health 65 and over,3rd Party Payments,Personal Budget - Domiciliary care,ABICARE SERVICES LTD,BS32,27/03/2024,"1,290.24"
132106234,Physical Support,Adults,Physical Support 18 - 64,3rd Party Payments,Personal Budget - Domiciliary care,ABICARE SERVICES LTD,BS32,20/03/2024,69.12
132106234,Physical Support,Adults,Physical Support 18 - 64,3rd Party Payments,Personal Budget - Domiciliary care,ABICARE SERVICES LTD,BS32,20/03/2024,-8.40
132106234,Mental Health,Adults,Mental Health 65 and over,3rd Party Payments,Personal Budget - Domiciliary care,ABICARE SERVICES LTD,BS32,20/03/2024,-156.80
134274233,Physical Support,Adults,Physical Support 18 - 64,3rd Party Payments,Personal Budget - Domiciliary care,ABICARE SERVICES LTD,BS32,27/03/2024,-8.40
134274233,Physical Support,Adults,Physical Support 18 - 64,3rd Party Payments,Personal Budget - Domiciliary care,ABICARE SERVICES LTD,BS32,27/03/2024,69.12
132106234,Mental Health,Adults,Mental Health 65 and over,3rd Party Payments,Personal Budget - Domiciliary care,ABICARE SERVICES LTD,BS32,20/03/2024,"1,290.24"
132106234,Physical Support,Adults,Physical Support 18 - 64,3rd Party Payments,Personal Budget - Domiciliary care,ABICARE SERVICES LTD,BS32,20/03/2024,"2,603.52"
134274233,Physical Support,Adults,Physical Support 18 - 64,3rd Party Payments,Personal Budget - Domiciliary care,ABICARE SERVICES LTD,BS32,27/03/2024,-268.80
132106234,Physical Support,Adults,Physical Support 18 - 64,3rd Party Payments,Personal Budget - Domiciliary care,ABICARE SERVICES LTD,BS32,20/03/2024,-272.36
134274233,Physical Support,Adults,Physical Support 18 - 64,3rd Party Payments,Personal Budget - Domiciliary care,ABICARE SERVICES LTD,BS32,27/03/2024,"2,603.52"
134276233,Physical Support,Adults,Physical Support 18 - 64,3rd Party Payments,Personal Budget - Domiciliary care,ABICARE SERVICES LTD (LIVE IN),SP2 ,27/03/2024,"14,192.64"
132113233,Physical Support,Adults,Physical Support 18 - 64,3rd Party Payments,Personal Budget - Domiciliary care,ABICARE SERVICES LTD (LIVE IN),SP2 ,20/03/2024,"-10,682.88"
134276233,Mental Health,Adults,Mental Health 65 and over,3rd Party Payments,Personal Budget - Domiciliary care,ABICARE SERVICES LTD (LIVE IN),SP2 ,27/03/2024,"-9,768.64"
132113233,Mental Health,Adults,Mental Health 65 and over,3rd Party Payments,Personal Budget - Domiciliary care,ABICARE SERVICES LTD (LIVE IN),SP2 ,20/03/2024,"-9,768.64"
134276233,Mental Health,Adults,Mental Health 65 and over,3rd Party Payments,Personal Budget - Domiciliary care,ABICARE SERVICES LTD (LIVE IN),SP2 ,27/03/2024,"14,192.64"
134276233,Physical Support,Adults,Physical Support 18 - 64,3rd Party Payments,Personal Budget - Domiciliary care,ABICARE SERVICES LTD (LIVE IN),SP2 ,27/03/2024,"-9,768.64"
132113233,Physical Support,Adults,Physical Support 18 - 64,3rd Party Payments,Personal Budget - Domiciliary care,ABICARE SERVICES LTD (LIVE IN),SP2 ,20/03/2024,"15,482.88"
134276233,Physical Support,Adults,Physical Support 18 - 64,3rd Party Payments,Personal Budget - Domiciliary care,ABICARE SERVICES LTD (LIVE IN),SP2 ,27/03/2024,"-10,682.88"
132113233,Physical Support,Adults,Physical Support 18 - 64,3rd Party Payments,Personal Budget - Domiciliary care,ABICARE SERVICES LTD (LIVE IN),SP2 ,20/03/2024,"-9,768.64"
134276233,Physical Support,Adults,Physical Support 18 - 64,3rd Party Payments,Personal Budget - Domiciliary care,ABICARE SERVICES LTD (LIVE IN),SP2 ,27/03/2024,"15,482.88"
132113233,Mental Health,Adults,Mental Health 65 and over,3rd Party Payments,Personal Budget - Domiciliary care,ABICARE SERVICES LTD (LIVE IN),SP2 ,20/03/2024,"14,192.64"
132113233,Physical Support,Adults,Physical Support 18 - 64,3rd Party Payments,Personal Budget - Domiciliary care,ABICARE SERVICES LTD (LIVE IN),SP2 ,20/03/2024,"14,192.64"
129799233,Early Years Block,Dedicated Schools Grant (DSG),Free Nursery Education Commissioning - three & four  year olds,3rd Party Payments,Contracts - Child Care,REDACTED PERSONAL DATA,SN2 ,13/03/2024,750.75
128239233,Heritage,Culture,SMAG relocation,Capital,Contractor Payments,ACCESS DISPLAYS LTD,SN4 ,01/03/2024,"1,990.00"
128543233,Highways Inspections & Maintenance,Highway Operations and Car Parking,Streetlighting,Transport Costs,Fleet Management Recharge,ACCESS HIRE NATIONWIDE,WF6 ,01/03/2024,"1,052.86"
132932234,Highways Inspections & Maintenance,Highway Operations and Car Parking,Streetlighting,Transport Costs,Fleet Management Recharge,ACCESS HIRE NATIONWIDE,WF6 ,22/03/2024,"1,729.54"
129865233,Physical Support,Adults,Physical Support 18 - 64,3rd Party Payments,Residential Care,ACCOMPLISH GROUP CONTRACT MANAGEMENT LIMITED,B63 ,08/03/2024,"5,881.96"
132779233,Physical Support,Adults,Physical Support 18 - 64,3rd Party Payments,Residential Care,ACCOMPLISH GROUP CONTRACT MANAGEMENT LIMITED,B63 ,22/03/2024,"5,881.96"
129630233,Learning Disabilities,Adults,Learning Disability 18 - 64,3rd Party Payments,Residential Care,ACHIEVE TOGETHER LTD,BA2 ,08/03/2024,"5,552.40"
129630233,Learning Disabilities,Adults,Learning Disability 18 - 64,3rd Party Payments,Residential Care,ACHIEVE TOGETHER LTD,BA2 ,08/03/2024,-438.80
129323239,"Children, Families & Community Health Services",Children Services,Swindon Community Hubs,Capital,Professional Fees,ACORN ANALYTICAL SERVICES (UK) LIMITED,NN3 ,08/03/2024,550.00
128630256,"Children, Families & Community Health Services",Children Services,Lyndhurst Centre Upgrade,Capital,Professional Fees,ACORN ANALYTICAL SERVICES (UK) LIMITED,NN3 ,04/03/2024,550.00
129210233,Streetsmart,Streetsmart,Waterside Depot,Premises Costs,Maintenance - Buildings,ACORN ANALYTICAL SERVICES (UK) LIMITED,NN3 ,06/03/2024,"1,000.00"
132482275,Homelessness and Travellers,Housing Services,Private Sector Landlords,Transfer Payments,Payment of Costs,REDACTED PERSONAL DATA,SN8 ,25/03/2024,700.00
132482310,Homelessness and Travellers,Housing Services,Private Sector Landlords,Transfer Payments,Payment of Costs,REDACTED PERSONAL DATA,SN8 ,25/03/2024,650.00
131263339,High Needs Block,Dedicated Schools Grant (DSG),SEN Resourcing Assessment Panel,3rd Party Payments,Top up funding - Academies and Free Schools Pre 16,ACTIVATE LEARNING EDUCATION TRUST,OX1 ,15/03/2024,"1,681.67"
131263364,High Needs Block,Dedicated Schools Grant (DSG),SEN Resourcing Assessment Panel,3rd Party Payments,Top up funding - Academies and Free Schools Post 16,ACTIVATE LEARNING EDUCATION TRUST,OX1 ,15/03/2024,"1,114.25"
128064265,Social Care,Children & Families,Children's Resource and Home Finding Team,3rd Party Payments,Independent Fostering Agency Placements,ACTIVE CARE SOLUTIONS LTD,B60 ,01/03/2024,"5,982.12"
128064264,Social Care,Children & Families,Children's Resource and Home Finding Team,3rd Party Payments,Independent Fostering Agency Placements,ACTIVE CARE SOLUTIONS LTD,B60 ,01/03/2024,"3,377.92"
128064263,Social Care,Children & Families,Children's Resource and Home Finding Team,3rd Party Payments,Independent Fostering Agency Placements,ACTIVE CARE SOLUTIONS LTD,B60 ,01/03/2024,"3,289.47"
128064266,Social Care,Children & Families,Children's Resource and Home Finding Team,3rd Party Payments,Independent Fostering Agency Placements,ACTIVE CARE SOLUTIONS LTD,B60 ,01/03/2024,"4,065.22"
131258326,Learning Disabilities,Adults,Learning Disability 18 - 64,Transfer Payments,Personal Budget - Direct Payments - Domiciliary Care,REDACTED PERSONAL DATA,SN4 ,15/03/2024,618.64
131258326,Learning Disabilities,Adults,Learning Disability 18 - 64,Income,Client Contribution - Personal Budget - DP,REDACTED PERSONAL DATA,SN4 ,15/03/2024,-24.50
131258309,Learning Disabilities,Adults,Learning Disability 18 - 64,Income,Client Contribution - Personal Budget - DP,REDACTED PERSONAL DATA,SN3 ,15/03/2024,-17.58
131258309,Learning Disabilities,Adults,Learning Disability 18 - 64,Income,Client Contribution - Personal Budget - DP,REDACTED PERSONAL DATA,SN3 ,15/03/2024,-78.00
131258309,Learning Disabilities,Adults,Learning Disability 18 - 64,Transfer Payments,Personal Budget - Direct Payments - Domiciliary Care,REDACTED PERSONAL DATA,SN3 ,15/03/2024,205.44
131258309,Learning Disabilities,Adults,Learning Disability 18 - 64,Transfer Payments,Personal Budget - Direct Payments - Domiciliary Care,REDACTED PERSONAL DATA,SN3 ,15/03/2024,911.68
130227233,Social Care,Children & Families,Placement Fostering Service,Supplies and Services,Service Charges,ADHD WISE UK,L23 ,11/03/2024,600.00
132482274,Homelessness and Travellers,Housing Services,Private Sector Landlords,Transfer Payments,Payment of Costs,ADVANCE HOUSING & SUPPORT LTD,OX28,25/03/2024,"1,074.00"
129265233,Streetsmart,Streetsmart,Waste - Processing,Supplies and Services,Materials,ADVANTIV LIMITED,RG14,08/03/2024,510.00
128634233,Streetsmart,Streetsmart,Waterside Fleet Workshops,Transport Costs,Repairs & Maintenance - Vehicles,AEBI SCHMIDT UK LTD,PE2 ,04/03/2024,"1,351.64"
130671233,Social Care,Children & Families,Children's Resource and Home Finding Team,3rd Party Payments,Independent Fostering Agency Placements,AFFINITY FOSTERING SERVICES LTD,CM4 ,13/03/2024,"3,321.00"
130673233,Social Care,Children & Families,Children's Resource and Home Finding Team,3rd Party Payments,Independent Fostering Agency Placements,AFFINITY FOSTERING SERVICES LTD,CM4 ,13/03/2024,"3,321.00"
130672233,Social Care,Children & Families,Children's Resource and Home Finding Team,3rd Party Payments,Independent Fostering Agency Placements,AFFINITY FOSTERING SERVICES LTD,CM4 ,13/03/2024,"4,917.78"
131368233,Landscaping & Open Space,Culture & Heritage & Art,Moredon Recreation - Multi Sports Hub,Capital,Contractor Payments,AGGREGATE INDUSTRIES UK LTD T/A SPADEOAK,HP10,15/03/2024,"183,710.38"
131222233,Learning Disabilities,Adults,Learning Disability 65 and over,3rd Party Payments,Supported Lodgings (Childrens)/Supported Living (Adults),AGINCARE ENABLE LTD,DT5 ,15/03/2024,"3,049.50"
131222233,Learning Disabilities,Adults,Learning Disability 65 and over,Income,Client Contribution - Supported Living,AGINCARE ENABLE LTD,DT5 ,15/03/2024,-70.72
131222233,Learning Disabilities,Adults,Learning Disability 65 and over,3rd Party Payments,Supported Lodgings (Childrens)/Supported Living (Adults),AGINCARE ENABLE LTD,DT5 ,15/03/2024,"1,286.74"
131222233,Learning Disabilities,Adults,Learning Disability 65 and over,Income,Client Contribution - Supported Living,AGINCARE ENABLE LTD,DT5 ,15/03/2024,-167.58
130318258,Physical Support,Adults,Physical Support 65 and over,3rd Party Payments,Residential Care,AGINCARE LTD,DT5 ,13/03/2024,"2,835.00"
130318258,Physical Support,Adults,Physical Support 65 and over,Income,Client Contribution - Residential,AGINCARE LTD,DT5 ,13/03/2024,-923.34
130318258,Physical Support,Adults,Physical Support 65 and over,Income,Client Contribution - Residential,AGINCARE LTD,DT5 ,13/03/2024,-307.78
130318258,Physical Support,Adults,Physical Support 65 and over,3rd Party Payments,Residential Care,AGINCARE LTD,DT5 ,13/03/2024,945.00
131880233,"Data, Performance and Insight",Digital & Business Change,"Performance, Intelligence and Insight",Supplies and Services,Services,AHA TECHNOLOGIES LTD,NE5 ,20/03/2024,"2,322.00"
129230233,Property Management,Property,Property Assets,Supplies and Services,Fees,AJW LAND & DEVELOPMENT LTD,SN16,08/03/2024,625.00
132166233,Learning Disabilities,Adults,LD Day Services (OK4U),Transport Costs,Home to Centre Transport,AKCESS CIC,SN2 ,20/03/2024,"20,778.01"
132166233,Physical Support,Adults,Physical Support 65 and over,Transport Costs,Home to Centre Transport,AKCESS CIC,SN2 ,20/03/2024,"2,968.29"
128925233,Learning Disabilities,Adults,LD Day Services (OK4U),Transport Costs,Home to Centre Transport,AKCESS CIC,SN2 ,06/03/2024,"20,778.01"
128925233,Physical Support,Adults,Physical Support 65 and over,Transport Costs,Home to Centre Transport,AKCESS CIC,SN2 ,06/03/2024,"5,934.71"
128925233,Physical Support,Adults,Physical Support 65 and over,Transport Costs,Home to Centre Transport,AKCESS CIC,SN2 ,06/03/2024,"2,968.29"
132166233,Physical Support,Adults,Physical Support 65 and over,Transport Costs,Home to Centre Transport,AKCESS CIC,SN2 ,20/03/2024,"5,934.71"
129794233,Travel,Highways & Transport,Public Transport,3rd Party Payments,Contract Payments,AKCESS CIC,SN2 ,08/03/2024,"15,023.18"
130174234,Senior Management Team,Children & Families,Family Safeguarding Model,Supplies and Services,Services,ALASDAIR CANT & ASSOCIATES LIMITED,CB2 ,11/03/2024,"4,350.00"
131046240,Learning Disabilities,Adults,Learning Disability 18 - 64,3rd Party Payments,Supported Accommodation Scheme,REDACTED PERSONAL DATA,SN2 ,20/03/2024,"2,850.00"
130429233,Disabled Children,Children & Families,DCT Daytime Short Breaks,Transfer Payments,Personal Budget - Direct Payments - Other,REDACTED PERSONAL DATA,SN1 ,13/03/2024,661.50
131258347,Learning Disabilities,Adults,Learning Disability 18 - 64,Income,Client Contribution - Personal Budget - DP,REDACTED PERSONAL DATA,SN25,15/03/2024,-232.24
131258347,Learning Disabilities,Adults,Learning Disability 18 - 64,Transfer Payments,Personal Budget - Direct Payments - Domiciliary Care,REDACTED PERSONAL DATA,SN25,15/03/2024,34.24
131258347,Learning Disabilities,Adults,Learning Disability 18 - 64,Transfer Payments,Personal Budget - Direct Payments - Domiciliary Care,REDACTED PERSONAL DATA,SN25,15/03/2024,700.04
131258347,Learning Disabilities,Adults,Learning Disability 18 - 64,Income,Client Contribution - Personal Budget - DP,REDACTED PERSONAL DATA,SN25,15/03/2024,-11.36
131258663,Learning Disabilities,Adults,Learning Disability 18 - 64,Transfer Payments,Personal Budget - Direct Payments - Other,REDACTED PERSONAL DATA,GL53,15/03/2024,"8,400.00"
131258663,Learning Disabilities,Adults,Learning Disability 18 - 64,Transfer Payments,Personal Budget - Direct Payments - Domiciliary Care,REDACTED PERSONAL DATA,GL53,15/03/2024,"1,503.88"
129802233,Early Years Block,Dedicated Schools Grant (DSG),Free Nursery Education Commissioning - three & four  year olds,3rd Party Payments,Contracts - Child Care,ALFRESCO CHILDCARE,SN6 ,13/03/2024,"4,222.58"
131043235,Learning Disabilities,Adults,Learning Disability 18 - 64,3rd Party Payments,Supported Accommodation Scheme,REDACTED PERSONAL DATA,SN1 ,20/03/2024,"2,850.00"
131043235,Learning Disabilities,Adults,Learning Disability 18 - 64,3rd Party Payments,Supported Accommodation Scheme,REDACTED PERSONAL DATA,SN1 ,20/03/2024,"3,332.50"
131258624,Learning Disabilities,Adults,Learning Disability 18 - 64,Transfer Payments,Personal Budget - Direct Payments - Other,REDACTED PERSONAL DATA,SN4 ,15/03/2024,75.60
131258624,Learning Disabilities,Adults,Learning Disability 18 - 64,Transfer Payments,Personal Budget - Direct Payments - Other,REDACTED PERSONAL DATA,SN4 ,15/03/2024,59.40
131258624,Learning Disabilities,Adults,Learning Disability 18 - 64,Transfer Payments,Personal Budget - Direct Payments - Domiciliary Care,REDACTED PERSONAL DATA,SN4 ,15/03/2024,"1,408.80"
131258624,Learning Disabilities,Adults,Learning Disability 18 - 64,Transfer Payments,Personal Budget - Direct Payments - Domiciliary Care,REDACTED PERSONAL DATA,SN4 ,15/03/2024,724.24
131258624,Learning Disabilities,Adults,Learning Disability 18 - 64,Transfer Payments,Personal Budget - Direct Payments - Other,REDACTED PERSONAL DATA,SN4 ,15/03/2024,78.96
131258624,Learning Disabilities,Adults,Learning Disability 18 - 64,Transfer Payments,Personal Budget - Direct Payments - Domiciliary Care,REDACTED PERSONAL DATA,SN4 ,15/03/2024,234.75
131258624,Learning Disabilities,Adults,Learning Disability 18 - 64,Transfer Payments,Personal Budget - Direct Payments - Domiciliary Care,REDACTED PERSONAL DATA,SN4 ,15/03/2024,98.76
131258624,Learning Disabilities,Adults,Learning Disability 18 - 64,Transfer Payments,Personal Budget - Direct Payments - Domiciliary Care,REDACTED PERSONAL DATA,SN4 ,15/03/2024,"1,189.40"
131097233,Streetsmart,Streetsmart,Refuse Collection,Employees,Temporary / Agency - by Accounts Payable,ALIGRA PERSONNEL LTD,SN25,15/03/2024,812.00
131093234,Streetsmart,Streetsmart,Refuse Collection,Employees,Temporary / Agency - by Accounts Payable,ALIGRA PERSONNEL LTD,SN25,15/03/2024,"2,436.00"
131098233,Streetsmart,Streetsmart,Refuse Collection,Employees,Temporary / Agency - by Accounts Payable,ALIGRA PERSONNEL LTD,SN25,15/03/2024,"3,452.24"
134013234,Streetsmart,Streetsmart,Refuse Collection,Employees,Temporary / Agency - by Accounts Payable,ALIGRA PERSONNEL LTD,SN25,27/03/2024,"3,085.60"
128901233,Streetsmart,Streetsmart,Refuse Collection,Employees,Temporary / Agency - by Accounts Payable,ALIGRA PERSONNEL LTD,SN25,06/03/2024,"2,615.58"
128111233,Streetsmart,Streetsmart,Refuse Collection,Employees,Temporary / Agency - by Accounts Payable,ALIGRA PERSONNEL LTD,SN25,01/03/2024,"3,255.48"
133782233,Streetsmart,Streetsmart,Refuse Collection,Employees,SBC Staff Terms - Basic,ALIGRA PERSONNEL LTD,SN25,27/03/2024,"3,277.93"
134011233,Streetsmart,Streetsmart,Refuse Collection,Employees,Temporary / Agency - by Accounts Payable,ALIGRA PERSONNEL LTD,SN25,27/03/2024,"3,093.08"
132218233,School Transport,"Education, Inclusion and Skills",Special Educational Needs Transport,Transport Costs,Home to School Transport,REDACTED PERSONAL DATA,SN5 ,22/03/2024,518.18
131043236,Learning Disabilities,Adults,Learning Disability 18 - 64,3rd Party Payments,Supported Accommodation Scheme,REDACTED PERSONAL DATA,SN2 ,20/03/2024,"2,300.00"
131043236,Learning Disabilities,Adults,Learning Disability 18 - 64,3rd Party Payments,Supported Accommodation Scheme,REDACTED PERSONAL DATA,SN2 ,20/03/2024,"2,332.50"
131043236,Learning Disabilities,Adults,Learning Disability 18 - 64,3rd Party Payments,Supported Accommodation Scheme,REDACTED PERSONAL DATA,SN2 ,20/03/2024,"2,782.50"
131258270,Learning Disabilities,Adults,Learning Disability 18 - 64,Income,Client Contribution - Personal Budget - DP,REDACTED PERSONAL DATA,SN5 ,15/03/2024,-84.52
131258270,Learning Disabilities,Adults,Learning Disability 18 - 64,Income,Client Contribution - Personal Budget - DP,REDACTED PERSONAL DATA,SN5 ,15/03/2024,-65.04
131258270,Learning Disabilities,Adults,Learning Disability 18 - 64,Income,Client Contribution - Personal Budget - DP,REDACTED PERSONAL DATA,SN5 ,15/03/2024,-0.54
131258270,Learning Disabilities,Adults,Learning Disability 18 - 64,Transfer Payments,Personal Budget - Direct Payments - Domiciliary Care,REDACTED PERSONAL DATA,SN5 ,15/03/2024,"1,539.84"
131258270,Learning Disabilities,Adults,Learning Disability 18 - 64,Transfer Payments,Personal Budget - Direct Payments - Domiciliary Care,REDACTED PERSONAL DATA,SN5 ,15/03/2024,"1,408.68"
131258270,Learning Disabilities,Adults,Learning Disability 18 - 64,Income,Client Contribution - Personal Budget - DP,REDACTED PERSONAL DATA,SN5 ,15/03/2024,-71.10
131258270,Learning Disabilities,Adults,Learning Disability 18 - 64,Transfer Payments,Personal Budget - Direct Payments - Domiciliary Care,REDACTED PERSONAL DATA,SN5 ,15/03/2024,"1,830.00"
131258270,Learning Disabilities,Adults,Learning Disability 18 - 64,Transfer Payments,Personal Budget - Direct Payments - Other,REDACTED PERSONAL DATA,SN5 ,15/03/2024,11.90
129805233,Early Years Block,Dedicated Schools Grant (DSG),Free Nursery Education Commissioning - three & four  year olds,3rd Party Payments,Contracts - Child Care,REDACTED PERSONAL DATA,SN25,13/03/2024,"1,772.10"
129803233,Early Years Block,Dedicated Schools Grant (DSG),Free Nursery Education Commissioning - three & four  year olds,3rd Party Payments,Contracts - Child Care,REDACTED PERSONAL DATA,SN1 ,13/03/2024,693.00
131258308,Learning Disabilities,Adults,Learning Disability 18 - 64,Income,Client Contribution - Personal Budget - DP,REDACTED PERSONAL DATA,SN5 ,15/03/2024,-63.52
131258308,Learning Disabilities,Adults,Learning Disability 18 - 64,Income,Client Contribution - Personal Budget - DP,REDACTED PERSONAL DATA,SN5 ,15/03/2024,-0.68
131258308,Learning Disabilities,Adults,Learning Disability 18 - 64,Transfer Payments,Personal Budget - Direct Payments - Domiciliary Care,REDACTED PERSONAL DATA,SN5 ,15/03/2024,"1,814.40"
131258308,Learning Disabilities,Adults,Learning Disability 18 - 64,Transfer Payments,Personal Budget - Direct Payments - Domiciliary Care,REDACTED PERSONAL DATA,SN5 ,15/03/2024,19.60
129411235,Environmental & Regulatory,Highways & Transport,Shaw Farm Landfill Site,Supplies and Services,Testing / Inspection,ALLBUILD BUILDING & LANDSCAPING SERVICES,SN25,08/03/2024,960.00
132937233,Streetsmart,Streetsmart,Waterside Fleet Workshops,Supplies and Services,Materials,ALLIANCE AUTOMOTIVE UK T/A BRAYMARC,BD4 ,22/03/2024,"1,371.95"
130997233,Landlord Services,Supervision & Management,Estate Management Team,Supplies and Services,Contracts,ALLPAY-NET LIMITED,HR1 ,15/03/2024,"1,846.05"
128425233,Landlord Services,Supervision & Management,Estate Management Team,Supplies and Services,Contracts,ALLPAY-NET LIMITED,HR1 ,01/03/2024,"1,878.47"
130593233,Treasury,Corporate Finance,Treasury,Supplies and Services,Bank Charges,ALLPAY-NET LIMITED,HR1 ,13/03/2024,496.31
128915233,Local Transport Plan Funded,Strategic Planning and Highways,Local Safety Schemes,Capital,Contractor Payments,ALPHA HIGHWAY CONSULTANTS LIMITED,SG5 ,06/03/2024,"1,285.00"
129807233,Early Years Block,Dedicated Schools Grant (DSG),Free Nursery Education Commissioning - three & four  year olds,3rd Party Payments,Contracts - Child Care,ALPHA PRE-SCHOOL,SN5 ,13/03/2024,"1,902.15"
129806233,Early Years Block,Dedicated Schools Grant (DSG),Free Nursery Education Commissioning - two year olds,3rd Party Payments,Contracts - Child Care,ALPHA PRE-SCHOOL,SN5 ,13/03/2024,764.28
128667234,Disabled Children,Children & Families,DCT Daytime Short Breaks,3rd Party Payments,Respite Care,ALPHA24 HEALTHCARE LTD,EC3A,04/03/2024,978.75
133822233,Disabled Children,Children & Families,DCT Daytime Short Breaks,3rd Party Payments,Respite Care,ALPHA24 HEALTHCARE LTD,EC3A,27/03/2024,978.75
133764233,Disabled Children,Children & Families,DCT Daytime Short Breaks,3rd Party Payments,Respite Care,ALPHA24 HEALTHCARE LTD,EC3A,27/03/2024,"1,305.00"
132310233,Disabled Children,Children & Families,DCT Daytime Short Breaks,3rd Party Payments,Respite Care,ALPHA24 HEALTHCARE LTD,EC3A,20/03/2024,652.50
131060235,Disabled Children,Children & Families,DCT Daytime Short Breaks,3rd Party Payments,Respite Care,ALPHA24 HEALTHCARE LTD,EC3A,15/03/2024,"1,305.00"
130322234,Disabled Children,Children & Families,DCT Daytime Short Breaks,3rd Party Payments,Respite Care,ALPHA24 HEALTHCARE LTD,EC3A,13/03/2024,652.50
128692233,Disabled Children,Children & Families,DCT Daytime Short Breaks,3rd Party Payments,Respite Care,ALPHA24 HEALTHCARE LTD,EC3A,04/03/2024,978.75
133761233,Disabled Children,Children & Families,DCT Daytime Short Breaks,3rd Party Payments,Respite Care,ALPHA24 HEALTHCARE LTD,EC3A,27/03/2024,"1,631.25"
133760233,Disabled Children,Children & Families,DCT Daytime Short Breaks,3rd Party Payments,Respite Care,ALPHA24 HEALTHCARE LTD,EC3A,27/03/2024,"1,631.25"
132316233,Disabled Children,Children & Families,DCT Daytime Short Breaks,3rd Party Payments,Respite Care,ALPHA24 HEALTHCARE LTD,EC3A,20/03/2024,978.75
131378233,Disabled Children,Children & Families,DCT Daytime Short Breaks,3rd Party Payments,Respite Care,ALPHA24 HEALTHCARE LTD,EC3A,15/03/2024,978.75
130320236,Disabled Children,Children & Families,DCT Daytime Short Breaks,3rd Party Payments,Respite Care,ALPHA24 HEALTHCARE LTD,EC3A,13/03/2024,978.75
128657233,Disabled Children,Children & Families,DCT Daytime Short Breaks,3rd Party Payments,Respite Care,ALPHA24 HEALTHCARE LTD,EC3A,04/03/2024,978.75
133762233,Disabled Children,Children & Families,DCT Daytime Short Breaks,3rd Party Payments,Respite Care,ALPHA24 HEALTHCARE LTD,EC3A,27/03/2024,"1,305.00"
131372233,Disabled Children,Children & Families,DCT Daytime Short Breaks,3rd Party Payments,Respite Care,ALPHA24 HEALTHCARE LTD,EC3A,15/03/2024,"1,305.00"
130322236,Disabled Children,Children & Families,DCT Daytime Short Breaks,3rd Party Payments,Respite Care,ALPHA24 HEALTHCARE LTD,EC3A,13/03/2024,652.50
129965234,Disabled Children,Children & Families,DCT Daytime Short Breaks,3rd Party Payments,Respite Care,ALPHA24 HEALTHCARE LTD,EC3A,08/03/2024,652.50
128689233,Disabled Children,Children & Families,DCT Daytime Short Breaks,3rd Party Payments,Respite Care,ALPHA24 HEALTHCARE LTD,EC3A,04/03/2024,"1,305.00"
128677233,Disabled Children,Children & Families,DCT Daytime Short Breaks,3rd Party Payments,Respite Care,ALPHA24 HEALTHCARE LTD,EC3A,04/03/2024,652.50
128693233,Disabled Children,Children & Families,DCT Daytime Short Breaks,3rd Party Payments,Respite Care,ALPHA24 HEALTHCARE LTD,EC3A,04/03/2024,978.75
128419233,Disabled Children,Children & Families,DCT Daytime Short Breaks,3rd Party Payments,Respite Care,ALPHA24 HEALTHCARE LTD,EC3A,01/03/2024,978.75
128417233,Disabled Children,Children & Families,DCT Daytime Short Breaks,3rd Party Payments,Respite Care,ALPHA24 HEALTHCARE LTD,EC3A,01/03/2024,978.75
128688233,Disabled Children,Children & Families,DCT Daytime Short Breaks,3rd Party Payments,Respite Care,ALPHA24 HEALTHCARE LTD,EC3A,04/03/2024,"1,305.00"
129880234,Disabled Children,Children & Families,DCT Daytime Short Breaks,3rd Party Payments,Respite Care,ALPHA24 HEALTHCARE LTD,EC3A,08/03/2024,978.75
129826234,Social Care,Children & Families,Looked After Children Service,3rd Party Payments,Personal Needs,ALPHA24 HEALTHCARE LTD,EC3A,08/03/2024,"1,050.00"
130321233,Disabled Children,Children & Families,DCT Daytime Short Breaks,3rd Party Payments,Respite Care,ALPHA24 HEALTHCARE LTD,EC3A,13/03/2024,"1,305.00"
130039233,Disabled Children,Children & Families,DCT Daytime Short Breaks,3rd Party Payments,Respite Care,ALPHA24 HEALTHCARE LTD,EC3A,08/03/2024,978.75
130322240,Disabled Children,Children & Families,DCT Daytime Short Breaks,3rd Party Payments,Respite Care,ALPHA24 HEALTHCARE LTD,EC3A,13/03/2024,978.75
131059234,Disabled Children,Children & Families,DCT Daytime Short Breaks,3rd Party Payments,Respite Care,ALPHA24 HEALTHCARE LTD,EC3A,15/03/2024,978.75
132536234,Disabled Children,Children & Families,DCT Daytime Short Breaks,3rd Party Payments,Respite Care,ALPHA24 HEALTHCARE LTD,EC3A,22/03/2024,978.75
130320239,Disabled Children,Children & Families,DCT Daytime Short Breaks,3rd Party Payments,Respite Care,ALPHA24 HEALTHCARE LTD,EC3A,13/03/2024,"1,305.00"
130322238,Disabled Children,Children & Families,DCT Daytime Short Breaks,3rd Party Payments,Respite Care,ALPHA24 HEALTHCARE LTD,EC3A,13/03/2024,978.75
129894233,Disabled Children,Children & Families,DCT Daytime Short Breaks,3rd Party Payments,Respite Care,ALPHA24 HEALTHCARE LTD,EC3A,08/03/2024,978.75
128691233,Disabled Children,Children & Families,DCT Daytime Short Breaks,3rd Party Payments,Respite Care,ALPHA24 HEALTHCARE LTD,EC3A,04/03/2024,652.50
133759233,Disabled Children,Children & Families,DCT Daytime Short Breaks,3rd Party Payments,Respite Care,ALPHA24 HEALTHCARE LTD,EC3A,27/03/2024,"1,631.25"
132925233,Disabled Children,Children & Families,DCT Daytime Short Breaks,3rd Party Payments,Respite Care,ALPHA24 HEALTHCARE LTD,EC3A,22/03/2024,652.50
131376233,Disabled Children,Children & Families,DCT Daytime Short Breaks,3rd Party Payments,Respite Care,ALPHA24 HEALTHCARE LTD,EC3A,15/03/2024,"1,305.00"
131057234,Disabled Children,Children & Families,DCT Daytime Short Breaks,3rd Party Payments,Respite Care,ALPHA24 HEALTHCARE LTD,EC3A,15/03/2024,"1,305.00"
129899233,Disabled Children,Children & Families,DCT Daytime Short Breaks,3rd Party Payments,Respite Care,ALPHA24 HEALTHCARE LTD,EC3A,08/03/2024,"1,305.00"
128687233,Disabled Children,Children & Families,DCT Daytime Short Breaks,3rd Party Payments,Respite Care,ALPHA24 HEALTHCARE LTD,EC3A,04/03/2024,"1,305.00"
133823233,Disabled Children,Children & Families,DCT Daytime Short Breaks,3rd Party Payments,Respite Care,ALPHA24 HEALTHCARE LTD,EC3A,27/03/2024,652.50
133821233,Disabled Children,Children & Families,DCT Daytime Short Breaks,3rd Party Payments,Respite Care,ALPHA24 HEALTHCARE LTD,EC3A,27/03/2024,978.75
132313233,Disabled Children,Children & Families,DCT Daytime Short Breaks,3rd Party Payments,Respite Care,ALPHA24 HEALTHCARE LTD,EC3A,20/03/2024,"1,631.25"
132314233,Disabled Children,Children & Families,DCT Daytime Short Breaks,3rd Party Payments,Respite Care,ALPHA24 HEALTHCARE LTD,EC3A,20/03/2024,"1,305.00"
130321234,Disabled Children,Children & Families,DCT Daytime Short Breaks,3rd Party Payments,Respite Care,ALPHA24 HEALTHCARE LTD,EC3A,13/03/2024,"1,305.00"
130321235,Disabled Children,Children & Families,DCT Daytime Short Breaks,3rd Party Payments,Respite Care,ALPHA24 HEALTHCARE LTD,EC3A,13/03/2024,"1,305.00"
129860234,Disabled Children,Children & Families,DCT Daytime Short Breaks,3rd Party Payments,Respite Care,ALPHA24 HEALTHCARE LTD,EC3A,08/03/2024,978.75
129900233,Disabled Children,Children & Families,DCT Daytime Short Breaks,3rd Party Payments,Respite Care,ALPHA24 HEALTHCARE LTD,EC3A,08/03/2024,"1,631.25"
132308233,Disabled Children,Children & Families,DCT Daytime Short Breaks,3rd Party Payments,Respite Care,ALPHA24 HEALTHCARE LTD,EC3A,20/03/2024,652.50
131374233,Disabled Children,Children & Families,DCT Daytime Short Breaks,3rd Party Payments,Respite Care,ALPHA24 HEALTHCARE LTD,EC3A,15/03/2024,"1,631.25"
129335233,Social Care,Children & Families,Legal Fees,Supplies and Services,Fees,ALPHABIOLABS,WA5 ,08/03/2024,631.75
131698233,Social Care,Children & Families,Legal Fees,Supplies and Services,Fees,ALPHABIOLABS,WA5 ,18/03/2024,552.20
131702233,Social Care,Children & Families,Legal Fees,Supplies and Services,Fees,ALPHABIOLABS,WA5 ,18/03/2024,642.40
129283233,Insurance Team,Finance,Insurance,Supplies and Services,Materials,ALPHATEC SOFTWARE LTD,NN7 ,08/03/2024,"3,665.92"
130318312,Physical Support,Adults,Physical Support 65 and over,Income,Client Contribution - Nursing,ALTOGETHER CARE WEYMOUTH CARE HOME,DT4 ,13/03/2024,-518.40
130318312,Physical Support,Adults,Physical Support 65 and over,Income,Client Contribution - Nursing,ALTOGETHER CARE WEYMOUTH CARE HOME,DT4 ,13/03/2024,-172.80
130318312,Physical Support,Adults,Physical Support 65 and over,3rd Party Payments,Nursing Care,ALTOGETHER CARE WEYMOUTH CARE HOME,DT4 ,13/03/2024,"3,017.46"
130318312,Physical Support,Adults,Physical Support 65 and over,3rd Party Payments,Nursing Care,ALTOGETHER CARE WEYMOUTH CARE HOME,DT4 ,13/03/2024,"1,005.82"
131465234,"Volutary Sector, Equipment and Carers",Adults,Voluntary Sector Adults,3rd Party Payments,Contracts - Social Care,ALZHEIMERS SOCIETY,PL6 ,18/03/2024,"2,433.00"
131111233,Town Centre,"Economy, Growth and Place",Uk shared Properity Fund,Supplies and Services,Services,ALZHEIMERS SOCIETY,PL6 ,15/03/2024,"5,833.33"
131258273,Learning Disabilities,Adults,Learning Disability 18 - 64,Transfer Payments,Personal Budget - Direct Payments - Domiciliary Care,REDACTED PERSONAL DATA,SN3 ,15/03/2024,891.33
131258273,Learning Disabilities,Adults,Learning Disability 18 - 64,Transfer Payments,Personal Budget - Direct Payments - Domiciliary Care,REDACTED PERSONAL DATA,SN3 ,15/03/2024,40.70
129808233,Early Years Block,Dedicated Schools Grant (DSG),Free Nursery Education Commissioning - three & four  year olds,3rd Party Payments,Contracts - Child Care,REDACTED PERSONAL DATA,SN5 ,13/03/2024,635.25
131263253,High Needs Block,Dedicated Schools Grant (DSG),SEN Resourcing Assessment Panel,Supplies and Services,Services,REDACTED PERSONAL DATA,SN4 ,15/03/2024,"2,461.16"
Corporate Card Transaction,Elections & Democracy,Elections and Democracy,Local Elections,Supplies and Services,Materials,Amazon* 204-8924304-70,,26/03/2024,509.70
Corporate Card Transaction,Social Care,"Children, Families and Community Health Services",Fostering Service Team,Supplies and Services,Materials,Amazon* 204-9930420-68,,26/03/2024,"6,272.06"
Corporate Card Transaction,Social Care,"Children, Families and Community Health Services",Unaccompanied Asylum Seeking Children (UASC),3rd Party Payments,Christmas Payment,Amazon.Co.Uk*4t33x0t05,,21/03/2024,"4,000.00"
132563233,Social Care,Children & Families,Children's Resource and Home Finding Team,3rd Party Payments,Semi Independent,AMEGREEN CHILDREN'S SERVICES LTD,RG7 ,25/03/2024,"13,285.67"
128180234,Responsive Repairs,Repairs,Responsive Repairs,Premises Costs,Repairs - Buildings,AMELIO UTILITIES(GLOU) LTD T/A 3 COUNTIES DRAIN SERVICES,GL1 ,01/03/2024,"2,390.81"
128180234,Responsive Repairs,Repairs,Responsive Repairs,Premises Costs,Repairs - Buildings,AMELIO UTILITIES(GLOU) LTD T/A 3 COUNTIES DRAIN SERVICES,GL1 ,01/03/2024,604.10
128180234,Responsive Repairs,Repairs,Responsive Repairs,Premises Costs,Repairs - Buildings,AMELIO UTILITIES(GLOU) LTD T/A 3 COUNTIES DRAIN SERVICES,GL1 ,01/03/2024,70.30
128180234,Responsive Repairs,Repairs,Responsive Repairs,Premises Costs,Repairs - Buildings,AMELIO UTILITIES(GLOU) LTD T/A 3 COUNTIES DRAIN SERVICES,GL1 ,01/03/2024,176.57
128180234,Responsive Repairs,Repairs,Responsive Repairs,Premises Costs,Repairs - Buildings,AMELIO UTILITIES(GLOU) LTD T/A 3 COUNTIES DRAIN SERVICES,GL1 ,01/03/2024,353.14
128180234,Responsive Repairs,Repairs,Responsive Repairs,Premises Costs,Repairs - Buildings,AMELIO UTILITIES(GLOU) LTD T/A 3 COUNTIES DRAIN SERVICES,GL1 ,01/03/2024,885.29
128180234,Responsive Repairs,Repairs,Responsive Repairs,Premises Costs,Repairs - Buildings,AMELIO UTILITIES(GLOU) LTD T/A 3 COUNTIES DRAIN SERVICES,GL1 ,01/03/2024,387.46
128180234,Responsive Repairs,Repairs,Responsive Repairs,Premises Costs,Repairs - Buildings,AMELIO UTILITIES(GLOU) LTD T/A 3 COUNTIES DRAIN SERVICES,GL1 ,01/03/2024,281.19
128180234,Responsive Repairs,Repairs,Responsive Repairs,Premises Costs,Repairs - Buildings,AMELIO UTILITIES(GLOU) LTD T/A 3 COUNTIES DRAIN SERVICES,GL1 ,01/03/2024,140.60
128180234,Responsive Repairs,Repairs,Responsive Repairs,Premises Costs,Repairs - Buildings,AMELIO UTILITIES(GLOU) LTD T/A 3 COUNTIES DRAIN SERVICES,GL1 ,01/03/2024,317.17
128843233,Routes to Employment,"Education, Inclusion and Skills",Multiply,Supplies and Services,Materials,REDACTED PERSONAL DATA,SN3 ,06/03/2024,570.00
130800233,Routes to Employment,"Education, Inclusion and Skills",Multiply,Supplies and Services,Materials,REDACTED PERSONAL DATA,SN3 ,13/03/2024,90.00
128852233,Routes to Employment,"Education, Inclusion and Skills",Multiply,Supplies and Services,Materials,REDACTED PERSONAL DATA,SN3 ,06/03/2024,720.00
130800233,Routes to Employment,"Education, Inclusion and Skills",Multiply,Supplies and Services,Materials,REDACTED PERSONAL DATA,SN3 ,13/03/2024,480.00
130236343,Highways & Transport,Highways & Transport,Project Delivery,Supplies and Services,Services,AMEY OW LTD,L19 ,11/03/2024,"64,483.85"
130242233,Local Transport Plan Funded,Strategic Planning and Highways,Street Lighting,Capital,Contractor Payments,AMEY OW LTD,L19 ,11/03/2024,"1,373.84"
128251233,Property Management,Property,Corporate Repairs & Maintenance Programme,Premises Costs,Repairs - Buildings,AMEY TPT,EC4A,01/03/2024,"2,785.00"
131590233,Streetsmart,Streetsmart,Waste - Disposal,3rd Party Payments,Contract Payments,AMG RESOURCES LTD,SA15,18/03/2024,"7,979.80"
130700233,Streetsmart,Streetsmart,Waste - Disposal,3rd Party Payments,Contract Payments,AMG RESOURCES LTD,SA15,13/03/2024,"1,277.00"
130436233,Disabled Children,Children & Families,DCT Daytime Short Breaks,Transfer Payments,Personal Budget - Direct Payments - Other,REDACTED PERSONAL DATA,SN2 ,13/03/2024,720.97
131258577,Mental Health,Adults,Mental Health 18-64,Transfer Payments,Personal Budget - Direct Payments - Domiciliary Care,REDACTED PERSONAL DATA,SN25,15/03/2024,0.92
131258577,Mental Health,Adults,Mental Health 18-64,Transfer Payments,Personal Budget - Direct Payments - Other,REDACTED PERSONAL DATA,SN25,15/03/2024,12.00
131258577,Mental Health,Adults,Mental Health 18-64,Transfer Payments,Personal Budget - Direct Payments - Domiciliary Care,REDACTED PERSONAL DATA,SN25,15/03/2024,272.16
129809233,Early Years Block,Dedicated Schools Grant (DSG),Free Nursery Education Commissioning - three & four  year olds,3rd Party Payments,Contracts - Child Care,REDACTED PERSONAL DATA,SN25,13/03/2024,"2,079.00"
129837415,Early Years Block,Dedicated Schools Grant (DSG),Free Nursery Education Commissioning - three & four  year olds,3rd Party Payments,Contracts - Child Care,REDACTED PERSONAL DATA,SN5 ,13/03/2024,"26,406.45"
129837414,Early Years Block,Dedicated Schools Grant (DSG),Free Nursery Education Commissioning - two year olds,3rd Party Payments,Contracts - Child Care,REDACTED PERSONAL DATA,SN5 ,13/03/2024,"9,171.36"
132482266,Homelessness and Travellers,Housing Services,Private Sector Landlords,Transfer Payments,Payment of Costs,ANGELVIEW PROPERTIES LTD,ALBO,25/03/2024,590.00
131046238,Planned Maintenance Programme,HRA Capital Financing,Windows,Capital,Contractor Payments,ANGLIAN BUILDING PRODUCTS LIMITED,NR6 ,15/03/2024,"5,180.55"
131046238,Planned Maintenance Programme,HRA Capital Financing,Windows,Capital,Contractor Payments,ANGLIAN BUILDING PRODUCTS LIMITED,NR6 ,15/03/2024,"3,690.61"
131046238,Planned Maintenance Programme,HRA Capital Financing,Windows,Capital,Contractor Payments,ANGLIAN BUILDING PRODUCTS LIMITED,NR6 ,15/03/2024,"5,651.15"
131046238,Planned Maintenance Programme,HRA Capital Financing,Windows,Capital,Contractor Payments,ANGLIAN BUILDING PRODUCTS LIMITED,NR6 ,15/03/2024,"7,071.54"
131046238,Planned Maintenance Programme,HRA Capital Financing,Windows,Capital,Contractor Payments,ANGLIAN BUILDING PRODUCTS LIMITED,NR6 ,15/03/2024,"6,606.55"
131046238,Planned Maintenance Programme,HRA Capital Financing,Windows,Capital,Contractor Payments,ANGLIAN BUILDING PRODUCTS LIMITED,NR6 ,15/03/2024,"2,593.66"
131046238,Planned Maintenance Programme,HRA Capital Financing,Windows,Capital,Contractor Payments,ANGLIAN BUILDING PRODUCTS LIMITED,NR6 ,15/03/2024,"6,666.26"
131046238,Planned Maintenance Programme,HRA Capital Financing,Windows,Capital,Contractor Payments,ANGLIAN BUILDING PRODUCTS LIMITED,NR6 ,15/03/2024,"7,944.85"
131046238,Planned Maintenance Programme,HRA Capital Financing,Windows,Capital,Contractor Payments,ANGLIAN BUILDING PRODUCTS LIMITED,NR6 ,15/03/2024,"6,209.33"
131046238,Planned Maintenance Programme,HRA Capital Financing,Windows,Capital,Contractor Payments,ANGLIAN BUILDING PRODUCTS LIMITED,NR6 ,15/03/2024,"5,457.36"
131046238,Planned Maintenance Programme,HRA Capital Financing,Windows,Capital,Contractor Payments,ANGLIAN BUILDING PRODUCTS LIMITED,NR6 ,15/03/2024,"5,618.96"
131046238,Planned Maintenance Programme,HRA Capital Financing,Windows,Capital,Contractor Payments,ANGLIAN BUILDING PRODUCTS LIMITED,NR6 ,15/03/2024,"6,764.58"
131046238,Planned Maintenance Programme,HRA Capital Financing,Windows,Capital,Contractor Payments,ANGLIAN BUILDING PRODUCTS LIMITED,NR6 ,15/03/2024,"6,056.08"
131046238,Planned Maintenance Programme,HRA Capital Financing,Windows,Capital,Contractor Payments,ANGLIAN BUILDING PRODUCTS LIMITED,NR6 ,15/03/2024,"6,002.81"
131046238,Planned Maintenance Programme,HRA Capital Financing,Windows,Capital,Contractor Payments,ANGLIAN BUILDING PRODUCTS LIMITED,NR6 ,15/03/2024,"5,522.57"
131258345,Physical Support,Adults,Physical Support 18 - 64,Transfer Payments,Personal Budget - Direct Payments - Domiciliary Care,REDACTED PERSONAL DATA,SN25,15/03/2024,12.40
131258345,Physical Support,Adults,Physical Support 18 - 64,Transfer Payments,Personal Budget - Direct Payments - Domiciliary Care,REDACTED PERSONAL DATA,SN25,15/03/2024,586.08
131258345,Physical Support,Adults,Physical Support 18 - 64,Transfer Payments,Personal Budget - Direct Payments - Domiciliary Care,REDACTED PERSONAL DATA,SN25,15/03/2024,366.30
131258345,Physical Support,Adults,Physical Support 18 - 64,Transfer Payments,Personal Budget - Direct Payments - Domiciliary Care,REDACTED PERSONAL DATA,SN25,15/03/2024,188.00
131258345,Physical Support,Adults,Physical Support 18 - 64,Transfer Payments,Personal Budget - Direct Payments - Domiciliary Care,REDACTED PERSONAL DATA,SN25,15/03/2024,85.60
131200233,Senior Management Team,Children & Families,Senior Management Team - Non Staffing,Supplies and Services,Fees,ANNE DOSWELL-MOORE,GL51,15/03/2024,"1,009.80"
128907233,HRA Overheads,Supervision & Management,Admin / Management General,Premises Costs,Insurance - Premises,AON UK LIMITED,EC3V,06/03/2024,"4,040.81"
132718233,HRA Overheads,Supervision & Management,Admin / Management General,Premises Costs,Insurance - Premises,AON UK LIMITED,EC3V,22/03/2024,"3,250.77"
134046233,Supported Employment,Housing Services,Community Meals,Supplies and Services,Food,APETITO LIMITED,BA14,27/03/2024,605.35
129312233,Supported Employment,Housing Services,Community Meals,Supplies and Services,Food,APETITO LIMITED,BA14,08/03/2024,745.64
131312234,Supported Employment,Housing Services,Community Meals,Supplies and Services,Food,APETITO LIMITED,BA14,15/03/2024,571.35
131311234,Supported Employment,Housing Services,Community Meals,Supplies and Services,Food,APETITO LIMITED,BA14,15/03/2024,565.42
128069243,Responsive Repairs,Repairs,Responsive Repairs,3rd Party Payments,Contract Payments,APEX SCAFFOLDING SERVICES,SN2 ,01/03/2024,485.00
134027234,Responsive Repairs,Repairs,Responsive Repairs,3rd Party Payments,Contract Payments,APEX SCAFFOLDING SERVICES,SN2 ,27/03/2024,485.00
134021233,Responsive Repairs,Repairs,Responsive Repairs,3rd Party Payments,Contract Payments,APEX SCAFFOLDING SERVICES,SN2 ,27/03/2024,130.00
128069244,Responsive Repairs,Repairs,Responsive Repairs,3rd Party Payments,Contract Payments,APEX SCAFFOLDING SERVICES,SN2 ,01/03/2024,"1,782.00"
134023234,Responsive Repairs,Repairs,Responsive Repairs,3rd Party Payments,Contract Payments,APEX SCAFFOLDING SERVICES,SN2 ,27/03/2024,576.00
130186248,Responsive Repairs,Repairs,Responsive Repairs,3rd Party Payments,Contract Payments,APEX SCAFFOLDING SERVICES,SN2 ,11/03/2024,65.00
130186248,Responsive Repairs,Repairs,Responsive Repairs,3rd Party Payments,Contract Payments,APEX SCAFFOLDING SERVICES,SN2 ,11/03/2024,130.00
134084233,Responsive Repairs,Repairs,Responsive Repairs,3rd Party Payments,Contract Payments,APEX SCAFFOLDING SERVICES,SN2 ,27/03/2024,65.00
134024233,Responsive Repairs,Repairs,Responsive Repairs,3rd Party Payments,Contract Payments,APEX SCAFFOLDING SERVICES,SN2 ,27/03/2024,700.00
134021233,Responsive Repairs,Repairs,Responsive Repairs,3rd Party Payments,Contract Payments,APEX SCAFFOLDING SERVICES,SN2 ,27/03/2024,65.00
134084233,Responsive Repairs,Repairs,Responsive Repairs,3rd Party Payments,Contract Payments,APEX SCAFFOLDING SERVICES,SN2 ,27/03/2024,130.00
134199233,,,Balance Sheet,Balance Sheet & Recharge,Resources Recharges,APOGEE CORPORATION LIMITED,ME16,27/03/2024,"19,391.26"
130813233,,,Balance Sheet,Balance Sheet & Recharge,Resources Recharges,APOGEE CORPORATION LIMITED,ME16,13/03/2024,"21,796.10"
134213234,,,Balance Sheet,Balance Sheet & Recharge,Resources Recharges,APOGEE CORPORATION LIMITED,ME16,27/03/2024,"9,499.26"
129348233,Public Health,Public Health,Public Health Grant,3rd Party Payments,Contract Payments,APOGEE CORPORATION LIMITED,ME16,08/03/2024,"2,555.73"
134235249,,,Balance Sheet,Balance Sheet & Recharge,Resources Recharges,APOGEE CORPORATION LIMITED,ME16,27/03/2024,"9,488.47"
126809233,,,Balance Sheet,Balance Sheet & Recharge,Resources Recharges,APOGEE CORPORATION LIMITED,ME16,06/03/2024,"3,773.79"
130380233,,,Balance Sheet,Balance Sheet & Recharge,Resources Recharges,APOGEE CORPORATION LIMITED,ME16,13/03/2024,"5,126.00"
130318268,Learning Disabilities,Adults,Learning Disability 18 - 64,3rd Party Payments,Residential Care,APPLEFORD LTD T/A DANESWOOD,BS25,13/03/2024,"5,502.03"
130318268,Learning Disabilities,Adults,Learning Disability 18 - 64,3rd Party Payments,Residential Care,APPLEFORD LTD T/A DANESWOOD,BS25,13/03/2024,"16,506.09"
130318268,Learning Disabilities,Adults,Learning Disability 18 - 64,Income,Client Contribution - Residential,APPLEFORD LTD T/A DANESWOOD,BS25,13/03/2024,-329.10
130318268,Learning Disabilities,Adults,Learning Disability 18 - 64,Income,Client Contribution - Residential,APPLEFORD LTD T/A DANESWOOD,BS25,13/03/2024,-109.70
130767233,Adults - Staffing and Supporting People,Adults,Blue Badges,Supplies and Services,Materials,APS GROUP,SK3 ,13/03/2024,"1,449.31"
132802234,Adults - Staffing and Supporting People,Adults,Blue Badges,Supplies and Services,Materials,APS GROUP,SK3 ,22/03/2024,973.84
131436233,Repairs Staffing,Repairs,Maintenance,Supplies and Services,Fees,APSE--------------------------------,M32 ,18/03/2024,"2,337.00"
131795234,Early Years Block,Dedicated Schools Grant (DSG),Free Nursery Education Commissioning - three & four  year olds,3rd Party Payments,Contracts - Child Care,REDACTED PERSONAL DATA,SN2 ,20/03/2024,858.92
131845233,High Needs Block,Dedicated Schools Grant (DSG),SEN Resourcing Assessment Panel,3rd Party Payments,Top up funding - Maintained providers Pre 16,REDACTED PERSONAL DATA,SN2 ,20/03/2024,"7,980.00"
131797233,Early Years Block,Dedicated Schools Grant (DSG),Free Nursery Education Commissioning - three & four  year olds,3rd Party Payments,Contracts - Child Care,REDACTED PERSONAL DATA,SN2 ,20/03/2024,858.92
131796233,Early Years Block,Dedicated Schools Grant (DSG),Free Nursery Education Commissioning - three & four  year olds,3rd Party Payments,Contracts - Child Care,REDACTED PERSONAL DATA,SN2 ,20/03/2024,858.92
131629233,Early Years Block,Dedicated Schools Grant (DSG),Free Nursery Education Commissioning - three & four  year olds,3rd Party Payments,Contracts - Child Care,REDACTED PERSONAL DATA,SN2 ,20/03/2024,"7,980.00"
129811233,Early Years Block,Dedicated Schools Grant (DSG),Free Nursery Education Commissioning - three & four  year olds,3rd Party Payments,Contracts - Child Care,REDACTED PERSONAL DATA,SN2 ,13/03/2024,"4,019.86"
131248241,Planned Maintenance Programme,HRA Capital Financing,Exceptional Extensive,Capital,Contractor Payments,ARCADIS CONSULTING (UK) LTD,EC3M,15/03/2024,"62,390.00"
131248240,Planned Maintenance Programme,HRA Capital Financing,Exceptional Extensive,Capital,Contractor Payments,ARCADIS CONSULTING (UK) LTD,EC3M,15/03/2024,"13,948.00"
130595233,Landscaping & Open Space,Culture & Heritage & Art,GWCF - Trees for Climate,Capital,Contractor Payments,ARCHAEOLOGICAL SURVEYS LTD,SN11,13/03/2024,"2,000.00"
130660234,Social Care,Children & Families,Children's Resource and Home Finding Team,3rd Party Payments,Residential Care,AREA CAMDEN LTD,B60 ,13/03/2024,"22,185.00"
130754233,Human Resources and Organisational Development,"People, Culture and Organisational Resilience",Pay & Reward,Employees,Temporary / Agency - by Accounts Payable,ARGONAUT MANAGEMENT SERVICES LIMITED,N11 ,13/03/2024,"7,800.00"
132098234,Memory & Cognition,Adults,Support for Memory and Cognition 65 and over,3rd Party Payments,Residential Care,ARIA HEALTHCARE GROUP LTD,CO4 ,20/03/2024,"9,400.29"
132098234,Memory & Cognition,Adults,Support for Memory and Cognition 65 and over,3rd Party Payments,Residential Care,ARIA HEALTHCARE GROUP LTD,CO4 ,20/03/2024,"2,991.00"
132098234,Memory & Cognition,Adults,Support for Memory and Cognition 65 and over,Income,Client Contribution - Residential,ARIA HEALTHCARE GROUP LTD,CO4 ,20/03/2024,-436.56
130318319,Memory & Cognition,Adults,Support for Memory and Cognition 65 and over,3rd Party Payments,Nursing Care,ARIA HEALTHCARE GROUP LTD,CO4 ,13/03/2024,838.35
132098234,Physical Support,Adults,Physical Support 65 and over,3rd Party Payments,Residential Care,ARIA HEALTHCARE GROUP LTD,CO4 ,20/03/2024,-997.00
132098234,Physical Support,Adults,Physical Support 65 and over,3rd Party Payments,Residential Care,ARIA HEALTHCARE GROUP LTD,CO4 ,20/03/2024,"2,321.43"
132098234,Physical Support,Adults,Physical Support 65 and over,Income,Client Contribution - Residential,ARIA HEALTHCARE GROUP LTD,CO4 ,20/03/2024,-218.00
132098234,Physical Support,Adults,Physical Support 65 and over,3rd Party Payments,Residential Care,ARIA HEALTHCARE GROUP LTD,CO4 ,20/03/2024,"-3,988.00"
132098234,Physical Support,Adults,Physical Support 65 and over,3rd Party Payments,Residential Care,ARIA HEALTHCARE GROUP LTD,CO4 ,20/03/2024,"3,035.71"
132098234,Physical Support,Adults,Physical Support 65 and over,3rd Party Payments,Residential Care,ARIA HEALTHCARE GROUP LTD,CO4 ,20/03/2024,"5,000.00"
132098234,Physical Support,Adults,Physical Support 65 and over,3rd Party Payments,Residential Care,ARIA HEALTHCARE GROUP LTD,CO4 ,20/03/2024,"4,464.29"
130318319,Memory & Cognition,Adults,Support for Memory and Cognition 65 and over,3rd Party Payments,Nursing Care,ARIA HEALTHCARE GROUP LTD,CO4 ,13/03/2024,"2,515.05"
132098234,Memory & Cognition,Adults,Support for Memory and Cognition 65 and over,3rd Party Payments,Residential Care,ARIA HEALTHCARE GROUP LTD,CO4 ,20/03/2024,997.00
132098234,Physical Support,Adults,Physical Support 65 and over,3rd Party Payments,Residential Care,ARIA HEALTHCARE GROUP LTD,CO4 ,20/03/2024,"1,785.71"
132098234,Memory & Cognition,Adults,Support for Memory and Cognition 65 and over,Income,Client Contribution - Residential,ARIA HEALTHCARE GROUP LTD,CO4 ,20/03/2024,-109.14
132098234,Memory & Cognition,Adults,Support for Memory and Cognition 65 and over,Income,Client Contribution - Residential,ARIA HEALTHCARE GROUP LTD,CO4 ,20/03/2024,-327.42
132098234,Physical Support,Adults,Physical Support 65 and over,Income,Client Contribution - Residential,ARIA HEALTHCARE GROUP LTD,CO4 ,20/03/2024,-239.80
130318319,Physical Support,Adults,Physical Support 65 and over,3rd Party Payments,Nursing Care,ARIA HEALTHCARE GROUP LTD,CO4 ,13/03/2024,"3,750.00"
130318319,Physical Support,Adults,Physical Support 65 and over,3rd Party Payments,Residential Care,ARIA HEALTHCARE GROUP LTD,CO4 ,13/03/2024,997.00
130318319,Physical Support,Adults,Physical Support 65 and over,Income,Client Contribution - Nursing,ARIA HEALTHCARE GROUP LTD,CO4 ,13/03/2024,-658.50
130318318,Mental Health,Adults,Mental Health 65 and over,3rd Party Payments,Nursing Care,ARIA HEALTHCARE GROUP LTD,CO4 ,13/03/2024,"1,500.00"
132098234,Physical Support,Adults,Physical Support 65 and over,Income,Client Contribution - Residential,ARIA HEALTHCARE GROUP LTD,CO4 ,20/03/2024,-610.40
132098234,Physical Support,Adults,Physical Support 65 and over,3rd Party Payments,Residential Care,ARIA HEALTHCARE GROUP LTD,CO4 ,20/03/2024,"-2,991.00"
130318319,Physical Support,Adults,Physical Support 65 and over,3rd Party Payments,Residential Care,ARIA HEALTHCARE GROUP LTD,CO4 ,13/03/2024,"2,991.00"
132098234,Memory & Cognition,Adults,Support for Memory and Cognition 65 and over,3rd Party Payments,Residential Care,ARIA HEALTHCARE GROUP LTD,CO4 ,20/03/2024,"3,988.00"
130318319,Physical Support,Adults,Physical Support 65 and over,3rd Party Payments,Nursing Care,ARIA HEALTHCARE GROUP LTD,CO4 ,13/03/2024,"1,250.00"
130318319,Physical Support,Adults,Physical Support 65 and over,Income,Client Contribution - Nursing,ARIA HEALTHCARE GROUP LTD,CO4 ,13/03/2024,-219.50
130318318,Mental Health,Adults,Mental Health 65 and over,3rd Party Payments,Nursing Care,ARIA HEALTHCARE GROUP LTD,CO4 ,13/03/2024,"4,500.00"
131929233,Lydiard Park,Culture & Heritage,Lydiard : Hotel Operations,Supplies and Services,Liquid,ARKELLS BREWERY LTD,SN2 ,20/03/2024,572.11
128452233,Lydiard Park,Culture & Heritage,Lydiard : Hotel Operations,Supplies and Services,Liquid,ARKELLS BREWERY LTD,SN2 ,01/03/2024,684.62
128961234,Lydiard Park,Culture & Heritage,Lydiard : Hotel Operations,Supplies and Services,Liquid,ARKELLS BREWERY LTD,SN2 ,06/03/2024,"1,720.26"
131928233,Lydiard Park,Culture & Heritage,Lydiard : Hotel Operations,Supplies and Services,Liquid,ARKELLS BREWERY LTD,SN2 ,20/03/2024,670.41
130202233,Streetsmart,Streetsmart,Waterside Fleet Hires,Transport Costs,Vehicle Hire / Contract,ARNOLD PLANT HIRE LIMITED,SK6 ,11/03/2024,"4,830.00"
130202234,Streetsmart,Streetsmart,Waterside Fleet Hires,Transport Costs,Vehicle Hire / Contract,ARNOLD PLANT HIRE LIMITED,SK6 ,11/03/2024,"1,659.00"
130202236,Streetsmart,Streetsmart,Waterside Fleet Hires,Transport Costs,Vehicle Hire / Contract,ARNOLD PLANT HIRE LIMITED,SK6 ,11/03/2024,"1,470.00"
130202235,Streetsmart,Streetsmart,Waterside Fleet Hires,Transport Costs,Vehicle Hire / Contract,ARNOLD PLANT HIRE LIMITED,SK6 ,11/03/2024,"1,113.00"
128859233,Insurance Team,Finance,Insurance,Premises Costs,Insurance - Premises,ARTHUR J GALLAGHER (UK) LTD T/A GALLAGHER,SN1 ,06/03/2024,"617,592.86"
130318316,Mental Health,Adults,Mental Health 65 and over,3rd Party Payments,Residential Care,ARTI CARE HOMES (GLOUCESTER) LIMITED,WD7 ,13/03/2024,"3,600.00"
130318316,Mental Health,Adults,Mental Health 65 and over,3rd Party Payments,Residential Care,ARTI CARE HOMES (GLOUCESTER) LIMITED,WD7 ,13/03/2024,"1,200.00"
130276233,Town Centre,"Economy, Growth and Place",Town Centre Market,Capital,Professional Fees,ARTSITE LIMITED,SN1 ,13/03/2024,"15,000.00"
130318269,Mental Health,Adults,Mental Health 18-64,Income,Client Contribution - Residential,ASH VIEW HOUSE,BS15,13/03/2024,-104.70
130318269,Mental Health,Adults,Mental Health 18-64,3rd Party Payments,Residential Care,ASH VIEW HOUSE,BS15,13/03/2024,"1,998.43"
130318269,Mental Health,Adults,Mental Health 18-64,3rd Party Payments,Residential Care,ASH VIEW HOUSE,BS15,13/03/2024,"5,995.29"
130318269,Mental Health,Adults,Mental Health 18-64,Income,Client Contribution - Residential,ASH VIEW HOUSE,BS15,13/03/2024,-314.10
130307233,Mental Health,Adults,Mental Health 65 and over,Income,Client Contribution - Residential,ASHBURY LODGE,SN3 ,13/03/2024,-716.83
130307233,Mental Health,Adults,Mental Health 65 and over,Income,Client Contribution - Residential,ASHBURY LODGE,SN3 ,13/03/2024,-518.40
130307233,Mental Health,Adults,Mental Health 65 and over,Income,Client Contribution - Residential,ASHBURY LODGE,SN3 ,13/03/2024,-661.23
130307233,Physical Support,Adults,Physical Support 65 and over,Income,Client Contribution - Residential,ASHBURY LODGE,SN3 ,13/03/2024,-518.40
130307233,Physical Support,Adults,Physical Support 65 and over,Income,Client Contribution - Residential,ASHBURY LODGE,SN3 ,13/03/2024,-548.07
130307233,Physical Support,Adults,Physical Support 65 and over,Income,Client Contribution - Residential,ASHBURY LODGE,SN3 ,13/03/2024,-981.12
130307233,Physical Support,Adults,Physical Support 65 and over,3rd Party Payments,Residential Care,ASHBURY LODGE,SN3 ,13/03/2024,512.02
130307233,Physical Support,Adults,Physical Support 65 and over,Income,Client Contribution - Residential,ASHBURY LODGE,SN3 ,13/03/2024,-191.20
130307233,Physical Support,Adults,Physical Support 65 and over,Income,Client Contribution - Residential,ASHBURY LODGE,SN3 ,13/03/2024,-573.60
130307233,Physical Support,Adults,Physical Support 65 and over,Income,Client Contribution - Residential,ASHBURY LODGE,SN3 ,13/03/2024,-296.22
130307233,Physical Support,Adults,Physical Support 65 and over,3rd Party Payments,Residential Care,ASHBURY LODGE,SN3 ,13/03/2024,"3,024.00"
130307233,Mental Health,Adults,Mental Health 65 and over,Income,Client Contribution - Residential,ASHBURY LODGE,SN3 ,13/03/2024,-172.80
130307233,Mental Health,Adults,Mental Health 65 and over,Income,Client Contribution - Residential,ASHBURY LODGE,SN3 ,13/03/2024,-220.41
130307233,Physical Support,Adults,Physical Support 65 and over,Income,Client Contribution - Residential,ASHBURY LODGE,SN3 ,13/03/2024,-733.83
130307233,Physical Support,Adults,Physical Support 65 and over,3rd Party Payments,Residential Care,ASHBURY LODGE,SN3 ,13/03/2024,"2,150.49"
130307233,Physical Support,Adults,Physical Support 65 and over,Income,Client Contribution - Residential,ASHBURY LODGE,SN3 ,13/03/2024,-172.80
130307233,Physical Support,Adults,Physical Support 65 and over,Income,Client Contribution - Residential,ASHBURY LODGE,SN3 ,13/03/2024,-182.69
130307233,Physical Support,Adults,Physical Support 65 and over,Income,Client Contribution - Residential,ASHBURY LODGE,SN3 ,13/03/2024,-327.04
130307233,Physical Support,Adults,Physical Support 65 and over,3rd Party Payments,Residential Care,ASHBURY LODGE,SN3 ,13/03/2024,"2,867.32"
130307233,Mental Health,Adults,Mental Health 65 and over,3rd Party Payments,Residential Care,ASHBURY LODGE,SN3 ,13/03/2024,"2,150.49"
130307233,Mental Health,Adults,Mental Health 65 and over,3rd Party Payments,Residential Care,ASHBURY LODGE,SN3 ,13/03/2024,716.83
130307233,Physical Support,Adults,Physical Support 65 and over,Income,Client Contribution - Residential,ASHBURY LODGE,SN3 ,13/03/2024,-601.35
130307233,Physical Support,Adults,Physical Support 65 and over,3rd Party Payments,Residential Care,ASHBURY LODGE,SN3 ,13/03/2024,"1,008.00"
130307233,Mental Health,Adults,Mental Health 65 and over,3rd Party Payments,Residential Care,ASHBURY LODGE,SN3 ,13/03/2024,"3,000.00"
130307233,Mental Health,Adults,Mental Health 65 and over,3rd Party Payments,Residential Care,ASHBURY LODGE,SN3 ,13/03/2024,"1,000.00"
130307233,Physical Support,Adults,Physical Support 65 and over,Income,Client Contribution - Residential,ASHBURY LODGE,SN3 ,13/03/2024,-170.80
130307233,Physical Support,Adults,Physical Support 65 and over,Income,Client Contribution - Residential,ASHBURY LODGE,SN3 ,13/03/2024,-200.45
130307233,Physical Support,Adults,Physical Support 65 and over,Income,Client Contribution - Residential,ASHBURY LODGE,SN3 ,13/03/2024,-844.29
130307233,Mental Health,Adults,Mental Health 65 and over,3rd Party Payments,Residential Care,ASHBURY LODGE,SN3 ,13/03/2024,"2,241.72"
130307233,Physical Support,Adults,Physical Support 65 and over,Income,Client Contribution - Residential,ASHBURY LODGE,SN3 ,13/03/2024,-164.42
130307233,Physical Support,Adults,Physical Support 65 and over,Income,Client Contribution - Residential,ASHBURY LODGE,SN3 ,13/03/2024,-493.26
130307233,Physical Support,Adults,Physical Support 65 and over,Income,Client Contribution - Residential,ASHBURY LODGE,SN3 ,13/03/2024,-244.61
130307233,Physical Support,Adults,Physical Support 65 and over,Income,Client Contribution - Residential,ASHBURY LODGE,SN3 ,13/03/2024,-281.43
130307233,Physical Support,Adults,Physical Support 65 and over,Income,Client Contribution - Residential,ASHBURY LODGE,SN3 ,13/03/2024,-664.95
130307233,Physical Support,Adults,Physical Support 65 and over,Income,Client Contribution - Residential,ASHBURY LODGE,SN3 ,13/03/2024,-221.65
130307233,Physical Support,Adults,Physical Support 65 and over,3rd Party Payments,Residential Care,ASHBURY LODGE,SN3 ,13/03/2024,716.83
130307233,Mental Health,Adults,Mental Health 65 and over,3rd Party Payments,Residential Care,ASHBURY LODGE,SN3 ,13/03/2024,747.24
130307233,Physical Support,Adults,Physical Support 65 and over,Income,Client Contribution - Residential,ASHBURY LODGE,SN3 ,13/03/2024,-512.40
130306233,Physical Support,Adults,Physical Support 65 and over,Income,Client Contribution - Nursing,ASHGROVE HOUSE NURSING HOME,SN5 ,13/03/2024,-163.76
130306233,Physical Support,Adults,Physical Support 65 and over,3rd Party Payments,Nursing Care,ASHGROVE HOUSE NURSING HOME,SN5 ,13/03/2024,"4,560.00"
130306233,Physical Support,Adults,Physical Support 65 and over,Income,Client Contribution - Nursing,ASHGROVE HOUSE NURSING HOME,SN5 ,13/03/2024,-491.28
130306233,Physical Support,Adults,Physical Support 65 and over,3rd Party Payments,Nursing Care,ASHGROVE HOUSE NURSING HOME,SN5 ,13/03/2024,"1,520.00"
131258311,Physical Support,Adults,Physical Support 18 - 64,Transfer Payments,Personal Budget - Direct Payments - Domiciliary Care,REDACTED PERSONAL DATA,SN25,15/03/2024,6.12
131258311,Physical Support,Adults,Physical Support 18 - 64,Transfer Payments,Personal Budget - Direct Payments - Other,REDACTED PERSONAL DATA,SN25,15/03/2024,12.00
131258311,Physical Support,Adults,Physical Support 18 - 64,Transfer Payments,Personal Budget - Direct Payments - Domiciliary Care,REDACTED PERSONAL DATA,SN25,15/03/2024,759.78
128265233,Libraries,"Education, Inclusion and Skills",Library Delivery,Supplies and Services,Materials,ASKEWS AND HOLTS LIBRARY SERVICES LIMITED,PR1 ,01/03/2024,"1,017.13"
131484233,Libraries,"Education, Inclusion and Skills",Library Delivery,Supplies and Services,Materials,ASKEWS AND HOLTS LIBRARY SERVICES LIMITED,PR1 ,18/03/2024,"1,412.94"
129463234,Libraries,"Education, Inclusion and Skills",Library Delivery,Supplies and Services,Materials,ASKEWS AND HOLTS LIBRARY SERVICES LIMITED,PR1 ,08/03/2024,"1,567.38"
130706233,Libraries,"Education, Inclusion and Skills",Library Delivery,Supplies and Services,Materials,ASKEWS AND HOLTS LIBRARY SERVICES LIMITED,PR1 ,13/03/2024,"1,017.97"
132723233,Libraries,"Education, Inclusion and Skills",Library Delivery,Supplies and Services,Materials,ASKEWS AND HOLTS LIBRARY SERVICES LIMITED,PR1 ,22/03/2024,841.11
130318242,Learning Disabilities,Adults,Learning Disability 18 - 64,3rd Party Payments,Residential Care,ASPECTS & MILESTONES TRUST,BS16,13/03/2024,"5,223.66"
130318242,Learning Disabilities,Adults,Learning Disability 18 - 64,3rd Party Payments,Residential Care,ASPECTS & MILESTONES TRUST,BS16,13/03/2024,"1,741.22"
130318242,Learning Disabilities,Adults,Learning Disability 18 - 64,Income,Client Contribution - Residential,ASPECTS & MILESTONES TRUST,BS16,13/03/2024,-347.40
130318242,Learning Disabilities,Adults,Learning Disability 18 - 64,Income,Client Contribution - Residential,ASPECTS & MILESTONES TRUST,BS16,13/03/2024,-115.80
131209233,Mental Health,Adults,Mental Health 65 and over,3rd Party Payments,Supported Lodgings (Childrens)/Supported Living (Adults),ASPECTS 2 LTD,B70 ,15/03/2024,724.80
131209233,Physical Support,Adults,Physical Support 18 - 64,3rd Party Payments,Supported Lodgings (Childrens)/Supported Living (Adults),ASPECTS 2 LTD,B70 ,15/03/2024,"2,100.00"
128889233,Disabled Children,Children & Families,DCT Overnight Short Breaks,3rd Party Payments,Respite Care,ASPRIS CHILDREN'S SERVICES,DL1 ,06/03/2024,"10,800.00"
131840233,High Needs Block,Dedicated Schools Grant (DSG),Out of Borough School Fees,3rd Party Payments,Independent Special School- Pre 16,ASPRIS CHILDREN'S SERVICES,DL1 ,20/03/2024,"35,095.24"
130318291,Learning Disabilities,Adults,Learning Disability 18 - 64,Income,Client Contribution - Residential,ASTON CARE LIMITED,RG30,13/03/2024,-102.70
130318291,Learning Disabilities,Adults,Learning Disability 18 - 64,Income,Client Contribution - Residential,ASTON CARE LIMITED,RG30,13/03/2024,-440.55
130318290,Learning Disabilities,Adults,Learning Disability 18 - 64,3rd Party Payments,Residential Care,ASTON CARE LIMITED,RG30,13/03/2024,"7,300.35"
130318291,Learning Disabilities,Adults,Learning Disability 18 - 64,Income,Client Contribution - Residential,ASTON CARE LIMITED,RG30,13/03/2024,-146.85
130318290,Learning Disabilities,Adults,Learning Disability 18 - 64,Income,Client Contribution - Residential,ASTON CARE LIMITED,RG30,13/03/2024,-197.20
130318291,Learning Disabilities,Adults,Learning Disability 18 - 64,Income,Client Contribution - Residential,ASTON CARE LIMITED,RG30,13/03/2024,-163.86
130318291,Learning Disabilities,Adults,Learning Disability 18 - 64,3rd Party Payments,Residential Care,ASTON CARE LIMITED,RG30,13/03/2024,"6,216.00"
130318291,Learning Disabilities,Adults,Learning Disability 18 - 64,3rd Party Payments,Residential Care,ASTON CARE LIMITED,RG30,13/03/2024,"6,006.00"
130318291,Learning Disabilities,Adults,Learning Disability 18 - 64,3rd Party Payments,Residential Care,ASTON CARE LIMITED,RG30,13/03/2024,"1,822.00"
130318291,Learning Disabilities,Adults,Learning Disability 18 - 64,Income,Client Contribution - Residential,ASTON CARE LIMITED,RG30,13/03/2024,-308.10
130318291,Learning Disabilities,Adults,Learning Disability 18 - 64,Income,Client Contribution - Residential,ASTON CARE LIMITED,RG30,13/03/2024,-507.30
130318291,Learning Disabilities,Adults,Learning Disability 18 - 64,Income,Client Contribution - Residential,ASTON CARE LIMITED,RG30,13/03/2024,-169.10
130318291,Learning Disabilities,Adults,Learning Disability 18 - 64,Income,Client Contribution - Residential,ASTON CARE LIMITED,RG30,13/03/2024,-491.58
130318290,Learning Disabilities,Adults,Learning Disability 18 - 64,3rd Party Payments,Residential Care,ASTON CARE LIMITED,RG30,13/03/2024,"2,433.45"
130318291,Learning Disabilities,Adults,Learning Disability 18 - 64,3rd Party Payments,Residential Care,ASTON CARE LIMITED,RG30,13/03/2024,"5,466.00"
130318290,Learning Disabilities,Adults,Learning Disability 18 - 64,Income,Client Contribution - Residential,ASTON CARE LIMITED,RG30,13/03/2024,-591.60
130318291,Learning Disabilities,Adults,Learning Disability 18 - 64,3rd Party Payments,Residential Care,ASTON CARE LIMITED,RG30,13/03/2024,"2,002.00"
130318291,Learning Disabilities,Adults,Learning Disability 18 - 64,3rd Party Payments,Residential Care,ASTON CARE LIMITED,RG30,13/03/2024,"2,072.00"
133905233,Education,"Education, Inclusion and Skills","Holiday, Activities & Food Grant",3rd Party Payments,Contracts - Child Care,ATBSHOP LTD,SN2 ,27/03/2024,"6,912.00"
132816233,Highways & Transport,Highways & Transport,Project Delivery,Supplies and Services,Services,ATKINSREALIS UK LIMITED,KT18,22/03/2024,"16,251.58"
132815234,Highways & Transport,Highways & Transport,Project Delivery,Supplies and Services,Services,ATKINSREALIS UK LIMITED,KT18,22/03/2024,"1,066.89"
129467233,Senior Management Team,Children & Families,Senior Management Team - Staffing,Employees,Temporary / Agency - by Accounts Payable,ATTENTI LTD,EC2R,08/03/2024,"3,540.00"
132151233,Safeguarding and Quality Assurance,Children & Families,Quality Assurance Team,Employees,Temporary / Agency - by Accounts Payable,ATTENTI LTD,EC2R,20/03/2024,"2,655.00"
129419233,Safeguarding and Quality Assurance,Children & Families,Quality Assurance Team,Employees,Temporary / Agency - by Accounts Payable,ATTENTI LTD,EC2R,08/03/2024,"2,360.00"
129411236,Safeguarding and Quality Assurance,Children & Families,Quality Assurance Team,Employees,Temporary / Agency - by Accounts Payable,ATTENTI LTD,EC2R,08/03/2024,"2,360.00"
129227233,Safeguarding and Quality Assurance,Children & Families,Quality Assurance Team,Employees,Temporary / Agency - by Accounts Payable,ATTENTI LTD,EC2R,06/03/2024,"2,360.00"
129256233,Safeguarding and Quality Assurance,Children & Families,Quality Assurance Team,Employees,Temporary / Agency - by Accounts Payable,ATTENTI LTD,EC2R,08/03/2024,"2,655.00"
133373234,Senior Management Team,Children & Families,Senior Management Team - Staffing,Employees,Temporary / Agency - by Accounts Payable,ATTENTI LTD,EC2R,25/03/2024,"3,540.00"
129436233,Senior Management Team,Children & Families,Senior Management Team - Staffing,Employees,Temporary / Agency - by Accounts Payable,ATTENTI LTD,EC2R,08/03/2024,"2,832.00"
129468233,Senior Management Team,Children & Families,Senior Management Team - Staffing,Employees,Temporary / Agency - by Accounts Payable,ATTENTI LTD,EC2R,08/03/2024,"25,375.81"
129411238,Senior Management Team,Children & Families,Family Safeguarding Model,Employees,Temporary / Agency - by Accounts Payable,ATTENTI LTD,EC2R,08/03/2024,"1,888.00"
132143233,Safeguarding and Quality Assurance,Children & Families,Quality Assurance Team,Employees,Temporary / Agency - by Accounts Payable,ATTENTI LTD,EC2R,20/03/2024,"2,360.00"
130609244,Senior Management Team,Children & Families,Senior Management Team - Staffing,Employees,Temporary / Agency - by Accounts Payable,ATTENTI LTD,EC2R,13/03/2024,"25,375.81"
129492234,Senior Management Team,Children & Families,Family Safeguarding Model,Employees,Temporary / Agency - by Accounts Payable,ATTENTI LTD,EC2R,08/03/2024,"2,360.00"
132147233,Social Care,Children & Families,Practice Development,Employees,Temporary / Agency - by Accounts Payable,ATTENTI LTD,EC2R,20/03/2024,"1,888.00"
129493235,Social Care,Children & Families,Practice Development,Employees,Temporary / Agency - by Accounts Payable,ATTENTI LTD,EC2R,08/03/2024,"2,400.00"
129383233,Social Care,Children & Families,Practice Development,Employees,Temporary / Agency - by Accounts Payable,ATTENTI LTD,EC2R,08/03/2024,"1,888.00"
132124233,Youth Offending,Early Intervention & Prevention,YJS - Effective Practise,Employees,Temporary / Agency - by Accounts Payable,ATTENTI LTD,EC2R,20/03/2024,"25,375.81"
129433233,Senior Management Team,Children & Families,Family Safeguarding Model,Employees,Temporary / Agency - by Accounts Payable,ATTENTI LTD,EC2R,08/03/2024,"2,950.00"
131865233,Social Care,Children & Families,Practice Development,Employees,Temporary / Agency - by Accounts Payable,ATTENTI LTD,EC2R,20/03/2024,"2,400.00"
129418233,Social Care,Children & Families,Practice Development,Employees,Temporary / Agency - by Accounts Payable,ATTENTI LTD,EC2R,08/03/2024,"1,920.00"
131863233,Social Care,Children & Families,Practice Development,Employees,Temporary / Agency - by Accounts Payable,ATTENTI LTD,EC2R,20/03/2024,"1,416.00"
129497233,Social Care,Children & Families,Practice Development,Employees,Temporary / Agency - by Accounts Payable,ATTENTI LTD,EC2R,08/03/2024,"1,416.00"
133141233,Safeguarding and Quality Assurance,Children & Families,Quality Assurance Team,Employees,Temporary / Agency - by Accounts Payable,ATTENTI LTD,EC2R,22/03/2024,"2,360.00"
130284233,Safeguarding and Quality Assurance,Children & Families,Quality Assurance Team,Employees,Temporary / Agency - by Accounts Payable,ATTENTI LTD,EC2R,13/03/2024,"2,360.00"
129458233,Safeguarding and Quality Assurance,Children & Families,Quality Assurance Team,Employees,Temporary / Agency - by Accounts Payable,ATTENTI LTD,EC2R,08/03/2024,"2,655.00"
129407233,Safeguarding and Quality Assurance,Children & Families,Quality Assurance Team,Employees,Temporary / Agency - by Accounts Payable,ATTENTI LTD,EC2R,08/03/2024,"2,360.00"
129446235,Safeguarding and Quality Assurance,Children & Families,Quality Assurance Team,Employees,Temporary / Agency - by Accounts Payable,ATTENTI LTD,EC2R,08/03/2024,"2,360.00"
129438233,Safeguarding and Quality Assurance,Children & Families,Quality Assurance Team,Employees,Temporary / Agency - by Accounts Payable,ATTENTI LTD,EC2R,08/03/2024,"2,360.00"
129416235,Safeguarding and Quality Assurance,Children & Families,Quality Assurance Team,Employees,Temporary / Agency - by Accounts Payable,ATTENTI LTD,EC2R,08/03/2024,"2,360.00"
129411233,Safeguarding and Quality Assurance,Children & Families,Quality Assurance Team,Employees,Temporary / Agency - by Accounts Payable,ATTENTI LTD,EC2R,08/03/2024,"2,655.00"
132145233,Social Care,Children & Families,Practice Development,Employees,Temporary / Agency - by Accounts Payable,ATTENTI LTD,EC2R,20/03/2024,"2,400.00"
129477234,Social Care,Children & Families,Practice Development,Employees,Temporary / Agency - by Accounts Payable,ATTENTI LTD,EC2R,08/03/2024,"2,400.00"
129423233,Social Care,Children & Families,Practice Development,Employees,Temporary / Agency - by Accounts Payable,ATTENTI LTD,EC2R,08/03/2024,"1,416.00"
129254233,Social Care,Children & Families,Practice Development,Employees,Temporary / Agency - by Accounts Payable,ATTENTI LTD,EC2R,08/03/2024,"3,540.00"
129499233,Safeguarding and Quality Assurance,Children & Families,Quality Assurance Team,Employees,Temporary / Agency - by Accounts Payable,ATTENTI LTD,EC2R,08/03/2024,"1,888.00"
129435233,Safeguarding and Quality Assurance,Children & Families,Quality Assurance Team,Employees,Temporary / Agency - by Accounts Payable,ATTENTI LTD,EC2R,08/03/2024,"2,124.00"
129495234,Senior Management Team,Children & Families,Senior Management Team - Staffing,Employees,Temporary / Agency - by Accounts Payable,ATTENTI LTD,EC2R,08/03/2024,"3,540.00"
132620233,Senior Management Team,Children & Families,Family Safeguarding Model,Employees,Temporary / Agency - by Accounts Payable,ATTENTI LTD,EC2R,22/03/2024,"1,652.00"
130256233,Senior Management Team,Children & Families,Family Safeguarding Model,Employees,Temporary / Agency - by Accounts Payable,ATTENTI LTD,EC2R,11/03/2024,"2,655.00"
129427233,Senior Management Team,Children & Families,Family Safeguarding Model,Employees,Temporary / Agency - by Accounts Payable,ATTENTI LTD,EC2R,08/03/2024,"2,950.00"
129465233,Senior Management Team,Children & Families,Family Safeguarding Model,Employees,Temporary / Agency - by Accounts Payable,ATTENTI LTD,EC2R,08/03/2024,"2,360.00"
129795233,Social Care,Children & Families,Practice Development,Employees,Temporary / Agency - by Accounts Payable,ATTENTI LTD,EC2R,08/03/2024,"1,888.00"
129397233,Social Care,Children & Families,Practice Development,Employees,Temporary / Agency - by Accounts Payable,ATTENTI LTD,EC2R,08/03/2024,"1,416.00"
129488233,Safeguarding and Quality Assurance,Children & Families,Quality Assurance Team,Employees,Temporary / Agency - by Accounts Payable,ATTENTI LTD,EC2R,08/03/2024,"2,124.00"
130398234,Senior Management Team,Children & Families,Senior Management Team - Staffing,Employees,Temporary / Agency - by Accounts Payable,ATTENTI LTD,EC2R,13/03/2024,"3,540.00"
129442233,Senior Management Team,Children & Families,Family Safeguarding Model,Employees,Temporary / Agency - by Accounts Payable,ATTENTI LTD,EC2R,08/03/2024,"2,360.00"
129405234,Social Care,Children & Families,Practice Development,Employees,Temporary / Agency - by Accounts Payable,ATTENTI LTD,EC2R,08/03/2024,"2,400.00"
129385233,Social Care,Children & Families,Practice Development,Employees,Temporary / Agency - by Accounts Payable,ATTENTI LTD,EC2R,08/03/2024,"2,400.00"
129390233,Safeguarding and Quality Assurance,Children & Families,Quality Assurance Team,Employees,Temporary / Agency - by Accounts Payable,ATTENTI LTD,EC2R,08/03/2024,"2,360.00"
129790233,Senior Management Team,Children & Families,Senior Management Team - Staffing,Employees,Temporary / Agency - by Accounts Payable,ATTENTI LTD,EC2R,08/03/2024,"3,184.00"
129403233,Senior Management Team,Children & Families,Family Safeguarding Model,Employees,Temporary / Agency - by Accounts Payable,ATTENTI LTD,EC2R,08/03/2024,"1,652.00"
132617233,Senior Management Team,Children & Families,Family Safeguarding Model,Employees,Temporary / Agency - by Accounts Payable,ATTENTI LTD,EC2R,22/03/2024,"2,950.00"
129491233,Senior Management Team,Children & Families,Family Safeguarding Model,Employees,Temporary / Agency - by Accounts Payable,ATTENTI LTD,EC2R,08/03/2024,"2,950.00"
129393233,Senior Management Team,Children & Families,Family Safeguarding Model,Employees,Temporary / Agency - by Accounts Payable,ATTENTI LTD,EC2R,08/03/2024,"2,950.00"
129469233,Social Care,Children & Families,Practice Development,Employees,Temporary / Agency - by Accounts Payable,ATTENTI LTD,EC2R,08/03/2024,"1,416.00"
129430233,Safeguarding and Quality Assurance,Children & Families,Quality Assurance Team,Employees,Temporary / Agency - by Accounts Payable,ATTENTI LTD,EC2R,08/03/2024,"2,360.00"
129424233,Safeguarding and Quality Assurance,Children & Families,Quality Assurance Team,Employees,Temporary / Agency - by Accounts Payable,ATTENTI LTD,EC2R,08/03/2024,"1,888.00"
131468233,Senior Management Team,Children & Families,Senior Management Team - Staffing,Employees,Temporary / Agency - by Accounts Payable,ATTENTI LTD,EC2R,18/03/2024,"25,375.81"
130399233,Senior Management Team,Children & Families,Senior Management Team - Staffing,Employees,Temporary / Agency - by Accounts Payable,ATTENTI LTD,EC2R,13/03/2024,"3,980.00"
129437233,Senior Management Team,Children & Families,Family Safeguarding Model,Employees,Temporary / Agency - by Accounts Payable,ATTENTI LTD,EC2R,08/03/2024,"2,360.00"
129399233,Safeguarding and Quality Assurance,Children & Families,Quality Assurance Team,Employees,Temporary / Agency - by Accounts Payable,ATTENTI LTD,EC2R,08/03/2024,"1,593.00"
129464233,Senior Management Team,Children & Families,Senior Management Team - Staffing,Employees,Temporary / Agency - by Accounts Payable,ATTENTI LTD,EC2R,08/03/2024,"3,540.00"
130318308,Physical Support,Adults,Physical Support 65 and over,Income,Client Contribution - Nursing,AURA CARE LIVING CIRENCESTER LTD,GL7 ,13/03/2024,-518.40
128250233,Mental Health,Adults,Mental Health 18-64,3rd Party Payments,Residential Care,AURA CARE LIVING CIRENCESTER LTD,GL7 ,01/03/2024,"11,088.00"
130318308,Mental Health,Adults,Mental Health 65 and over,3rd Party Payments,Residential Care,AURA CARE LIVING CIRENCESTER LTD,GL7 ,13/03/2024,"4,578.00"
130318308,Mental Health,Adults,Mental Health 18-64,3rd Party Payments,Nursing Care,AURA CARE LIVING CIRENCESTER LTD,GL7 ,13/03/2024,"9,454.50"
128250233,Mental Health,Adults,Mental Health 18-64,3rd Party Payments,Residential Care,AURA CARE LIVING CIRENCESTER LTD,GL7 ,01/03/2024,"8,316.00"
130318308,Mental Health,Adults,Mental Health 65 and over,3rd Party Payments,Residential Care,AURA CARE LIVING CIRENCESTER LTD,GL7 ,13/03/2024,"1,526.00"
128250233,Mental Health,Adults,Mental Health 18-64,3rd Party Payments,Residential Care,AURA CARE LIVING CIRENCESTER LTD,GL7 ,01/03/2024,"5,250.00"
128250233,Mental Health,Adults,Mental Health 18-64,3rd Party Payments,Residential Care,AURA CARE LIVING CIRENCESTER LTD,GL7 ,01/03/2024,"4,750.00"
130318308,Mental Health,Adults,Mental Health 18-64,3rd Party Payments,Residential Care,AURA CARE LIVING CIRENCESTER LTD,GL7 ,13/03/2024,"4,800.00"
128250233,Mental Health,Adults,Mental Health 18-64,3rd Party Payments,Residential Care,AURA CARE LIVING CIRENCESTER LTD,GL7 ,01/03/2024,"5,148.00"
128250233,Mental Health,Adults,Mental Health 18-64,3rd Party Payments,Residential Care,AURA CARE LIVING CIRENCESTER LTD,GL7 ,01/03/2024,"7,000.00"
130318308,Mental Health,Adults,Mental Health 18-64,3rd Party Payments,Residential Care,AURA CARE LIVING CIRENCESTER LTD,GL7 ,13/03/2024,"8,800.50"
130318308,Mental Health,Adults,Mental Health 18-64,3rd Party Payments,Residential Care,AURA CARE LIVING CIRENCESTER LTD,GL7 ,13/03/2024,"1,600.00"
130318308,Physical Support,Adults,Physical Support 65 and over,Income,Client Contribution - Nursing,AURA CARE LIVING CIRENCESTER LTD,GL7 ,13/03/2024,-456.00
130318308,Physical Support,Adults,Physical Support 65 and over,Income,Client Contribution - Residential,AURA CARE LIVING CIRENCESTER LTD,GL7 ,13/03/2024,-255.37
130318308,Physical Support,Adults,Physical Support 65 and over,3rd Party Payments,Nursing Care,AURA CARE LIVING CIRENCESTER LTD,GL7 ,13/03/2024,"1,471.50"
130318308,Physical Support,Adults,Physical Support 65 and over,Income,Client Contribution - Nursing,AURA CARE LIVING CIRENCESTER LTD,GL7 ,13/03/2024,-172.80
130318308,Mental Health,Adults,Mental Health 18-64,3rd Party Payments,Nursing Care,AURA CARE LIVING CIRENCESTER LTD,GL7 ,13/03/2024,"3,151.50"
128250233,Mental Health,Adults,Mental Health 18-64,3rd Party Payments,Residential Care,AURA CARE LIVING CIRENCESTER LTD,GL7 ,01/03/2024,"2,036.57"
130318308,Physical Support,Adults,Physical Support 65 and over,3rd Party Payments,Nursing Care,AURA CARE LIVING CIRENCESTER LTD,GL7 ,13/03/2024,"1,199.00"
130318308,Physical Support,Adults,Physical Support 65 and over,Income,Client Contribution - Nursing,AURA CARE LIVING CIRENCESTER LTD,GL7 ,13/03/2024,-152.00
130318308,Physical Support,Adults,Physical Support 65 and over,Income,Client Contribution - Residential,AURA CARE LIVING CIRENCESTER LTD,GL7 ,13/03/2024,-766.11
130318308,Physical Support,Adults,Physical Support 65 and over,3rd Party Payments,Residential Care,AURA CARE LIVING CIRENCESTER LTD,GL7 ,13/03/2024,"3,106.50"
130318308,Physical Support,Adults,Physical Support 65 and over,3rd Party Payments,Residential Care,AURA CARE LIVING CIRENCESTER LTD,GL7 ,13/03/2024,"1,035.50"
130318308,Physical Support,Adults,Physical Support 65 and over,3rd Party Payments,Nursing Care,AURA CARE LIVING CIRENCESTER LTD,GL7 ,13/03/2024,"3,597.00"
130318308,Physical Support,Adults,Physical Support 65 and over,Income,Client Contribution - Nursing,AURA CARE LIVING CIRENCESTER LTD,GL7 ,13/03/2024,-183.91
130318308,Mental Health,Adults,Mental Health 18-64,3rd Party Payments,Residential Care,AURA CARE LIVING CIRENCESTER LTD,GL7 ,13/03/2024,"2,933.50"
130318308,Physical Support,Adults,Physical Support 65 and over,3rd Party Payments,Nursing Care,AURA CARE LIVING CIRENCESTER LTD,GL7 ,13/03/2024,"4,414.50"
130318308,Physical Support,Adults,Physical Support 65 and over,Income,Client Contribution - Nursing,AURA CARE LIVING CIRENCESTER LTD,GL7 ,13/03/2024,-551.73
132146233,High Needs Block,Dedicated Schools Grant (DSG),Out of Borough School Fees,3rd Party Payments,OLA Special schools- Pre 16,AURORA FOXES ACADEMY,GL2 ,20/03/2024,"22,400.66"
130318325,Learning Disabilities,Adults,Learning Disability 18 - 64,Income,Client Contribution - Residential,AUTISM UNLIMITED LTD,BH23,13/03/2024,-464.40
130318325,Learning Disabilities,Adults,Learning Disability 18 - 64,3rd Party Payments,Residential Care,AUTISM UNLIMITED LTD,BH23,13/03/2024,"2,067.01"
130318325,Learning Disabilities,Adults,Learning Disability 18 - 64,3rd Party Payments,Residential Care,AUTISM UNLIMITED LTD,BH23,13/03/2024,"6,201.03"
130318325,Learning Disabilities,Adults,Learning Disability 18 - 64,Income,Client Contribution - Residential,AUTISM UNLIMITED LTD,BH23,13/03/2024,-154.80
130318295,Learning Disabilities,Adults,Learning Disability 18 - 64,Income,Client Contribution - Residential,AUTONOMY LIFE LIMITED,SN12,13/03/2024,-157.14
130318295,Learning Disabilities,Adults,Learning Disability 18 - 64,Income,Client Contribution - Residential,AUTONOMY LIFE LIMITED,SN12,13/03/2024,-471.42
130318295,Learning Disabilities,Adults,Learning Disability 18 - 64,3rd Party Payments,Residential Care,AUTONOMY LIFE LIMITED,SN12,13/03/2024,"9,259.50"
130318295,Learning Disabilities,Adults,Learning Disability 18 - 64,3rd Party Payments,Residential Care,AUTONOMY LIFE LIMITED,SN12,13/03/2024,"3,086.50"
Corporate Card Transaction,Social Care,"Children, Families and Community Health Services",Placement - Care Leaver Team,Supplies and Services,Materials,Avanaflooring,,22/03/2024,687.00
Corporate Card Transaction,Social Care,"Children, Families and Community Health Services",Placement - Care Leaver Team,Supplies and Services,Materials,Avanaflooring,,26/03/2024,695.00
130708233,Property Management,Property,Property Assets,Supplies and Services,Fees,AVISON YOUNG (UK) LTD,B1 2,13/03/2024,"19,546.00"
129470233,Social Care,Children & Families,CP & CIN Social Work - South,Employees,Temporary / Agency - by Accounts Payable,AVON & WILTSHIRE MENTAL HEALTH PARTNERSHIP NHS TRUST,BA1 ,08/03/2024,"17,724.91"
129468236,Social Care,Children & Families,CP & CIN Social Work - South,Employees,Temporary / Agency - by Accounts Payable,AVON & WILTSHIRE MENTAL HEALTH PARTNERSHIP NHS TRUST,BA1 ,08/03/2024,"17,724.91"
130311233,Learning Disabilities,Adults,Learning Disability 18 - 64,Income,Client Contribution - Residential,AVON AUTISTIC FOUNDATION LTD,BS11,13/03/2024,-329.10
130311233,Learning Disabilities,Adults,Learning Disability 18 - 64,Income,Client Contribution - Residential,AVON AUTISTIC FOUNDATION LTD,BS11,13/03/2024,-109.70
130312233,Learning Disabilities,Adults,Learning Disability 18 - 64,Income,Client Contribution - Residential,AVON AUTISTIC FOUNDATION LTD,BS11,13/03/2024,-120.80
130311233,Learning Disabilities,Adults,Learning Disability 18 - 64,3rd Party Payments,Residential Care,AVON AUTISTIC FOUNDATION LTD,BS11,13/03/2024,"4,111.53"
130312233,Learning Disabilities,Adults,Learning Disability 18 - 64,Income,Client Contribution - Residential,AVON AUTISTIC FOUNDATION LTD,BS11,13/03/2024,-362.40
130311233,Learning Disabilities,Adults,Learning Disability 18 - 64,3rd Party Payments,Residential Care,AVON AUTISTIC FOUNDATION LTD,BS11,13/03/2024,"1,370.51"
130312233,Learning Disabilities,Adults,Learning Disability 18 - 64,3rd Party Payments,Residential Care,AVON AUTISTIC FOUNDATION LTD,BS11,13/03/2024,"5,751.24"
130312233,Learning Disabilities,Adults,Learning Disability 18 - 64,3rd Party Payments,Residential Care,AVON AUTISTIC FOUNDATION LTD,BS11,13/03/2024,"1,917.08"
132482300,Homelessness and Travellers,Housing Services,Private Sector Landlords,Transfer Payments,Payment of Costs,AVONPARK PROPERTIES LTD,SN3 ,25/03/2024,550.00
132469233,Homelessness and Travellers,Housing Services,Private Sector Landlords,Transfer Payments,Payment of Costs,AVONPARK PROPERTIES LTD,SN3 ,25/03/2024,780.00
130735233,Customer Strategy & Operations,"People, Culture and Organisational Resilience",Customer Services,Supplies and Services,Equipment,BACK CARE SOLUTIONS LTD,PR5 ,13/03/2024,913.00
130734233,Sheltered Accomodation,Special Services,Lilian Lock Gardens,Supplies and Services,Equipment,BACK CARE SOLUTIONS LTD,PR5 ,13/03/2024,"1,170.00"
131355234,Early Help,Early Intervention & Prevention,Children & Families Commissioning,Transport Costs,Mileage Allowance,BACK CARE SOLUTIONS LTD,PR5 ,15/03/2024,626.00
131332234,Early Help,Early Intervention & Prevention,Children & Families Commissioning,Transport Costs,Mileage Allowance,BACK CARE SOLUTIONS LTD,PR5 ,15/03/2024,436.00
130710233,Town Centre,"Economy, Growth and Place","No 7, 9 & 11 Carriage works @ Railway Village",Capital,Consultants,BAILEY PARTNERSHIP (CONSULTANTS) LLP,PL1 ,13/03/2024,"1,360.00"
133616233,Highways Schemes,Strategic Planning and Highways,School safe environment zones,Capital,Contractor Payments,BAILEY STREET FURNITURE GROUP LIMITED,SK10,25/03/2024,"1,857.60"
131135234,Licencing,Regulatory Services,Taxis & Private Hire,Supplies and Services,Testing / Inspection,BANSAL MOTORS,SN2 ,15/03/2024,"2,850.00"
130188289,Licencing,Regulatory Services,Taxis & Private Hire,Supplies and Services,Testing / Inspection,BANSAL MOTORS,SN2 ,11/03/2024,"3,300.00"
130189233,Licencing,Regulatory Services,Taxis & Private Hire,Supplies and Services,Testing / Inspection,BANSAL MOTORS,SN2 ,11/03/2024,"2,200.00"
130187233,Licencing,Regulatory Services,Taxis & Private Hire,Supplies and Services,Testing / Inspection,BANSAL MOTORS,SN2 ,11/03/2024,"2,200.00"
131136233,Licencing,Regulatory Services,Taxis & Private Hire,Supplies and Services,Testing / Inspection,BANSAL MOTORS,SN2 ,15/03/2024,"3,850.00"
131258623,Physical Support,Adults,Physical Support 65 and over,Transfer Payments,Personal Budget - Direct Payments - Domiciliary Care,REDACTED PERSONAL DATA,2969,15/03/2024,5.52
131258623,Physical Support,Adults,Physical Support 65 and over,Transfer Payments,Personal Budget - Direct Payments - Domiciliary Care,REDACTED PERSONAL DATA,2969,15/03/2024,714.42
131258623,Physical Support,Adults,Physical Support 65 and over,Income,Client Contribution - Personal Budget - DP,REDACTED PERSONAL DATA,2969,15/03/2024,-162.12
129813233,Early Years Block,Dedicated Schools Grant (DSG),Free Nursery Education Commissioning - three & four  year olds,3rd Party Payments,Contracts - Child Care,BARN OWL PRE-SCHOOL,SN25,13/03/2024,"6,191.78"
130998233,Libraries,"Education, Inclusion and Skills",Library Shop,Supplies and Services,Goods for resale,BARNES COACHES LTD,SN3 ,15/03/2024,724.32
131154233,School Transport,"Education, Inclusion and Skills",Mainstream School Transport,Transport Costs,Home to School Transport,BARNES COACHES LTD,SN3 ,15/03/2024,"7,968.00"
131154233,School Transport,"Education, Inclusion and Skills",Mainstream School Transport,Transport Costs,Home to School Transport,BARNES COACHES LTD,SN3 ,15/03/2024,597.76
130203235,Streetsmart,Streetsmart,StreetSmart Contracts & Strategic Planning,Supplies and Services,Services,BARTEC MUNICIPAL TECHNOLOGIES LTD,S75 ,11/03/2024,"6,990.00"
128438233,Streetsmart,Streetsmart,StreetSmart Contracts & Strategic Planning,Supplies and Services,Services,BARTEC MUNICIPAL TECHNOLOGIES LTD,S75 ,01/03/2024,"10,800.00"
128437233,Streetsmart,Streetsmart,StreetSmart Contracts & Strategic Planning,Supplies and Services,Services,BARTEC MUNICIPAL TECHNOLOGIES LTD,S75 ,01/03/2024,"37,280.00"
130203234,Streetsmart,Streetsmart,StreetSmart Contracts & Strategic Planning,Supplies and Services,Services,BARTEC MUNICIPAL TECHNOLOGIES LTD,S75 ,11/03/2024,"4,557.40"
128440233,Streetsmart,Streetsmart,StreetSmart Contracts & Strategic Planning,Supplies and Services,Services,BARTEC MUNICIPAL TECHNOLOGIES LTD,S75 ,01/03/2024,950.00
128439233,Streetsmart,Streetsmart,StreetSmart Contracts & Strategic Planning,Supplies and Services,Services,BARTEC MUNICIPAL TECHNOLOGIES LTD,S75 ,01/03/2024,"8,000.00"
130600246,DSG Other Funding,Dedicated Schools Grant (DSG),DFE Additional Grants,Supplies and Services,Payments to Educational Bodies,BEECHCROFT INFANT SCHOOL,SN2 ,13/03/2024,"2,392.50"
131263276,High Needs Block,Dedicated Schools Grant (DSG),SEN Resourcing Assessment Panel,3rd Party Payments,Top up funding - Maintained providers Pre 16,BEECHCROFT INFANT SCHOOL,SN2 ,15/03/2024,"5,355.17"
130199251,DSG Other Funding,Dedicated Schools Grant (DSG),DFE Additional Grants,3rd Party Payments,Payment of Pupil Premium to school,BEECHCROFT INFANT SCHOOL,SN2 ,13/03/2024,"8,346.00"
130599246,DSG Other Funding,Dedicated Schools Grant (DSG),DFE Additional Grants,Supplies and Services,Payments to Educational Bodies,BEECHCROFT INFANT SCHOOL,SN2 ,13/03/2024,885.94
130318267,Learning Disabilities,Adults,Learning Disability 18 - 64,3rd Party Payments,Residential Care,BEECHWOOD COURT LTD,CF10,13/03/2024,"22,460.88"
130318267,Learning Disabilities,Adults,Learning Disability 18 - 64,3rd Party Payments,Residential Care,BEECHWOOD COURT LTD,CF10,13/03/2024,"15,622.92"
130318267,Learning Disabilities,Adults,Learning Disability 18 - 64,3rd Party Payments,Residential Care,BEECHWOOD COURT LTD,CF10,13/03/2024,"5,207.64"
130318267,Learning Disabilities,Adults,Learning Disability 18 - 64,Income,Client Contribution - Residential,BEECHWOOD COURT LTD,CF10,13/03/2024,-80.64
130318267,Learning Disabilities,Adults,Learning Disability 18 - 64,3rd Party Payments,Residential Care,BEECHWOOD COURT LTD,CF10,13/03/2024,"7,486.96"
130318267,Learning Disabilities,Adults,Learning Disability 18 - 64,Income,Client Contribution - Residential,BEECHWOOD COURT LTD,CF10,13/03/2024,-241.92
134283233,Homelessness and Travellers,Housing Services,Bed and Breakfast Accommodation,Transfer Payments,Payment of Costs,BELLE MASION LIMITED T/A PARAMOUNT APARTMENTS BY STAYSERVE,SN5 ,27/03/2024,"1,950.00"
134288233,Homelessness and Travellers,Housing Services,Bed and Breakfast Accommodation,Transfer Payments,Payment of Costs,BELLE MASION LIMITED T/A PARAMOUNT APARTMENTS BY STAYSERVE,SN5 ,27/03/2024,"1,950.00"
134287233,Homelessness and Travellers,Housing Services,Bed and Breakfast Accommodation,Transfer Payments,Payment of Costs,BELLE MASION LIMITED T/A PARAMOUNT APARTMENTS BY STAYSERVE,SN5 ,27/03/2024,"1,950.00"
134284233,Homelessness and Travellers,Housing Services,Bed and Breakfast Accommodation,Transfer Payments,Payment of Costs,BELLE MASION LIMITED T/A PARAMOUNT APARTMENTS BY STAYSERVE,SN5 ,27/03/2024,"1,950.00"
134285233,Homelessness and Travellers,Housing Services,Bed and Breakfast Accommodation,Transfer Payments,Payment of Costs,BELLE MASION LIMITED T/A PARAMOUNT APARTMENTS BY STAYSERVE,SN5 ,27/03/2024,"1,950.00"
131014233,Parking & Bus lanes,Highway Operations and Car Parking,Car Parking,Supplies and Services,Equipment,BEMROSE BOOTH PARAGON LTD,HU7 ,15/03/2024,"1,330.00"
132784234,Care Management & Safeguarding,Adults,Swindon Safeguarding Partnershiph,Supplies and Services,Fees,BEVAN BRITTAN,BS2 ,22/03/2024,"1,100.00"
131479233,Care Management & Safeguarding,Adults,Swindon Safeguarding Partnershiph,Supplies and Services,Fees,BEVAN BRITTAN,BS2 ,18/03/2024,"1,100.00"
129321233,Libraries,"Education, Inclusion and Skills",Library Delivery,Supplies and Services,Materials,BIBLIOGRAPHIC DATA SERVICES LTD,DG1 ,08/03/2024,"10,147.75"
128857233,Libraries,"Education, Inclusion and Skills",Library Delivery,Supplies and Services,Repairs & Maintenance,BIBLIOTHECA LTD,SK8 ,06/03/2024,"2,000.00"
131053233,Learning Disabilities,Adults,LD Day Services (OK4U),Premises Costs,Waste,BIFFA WASTE SERVICES LTD,HP12,15/03/2024,657.15
132744233,Libraries,"Education, Inclusion and Skills",Central,Premises Costs,Waste,BIFFA WASTE SERVICES LTD,HP12,22/03/2024,419.52
130199242,DSG Other Funding,Dedicated Schools Grant (DSG),DFE Additional Grants,3rd Party Payments,Payment of Pupil Premium to school,BISHOPSTONE C E PRIMARY SCHOOL,SN6 ,13/03/2024,"1,618.00"
130600239,DSG Other Funding,Dedicated Schools Grant (DSG),DFE Additional Grants,Supplies and Services,Payments to Educational Bodies,BISHOPSTONE C E PRIMARY SCHOOL,SN6 ,13/03/2024,500.00
133580233,High Needs Block,Dedicated Schools Grant (DSG),Out of Borough School Fees,3rd Party Payments,OLA Special schools- Pre 16,BISHOPSWOOD SCHOOL,RG4 ,25/03/2024,"10,513.08"
133580233,High Needs Block,Dedicated Schools Grant (DSG),Out of Borough School Fees,3rd Party Payments,OLA Special schools- Pre 16,BISHOPSWOOD SCHOOL,RG4 ,25/03/2024,"10,513.08"
Corporate Card Transaction,Homelessness and Travellers,Housing Services,Bed and Breakfast Accommodation,Transfer Payments,Payment of Costs,Bkg*hotel At Booking.C,,18/03/2024,"1,259.86"
Corporate Card Transaction,Homelessness and Travellers,Housing Services,Bed and Breakfast Accommodation,Transfer Payments,Payment of Costs,Bkg*hotel At Booking.C,,12/03/2024,751.93
Corporate Card Transaction,Homelessness and Travellers,Housing Services,Bed and Breakfast Accommodation,Transfer Payments,Payment of Costs,Bkg*hotel At Booking.C,,12/03/2024,"1,234.80"
Corporate Card Transaction,Homelessness and Travellers,Housing Services,Bed and Breakfast Accommodation,Transfer Payments,Payment of Costs,Bkg*hotel At Booking.C,,12/03/2024,982.00
Corporate Card Transaction,Homelessness and Travellers,Housing Services,Bed and Breakfast Accommodation,Transfer Payments,Payment of Costs,Bkg*hotel At Booking.C,,05/03/2024,533.93
Corporate Card Transaction,Homelessness and Travellers,Housing Services,Bed and Breakfast Accommodation,Transfer Payments,Payment of Costs,Bkg*hotel At Booking.C,,05/03/2024,"1,067.86"
Corporate Card Transaction,Homelessness and Travellers,Housing Services,Bed and Breakfast Accommodation,Transfer Payments,Payment of Costs,Bkg*hotel At Booking.C,,27/02/2024,"1,000.86"
Corporate Card Transaction,Homelessness and Travellers,Housing Services,Bed and Breakfast Accommodation,Transfer Payments,Payment of Costs,Bkg*hotel At Booking.C,,27/02/2024,500.43
Corporate Card Transaction,Adults - Staffing and Supporting People,Adults,ASC Leadership Team,Supplies and Services,Equipment,Bkg*hotel At Booking.C,,12/03/2024,599.17
Corporate Card Transaction,Adults - Staffing and Supporting People,Adults,ASC Leadership Team,Supplies and Services,Equipment,Bkg*hotel At Booking.C,,05/03/2024,596.25
Corporate Card Transaction,Homelessness and Travellers,Housing Services,Bed and Breakfast Accommodation,Transfer Payments,Payment of Costs,Bkg*hotel At Booking.C,,12/03/2024,787.00
Corporate Card Transaction,Homelessness and Travellers,Housing Services,Bed and Breakfast Accommodation,Transfer Payments,Payment of Costs,Bkg*hotel At Booking.C,,12/03/2024,962.00
Corporate Card Transaction,Homelessness and Travellers,Housing Services,Bed and Breakfast Accommodation,Transfer Payments,Payment of Costs,Bkg*hotel At Booking.C,,12/03/2024,698.93
Corporate Card Transaction,Social Care,"Children, Families and Community Health Services",Placement - Care Leaver Team,Supplies and Services,Materials,Bkg*hotel At Booking.C,,25/03/2024,886.88
Corporate Card Transaction,Social Care,"Children, Families and Community Health Services",Placement - Care Leaver Team,Supplies and Services,Materials,Bkg*hotel At Booking.C,,25/03/2024,759.00
Corporate Card Transaction,Homelessness and Travellers,Housing Services,Bed and Breakfast Accommodation,Transfer Payments,Payment of Costs,Bkg*hotel At Booking.C,,12/03/2024,864.00
Corporate Card Transaction,Homelessness and Travellers,Housing Services,Bed and Breakfast Accommodation,Transfer Payments,Payment of Costs,Bkg*hotel At Booking.C,,07/03/2024,507.44
Corporate Card Transaction,Homelessness and Travellers,Housing Services,Bed and Breakfast Accommodation,Transfer Payments,Payment of Costs,Bkg*hotel At Booking.C,,14/03/2024,563.88
Corporate Card Transaction,Homelessness and Travellers,Housing Services,Bed and Breakfast Accommodation,Transfer Payments,Payment of Costs,Bkg*hotel At Booking.C,,12/03/2024,653.60
Corporate Card Transaction,Homelessness and Travellers,Housing Services,Bed and Breakfast Accommodation,Transfer Payments,Payment of Costs,Bkg*hotel At Booking.C,,12/03/2024,629.54
Corporate Card Transaction,Homelessness and Travellers,Housing Services,Bed and Breakfast Accommodation,Transfer Payments,Payment of Costs,Bkg*hotel At Booking.C,,12/03/2024,653.60
Corporate Card Transaction,Homelessness and Travellers,Housing Services,Bed and Breakfast Accommodation,Transfer Payments,Payment of Costs,Bkg*hotel At Booking.C,,21/03/2024,704.85
130318324,Mental Health,Adults,Mental Health 65 and over,3rd Party Payments,Residential Care,BLACKMOOR CROFT HEALTH CARE LTD,B33 ,13/03/2024,"16,606.72"
130318324,Mental Health,Adults,Mental Health 65 and over,3rd Party Payments,Residential Care,BLACKMOOR CROFT HEALTH CARE LTD,B33 ,13/03/2024,"12,455.04"
130318324,Mental Health,Adults,Mental Health 65 and over,3rd Party Payments,Residential Care,BLACKMOOR CROFT HEALTH CARE LTD,B33 ,13/03/2024,"27,282.47"
129084233,Homelessness and Travellers,Housing Services,Private Sector Landlords,Transfer Payments,Payment of Costs,BLOCK 3 STUDIO,SN1 ,06/03/2024,500.00
130775233,Homelessness and Travellers,Housing Services,Private Sector Landlords,Transfer Payments,Payment of Costs,BLOCK 3 STUDIO,SN1 ,13/03/2024,"1,375.00"
132107233,Learning Disabilities,Adults,Learning Disability 18 - 64,3rd Party Payments,Personal Budget - Domiciliary care,BLUEBIRD CARE (SWINDON),SN25,20/03/2024,552.96
132107233,Mental Health,Adults,Mental Health 18-64,3rd Party Payments,Personal Budget - Domiciliary care,BLUEBIRD CARE (SWINDON),SN25,20/03/2024,138.24
132107233,Learning Disabilities,Adults,Learning Disability 18 - 64,3rd Party Payments,Personal Budget - Domiciliary care,BLUEBIRD CARE (SWINDON),SN25,20/03/2024,"1,105.92"
132107233,Physical Support,Adults,Physical Support 18 - 64,3rd Party Payments,Personal Budget - Domiciliary care,BLUEBIRD CARE (SWINDON),SN25,20/03/2024,"1,105.92"
132107233,Learning Disabilities,Adults,Learning Disability 18 - 64,3rd Party Payments,Personal Budget - Domiciliary care,BLUEBIRD CARE (SWINDON),SN25,20/03/2024,276.48
132107233,Mental Health,Adults,Mental Health 18-64,3rd Party Payments,Personal Budget - Domiciliary care,BLUEBIRD CARE (SWINDON),SN25,20/03/2024,-16.80
132107233,Learning Disabilities,Adults,Learning Disability 18 - 64,3rd Party Payments,Personal Budget - Domiciliary care,BLUEBIRD CARE (SWINDON),SN25,20/03/2024,-53.44
132107233,Learning Disabilities,Adults,Learning Disability 18 - 64,3rd Party Payments,Personal Budget - Domiciliary care,BLUEBIRD CARE (SWINDON),SN25,20/03/2024,"1,244.16"
132107233,Learning Disabilities,Adults,Learning Disability 18 - 64,3rd Party Payments,Personal Budget - Domiciliary care,BLUEBIRD CARE (SWINDON),SN25,20/03/2024,-88.86
132107233,Learning Disabilities,Adults,Learning Disability 18 - 64,3rd Party Payments,Personal Budget - Domiciliary care,BLUEBIRD CARE (SWINDON),SN25,20/03/2024,-151.20
132107233,Physical Support,Adults,Physical Support 65 and over,3rd Party Payments,Personal Budget - Domiciliary care,BLUEBIRD CARE (SWINDON),SN25,20/03/2024,-215.60
132107233,Learning Disabilities,Adults,Learning Disability 18 - 64,3rd Party Payments,Personal Budget - Domiciliary care,BLUEBIRD CARE (SWINDON),SN25,20/03/2024,967.68
132107233,Physical Support,Adults,Physical Support 18 - 64,3rd Party Payments,Personal Budget - Domiciliary care,BLUEBIRD CARE (SWINDON),SN25,20/03/2024,-134.40
132107233,Learning Disabilities,Adults,Learning Disability 18 - 64,3rd Party Payments,Personal Budget - Domiciliary care,BLUEBIRD CARE (SWINDON),SN25,20/03/2024,-441.44
132107233,Physical Support,Adults,Physical Support 65 and over,3rd Party Payments,Personal Budget - Domiciliary care,BLUEBIRD CARE (SWINDON),SN25,20/03/2024,"1,774.08"
134160234,Early Years Block,Dedicated Schools Grant (DSG),Free Nursery Education Commissioning - two year olds,3rd Party Payments,Contracts - Child Care,REDACTED PERSONAL DATA,SN3 ,27/03/2024,694.80
129815233,Early Years Block,Dedicated Schools Grant (DSG),Free Nursery Education Commissioning - three & four  year olds,3rd Party Payments,Contracts - Child Care,REDACTED PERSONAL DATA,SN3 ,13/03/2024,"4,798.58"
129816233,Early Years Block,Dedicated Schools Grant (DSG),Free Nursery Education Commissioning - two year olds,3rd Party Payments,Contracts - Child Care,REDACTED PERSONAL DATA,SN3 ,13/03/2024,"2,715.90"
131846233,High Needs Block,Dedicated Schools Grant (DSG),SEN Resourcing Assessment Panel,3rd Party Payments,Top up funding - Maintained providers Pre 16,REDACTED PERSONAL DATA,SN3 ,20/03/2024,"1,188.00"
130318284,Mental Health,Adults,Mental Health 65 and over,3rd Party Payments,Residential Care,BOLEALLER HOUSE LTD,EX15,13/03/2024,"3,974.85"
130318284,Mental Health,Adults,Mental Health 65 and over,3rd Party Payments,Residential Care,BOLEALLER HOUSE LTD,EX15,13/03/2024,"1,324.95"
132094233,Libraries,"Education, Inclusion and Skills",Library Delivery,Supplies and Services,Materials,BOLINDA UK LTD,RG14,20/03/2024,437.04
132614233,Physical Support,Adults,Fessey House,Supplies and Services,Food,BOOKER LIMITED,CH5 ,22/03/2024,292.86
132614233,Physical Support,Adults,Fessey House,Supplies and Services,Food,BOOKER LIMITED,CH5 ,22/03/2024,197.77
130318237,Physical Support,Adults,Physical Support 65 and over,Income,Client Contribution - Nursing,BOTHWELLS LTD,HA6 ,13/03/2024,-707.82
130318237,Physical Support,Adults,Physical Support 65 and over,Income,Client Contribution - Nursing,BOTHWELLS LTD,HA6 ,13/03/2024,-194.75
130318237,Physical Support,Adults,Physical Support 18 - 64,Income,Client Contribution - Nursing,BOTHWELLS LTD,HA6 ,13/03/2024,-494.85
130318237,Physical Support,Adults,Physical Support 18 - 64,Income,Client Contribution - Nursing,BOTHWELLS LTD,HA6 ,13/03/2024,-106.40
130318237,Physical Support,Adults,Physical Support 65 and over,3rd Party Payments,Residential Care,BOTHWELLS LTD,HA6 ,13/03/2024,900.00
130318237,Physical Support,Adults,Physical Support 65 and over,Income,Client Contribution - Nursing,BOTHWELLS LTD,HA6 ,13/03/2024,-271.24
130318237,Physical Support,Adults,Physical Support 65 and over,Income,Client Contribution - Nursing,BOTHWELLS LTD,HA6 ,13/03/2024,-813.72
130318237,Physical Support,Adults,Physical Support 65 and over,3rd Party Payments,Nursing Care,BOTHWELLS LTD,HA6 ,13/03/2024,"2,867.32"
130318237,Physical Support,Adults,Physical Support 65 and over,Income,Client Contribution - Nursing,BOTHWELLS LTD,HA6 ,13/03/2024,-195.35
130318237,Physical Support,Adults,Physical Support 65 and over,Income,Client Contribution - Nursing,BOTHWELLS LTD,HA6 ,13/03/2024,-584.25
130318237,Physical Support,Adults,Physical Support 65 and over,3rd Party Payments,Nursing Care,BOTHWELLS LTD,HA6 ,13/03/2024,95.06
130318237,Physical Support,Adults,Physical Support 65 and over,3rd Party Payments,Nursing Care,BOTHWELLS LTD,HA6 ,13/03/2024,716.83
130318237,Physical Support,Adults,Physical Support 65 and over,3rd Party Payments,Nursing Care,BOTHWELLS LTD,HA6 ,13/03/2024,"5,370.72"
130318237,Physical Support,Adults,Physical Support 65 and over,Income,Client Contribution - Nursing,BOTHWELLS LTD,HA6 ,13/03/2024,-172.80
130318237,Physical Support,Adults,Physical Support 65 and over,Income,Client Contribution - Nursing,BOTHWELLS LTD,HA6 ,13/03/2024,-235.94
130318237,Physical Support,Adults,Physical Support 65 and over,Income,Client Contribution - Nursing,BOTHWELLS LTD,HA6 ,13/03/2024,-586.05
130318237,Physical Support,Adults,Physical Support 65 and over,Income,Client Contribution - Nursing,BOTHWELLS LTD,HA6 ,13/03/2024,-346.20
130318237,Physical Support,Adults,Physical Support 18 - 64,3rd Party Payments,Nursing Care,BOTHWELLS LTD,HA6 ,13/03/2024,"4,102.38"
130318237,Physical Support,Adults,Physical Support 18 - 64,3rd Party Payments,Nursing Care,BOTHWELLS LTD,HA6 ,13/03/2024,"5,469.84"
130318237,Physical Support,Adults,Physical Support 18 - 64,3rd Party Payments,Nursing Care,BOTHWELLS LTD,HA6 ,13/03/2024,716.83
130318237,Physical Support,Adults,Physical Support 18 - 64,3rd Party Payments,Nursing Care,BOTHWELLS LTD,HA6 ,13/03/2024,"2,150.49"
130318237,Physical Support,Adults,Physical Support 18 - 64,Income,Client Contribution - Nursing,BOTHWELLS LTD,HA6 ,13/03/2024,-164.95
130318237,Physical Support,Adults,Physical Support 18 - 64,Income,Client Contribution - Nursing,BOTHWELLS LTD,HA6 ,13/03/2024,-319.20
130318237,Physical Support,Adults,Physical Support 65 and over,Income,Client Contribution - Nursing,BOTHWELLS LTD,HA6 ,13/03/2024,"-1,038.60"
130318237,Physical Support,Adults,Physical Support 18 - 64,3rd Party Payments,Nursing Care,BOTHWELLS LTD,HA6 ,13/03/2024,817.69
130318237,Physical Support,Adults,Physical Support 18 - 64,3rd Party Payments,Nursing Care,BOTHWELLS LTD,HA6 ,13/03/2024,"2,453.07"
130318237,Physical Support,Adults,Physical Support 65 and over,3rd Party Payments,Nursing Care,BOTHWELLS LTD,HA6 ,13/03/2024,940.81
130318237,Physical Support,Adults,Physical Support 65 and over,Income,Client Contribution - Nursing,BOTHWELLS LTD,HA6 ,13/03/2024,-518.40
130318237,Physical Support,Adults,Physical Support 65 and over,Income,Client Contribution - Nursing,BOTHWELLS LTD,HA6 ,13/03/2024,-227.29
130318237,Physical Support,Adults,Physical Support 65 and over,Income,Client Contribution - Nursing,BOTHWELLS LTD,HA6 ,13/03/2024,-681.87
130318237,Physical Support,Adults,Physical Support 65 and over,3rd Party Payments,Nursing Care,BOTHWELLS LTD,HA6 ,13/03/2024,"1,790.24"
130318237,Physical Support,Adults,Physical Support 65 and over,3rd Party Payments,Nursing Care,BOTHWELLS LTD,HA6 ,13/03/2024,"2,150.49"
130318237,Physical Support,Adults,Physical Support 65 and over,3rd Party Payments,Residential Care,BOTHWELLS LTD,HA6 ,13/03/2024,"2,700.00"
130318237,Physical Support,Adults,Physical Support 65 and over,Income,Client Contribution - Nursing,BOTHWELLS LTD,HA6 ,13/03/2024,-887.13
130318237,Physical Support,Adults,Physical Support 18 - 64,3rd Party Payments,Nursing Care,BOTHWELLS LTD,HA6 ,13/03/2024,"1,367.46"
130318237,Physical Support,Adults,Physical Support 65 and over,3rd Party Payments,Nursing Care,BOTHWELLS LTD,HA6 ,13/03/2024,"2,822.43"
130318237,Physical Support,Adults,Physical Support 65 and over,Income,Client Contribution - Nursing,BOTHWELLS LTD,HA6 ,13/03/2024,-295.71
129322238,Responsive Repairs,Repairs,Responsive Repairs,3rd Party Payments,Contract Payments,BOUNDARY SCAFFOLDING LTD,SN6 ,08/03/2024,720.00
134134241,Responsive Repairs,Repairs,Responsive Repairs,3rd Party Payments,Contract Payments,BOUNDARY SCAFFOLDING LTD,SN6 ,27/03/2024,"1,120.00"
134134241,Responsive Repairs,Repairs,Responsive Repairs,3rd Party Payments,Contract Payments,BOUNDARY SCAFFOLDING LTD,SN6 ,27/03/2024,"4,106.00"
134134241,Responsive Repairs,Repairs,Responsive Repairs,3rd Party Payments,Contract Payments,BOUNDARY SCAFFOLDING LTD,SN6 ,27/03/2024,580.00
129323250,Responsive Repairs,Repairs,Responsive Repairs,3rd Party Payments,Contract Payments,BOUNDARY SCAFFOLDING LTD,SN6 ,08/03/2024,288.00
129323250,Responsive Repairs,Repairs,Responsive Repairs,3rd Party Payments,Contract Payments,BOUNDARY SCAFFOLDING LTD,SN6 ,08/03/2024,144.00
129323246,Responsive Repairs,Repairs,Responsive Repairs,3rd Party Payments,Contract Payments,BOUNDARY SCAFFOLDING LTD,SN6 ,08/03/2024,660.00
129323249,Responsive Repairs,Repairs,Responsive Repairs,3rd Party Payments,Contract Payments,BOUNDARY SCAFFOLDING LTD,SN6 ,08/03/2024,"1,295.00"
129323250,Responsive Repairs,Repairs,Responsive Repairs,3rd Party Payments,Contract Payments,BOUNDARY SCAFFOLDING LTD,SN6 ,08/03/2024,72.00
129323241,Responsive Repairs,Repairs,Responsive Repairs,3rd Party Payments,Contract Payments,BOUNDARY SCAFFOLDING LTD,SN6 ,08/03/2024,"1,080.00"
134134241,Responsive Repairs,Repairs,Responsive Repairs,3rd Party Payments,Contract Payments,BOUNDARY SCAFFOLDING LTD,SN6 ,27/03/2024,775.00
128069241,Responsive Repairs,Repairs,Responsive Repairs,3rd Party Payments,Contract Payments,BOUNDARY SCAFFOLDING LTD,SN6 ,01/03/2024,730.00
129323247,Responsive Repairs,Repairs,Responsive Repairs,3rd Party Payments,Contract Payments,BOUNDARY SCAFFOLDING LTD,SN6 ,08/03/2024,960.00
128069240,Responsive Repairs,Repairs,Responsive Repairs,3rd Party Payments,Contract Payments,BOUNDARY SCAFFOLDING LTD,SN6 ,01/03/2024,72.00
134134241,Responsive Repairs,Repairs,Responsive Repairs,3rd Party Payments,Contract Payments,BOUNDARY SCAFFOLDING LTD,SN6 ,27/03/2024,"1,650.00"
134134241,Responsive Repairs,Repairs,Responsive Repairs,3rd Party Payments,Contract Payments,BOUNDARY SCAFFOLDING LTD,SN6 ,27/03/2024,881.00
134134241,Responsive Repairs,Repairs,Responsive Repairs,3rd Party Payments,Contract Payments,BOUNDARY SCAFFOLDING LTD,SN6 ,27/03/2024,161.00
134134241,Responsive Repairs,Repairs,Responsive Repairs,3rd Party Payments,Contract Payments,BOUNDARY SCAFFOLDING LTD,SN6 ,27/03/2024,"1,630.00"
134134241,Responsive Repairs,Repairs,Responsive Repairs,3rd Party Payments,Contract Payments,BOUNDARY SCAFFOLDING LTD,SN6 ,27/03/2024,890.00
134134241,Responsive Repairs,Repairs,Responsive Repairs,3rd Party Payments,Contract Payments,BOUNDARY SCAFFOLDING LTD,SN6 ,27/03/2024,720.00
128069240,Responsive Repairs,Repairs,Responsive Repairs,3rd Party Payments,Contract Payments,BOUNDARY SCAFFOLDING LTD,SN6 ,01/03/2024,288.00
134134241,Responsive Repairs,Repairs,Responsive Repairs,3rd Party Payments,Contract Payments,BOUNDARY SCAFFOLDING LTD,SN6 ,27/03/2024,"1,080.00"
128069240,Responsive Repairs,Repairs,Responsive Repairs,3rd Party Payments,Contract Payments,BOUNDARY SCAFFOLDING LTD,SN6 ,01/03/2024,144.00
134134241,Responsive Repairs,Repairs,Responsive Repairs,3rd Party Payments,Contract Payments,BOUNDARY SCAFFOLDING LTD,SN6 ,27/03/2024,660.00
134134241,Responsive Repairs,Repairs,Responsive Repairs,3rd Party Payments,Contract Payments,BOUNDARY SCAFFOLDING LTD,SN6 ,27/03/2024,"1,280.00"
134134241,Responsive Repairs,Repairs,Responsive Repairs,3rd Party Payments,Contract Payments,BOUNDARY SCAFFOLDING LTD,SN6 ,27/03/2024,940.00
129323250,Responsive Repairs,Repairs,Responsive Repairs,3rd Party Payments,Contract Payments,BOUNDARY SCAFFOLDING LTD,SN6 ,08/03/2024,216.00
131261239,Responsive Repairs,Repairs,Responsive Repairs,3rd Party Payments,Contract Payments,BPM CONTRACTING SERVICES LTD,BA2 ,15/03/2024,441.12
128630246,Responsive Repairs,Repairs,Responsive Repairs,3rd Party Payments,Contract Payments,BPM CONTRACTING SERVICES LTD,BA2 ,04/03/2024,"2,789.91"
129209233,Responsive Repairs,Repairs,Responsive Repairs,3rd Party Payments,Contract Payments,BPM CONTRACTING SERVICES LTD,BA2 ,06/03/2024,"1,391.16"
128630234,Responsive Repairs,Repairs,Responsive Repairs,3rd Party Payments,Contract Payments,BPM CONTRACTING SERVICES LTD,BA2 ,04/03/2024,862.33
128630248,Responsive Repairs,Repairs,Responsive Repairs,3rd Party Payments,Contract Payments,BPM CONTRACTING SERVICES LTD,BA2 ,04/03/2024,"1,724.40"
130937233,Responsive Repairs,Repairs,Responsive Repairs,3rd Party Payments,Contract Payments,BPM CONTRACTING SERVICES LTD,BA2 ,15/03/2024,"1,010.79"
128630244,Responsive Repairs,Repairs,Responsive Repairs,3rd Party Payments,Contract Payments,BPM CONTRACTING SERVICES LTD,BA2 ,04/03/2024,810.78
130237234,Responsive Repairs,Repairs,Responsive Repairs,3rd Party Payments,Contract Payments,BPM CONTRACTING SERVICES LTD,BA2 ,11/03/2024,"2,599.63"
128630241,Responsive Repairs,Repairs,Responsive Repairs,3rd Party Payments,Contract Payments,BPM CONTRACTING SERVICES LTD,BA2 ,04/03/2024,"1,166.96"
131260236,Responsive Repairs,Repairs,Responsive Repairs,3rd Party Payments,Contract Payments,BPM CONTRACTING SERVICES LTD,BA2 ,15/03/2024,887.41
129526233,Responsive Repairs,Repairs,Responsive Repairs,3rd Party Payments,Contract Payments,BPM CONTRACTING SERVICES LTD,BA2 ,08/03/2024,"2,087.68"
128630255,Responsive Repairs,Repairs,Responsive Repairs,3rd Party Payments,Contract Payments,BPM CONTRACTING SERVICES LTD,BA2 ,04/03/2024,"1,263.47"
131261238,Responsive Repairs,Repairs,Responsive Repairs,3rd Party Payments,Contract Payments,BPM CONTRACTING SERVICES LTD,BA2 ,15/03/2024,"1,824.80"
130938233,Responsive Repairs,Repairs,Responsive Repairs,3rd Party Payments,Contract Payments,BPM CONTRACTING SERVICES LTD,BA2 ,15/03/2024,510.30
129208233,Responsive Repairs,Repairs,Responsive Repairs,3rd Party Payments,Contract Payments,BPM CONTRACTING SERVICES LTD,BA2 ,06/03/2024,447.62
131261233,Responsive Repairs,Repairs,Responsive Repairs,3rd Party Payments,Contract Payments,BPM CONTRACTING SERVICES LTD,BA2 ,15/03/2024,897.45
129817233,Early Years Block,Dedicated Schools Grant (DSG),Free Nursery Education Commissioning - three & four  year olds,3rd Party Payments,Contracts - Child Care,BRAMBLE HOUSE DAY NURSERY LTD,SN2 ,13/03/2024,"5,928.45"
129818233,Early Years Block,Dedicated Schools Grant (DSG),Free Nursery Education Commissioning - two year olds,3rd Party Payments,Contracts - Child Care,BRAMBLE HOUSE DAY NURSERY LTD,SN2 ,13/03/2024,"4,979.40"
134160236,Early Years Block,Dedicated Schools Grant (DSG),Free Nursery Education Commissioning - two year olds,3rd Party Payments,Contracts - Child Care,BRAMBLE HOUSE DAY NURSERY LTD,SN2 ,27/03/2024,965.00
131846234,High Needs Block,Dedicated Schools Grant (DSG),SEN Resourcing Assessment Panel,3rd Party Payments,Top up funding - Maintained providers Pre 16,BRAMBLE HOUSE DAY NURSERY LTD,SN2 ,20/03/2024,"1,188.00"
133906233,Education,"Education, Inclusion and Skills","Holiday, Activities & Food Grant",3rd Party Payments,Contracts - Child Care,BRAMBLE HOUSE DAY NURSERY LTD,SN2 ,27/03/2024,576.00
132567233,Social Care,Children & Families,Children's Resource and Home Finding Team,3rd Party Payments,Residential Care,BRANAS ISAF LIMITED,EN6 ,25/03/2024,"24,578.66"
129192233,Social Care,Children & Families,Children's Resource and Home Finding Team,3rd Party Payments,Residential Care,BREAKING BARRIERS TOGETHER,EC1V,06/03/2024,"1,460.70"
130686233,Social Care,Children & Families,Children's Resource and Home Finding Team,3rd Party Payments,Residential Care,BREAKING BARRIERS TOGETHER,EC1V,13/03/2024,"10,995.00"
134252233,Social Care,Children & Families,Children's Resource and Home Finding Team,3rd Party Payments,Residential Care,BREAKING BARRIERS TOGETHER,EC1V,27/03/2024,"10,995.00"
132566234,Social Care,Children & Families,Children's Resource and Home Finding Team,3rd Party Payments,Residential Care,BREAKING BARRIERS TOGETHER,EC1V,25/03/2024,"10,995.00"
129192234,Social Care,Children & Families,Children's Resource and Home Finding Team,3rd Party Payments,Residential Care,BREAKING BARRIERS TOGETHER,EC1V,06/03/2024,"10,995.00"
130191322,Social Care,Children & Families,Placement Adoption Service,3rd Party Payments,Special Guardianship Orders,REDACTED PERSONAL DATA,SN2 ,11/03/2024,572.00
133447233,Social Care,Children & Families,Placement Adoption Service,3rd Party Payments,Special Guardianship Orders,REDACTED PERSONAL DATA,SN2 ,25/03/2024,572.00
131463233,Public Health,Public Health,Disabled Facilities Grants,Capital,Grant Payments,BRIDGEMEAD BUILDERS LTD,SN2 ,20/03/2024,"11,685.45"
131861233,Education,"Education, Inclusion and Skills",Education Standards and Quality,Supplies and Services,Fees,BRISTOL DIOCESAN BOARD OF FINANCE LTD,BS34,20/03/2024,"2,062.50"
131864233,Education,"Education, Inclusion and Skills",Education Standards and Quality,Supplies and Services,Fees,BRISTOL DIOCESAN BOARD OF FINANCE LTD,BS34,20/03/2024,"2,062.50"
131841233,Education,"Education, Inclusion and Skills",Education Standards and Quality,Supplies and Services,Fees,BRISTOL DIOCESAN BOARD OF FINANCE LTD,BS34,20/03/2024,"6,187.50"
129454233,Other Repairs,Repairs,Unallocated job costs from OPEN system,Premises Costs,Maintenance - Buildings,BRISTOL FIRE,BS37,08/03/2024,493.95
131248243,Other Repairs,Repairs,Unallocated job costs from OPEN system,Premises Costs,Maintenance - Buildings,BRISTOL FIRE,BS37,15/03/2024,"8,410.00"
131248245,Property Management,Property,Corporate Repairs & Maintenance Programme,Premises Costs,Maintenance - Buildings,BRISTOL FIRE,BS37,15/03/2024,492.10
128630235,Property Management,Property,Corporate Repairs & Maintenance Programme,Premises Costs,Maintenance - Buildings,BRISTOL FIRE,BS37,04/03/2024,425.00
131248242,Property Management,Property,Corporate Repairs & Maintenance Programme,Premises Costs,Maintenance - Buildings,BRISTOL FIRE,BS37,15/03/2024,589.70
128736234,Property Management,Property,Corporate Repairs & Maintenance Programme,Premises Costs,Maintenance - Buildings,BRISTOL FIRE,BS37,04/03/2024,611.20
130173234,Highways Schemes,Strategic Planning and Highways,Mead Way Junction Improvements,Capital,Contractor Payments,BRITANNIA CONSTRUCTION LTD,CF72,11/03/2024,"20,634.03"
130346233,Streetsmart,Streetsmart,Waterside Depot,Premises Costs,Gas,BRITISH GAS TRADING LTD,S98 ,13/03/2024,"2,812.16"
132642234,Streetsmart,Streetsmart,Waterside Depot,Premises Costs,Gas,BRITISH GAS TRADING LTD,S98 ,22/03/2024,"2,630.73"
128786233,Highways Schemes,Strategic Planning and Highways,Key Routes East,Capital,Contractor Payments,BRITISH TELECOMMUNICATIONS PLC,S1 3,04/03/2024,"1,770.72"
134298233,,,Balance Sheet,Balance Sheet & Recharge,British Telecom invoices,BRITISH TELECOMMUNICATIONS PLC,S98 ,27/03/2024,"24,285.63"
130614233,Town Centre,"Economy, Growth and Place",Fleming Way Improvement Scheme,Capital,Contractor Payments,BRITISH TELECOMMUNICATIONS PLC,S1 3,13/03/2024,"111,574.94"
131136234,,,Balance Sheet,Balance Sheet & Recharge,British Telecom invoices,BRITISH TELECOMMUNICATIONS PLC,S98 ,15/03/2024,"20,406.73"
128787234,,,Balance Sheet,Balance Sheet & Recharge,British Telecom invoices,BRITISH TELECOMMUNICATIONS PLC,S98 ,04/03/2024,"20,406.73"
133586233,School Transport,"Education, Inclusion and Skills",Special Educational Needs Transport,Employees,Temporary / Agency - by Accounts Payable,BRUNEL EDUCATION,SN25,25/03/2024,"1,435.50"
126813233,Disabled Children,Children & Families,DCT Daytime Short Breaks,3rd Party Payments,Day Care,BRUNEL EDUCATION,SN5 ,06/03/2024,786.72
131263334,High Needs Block,Dedicated Schools Grant (DSG),SEN Resourcing Assessment Panel,3rd Party Payments,Top up funding - Academies and Free Schools Pre 16,BRUNEL EDUCATION,SN25,15/03/2024,"10,442.72"
131263370,High Needs Block,Dedicated Schools Grant (DSG),Post 16 - New Responsibilties,3rd Party Payments,Independent Service Provider- Post 16,BRUNEL EDUCATION,SN25,15/03/2024,"99,644.02"
130286233,Disabled Children,Children & Families,DCT Daytime Short Breaks,3rd Party Payments,Day Care,BRUNEL EDUCATION,SN5 ,13/03/2024,702.30
130391233,Disabled Children,Children & Families,DCT Daytime Short Breaks,3rd Party Payments,Day Care,BRUNEL EDUCATION,SN5 ,13/03/2024,702.30
130283233,Disabled Children,Children & Families,DCT Daytime Short Breaks,3rd Party Payments,Day Care,BRUNEL EDUCATION,SN5 ,13/03/2024,561.84
128468233,Disabled Children,Children & Families,DCT Daytime Short Breaks,3rd Party Payments,Day Care,BRUNEL EDUCATION,SN5 ,01/03/2024,702.30
131263371,High Needs Block,Dedicated Schools Grant (DSG),Post 16 - New Responsibilties,3rd Party Payments,Independent Service Provider- Post 16,BRUNEL EDUCATION,SN25,15/03/2024,"27,000.00"
130296233,Disabled Children,Children & Families,DCT Daytime Short Breaks,3rd Party Payments,Day Care,BRUNEL EDUCATION,SN5 ,13/03/2024,702.30
126812233,Disabled Children,Children & Families,DCT Daytime Short Breaks,3rd Party Payments,Day Care,BRUNEL EDUCATION,SN5 ,06/03/2024,"1,030.04"
130299233,Disabled Children,Children & Families,DCT Daytime Short Breaks,3rd Party Payments,Day Care,BRUNEL EDUCATION,SN5 ,13/03/2024,786.72
130290233,Disabled Children,Children & Families,DCT Daytime Short Breaks,3rd Party Payments,Day Care,BRUNEL EDUCATION,SN5 ,13/03/2024,948.11
131785233,Disabled Children,Children & Families,Aiming High for Disabled Children,Supplies and Services,Services,BRUNEL EDUCATION,SN5 ,20/03/2024,"2,408.46"
130595234,Disabled Children,Children & Families,DCT Daytime Short Breaks,3rd Party Payments,Day Care,BRUNEL EDUCATION,SN5 ,13/03/2024,912.99
131024234,Disabled Children,Children & Families,DCT Daytime Short Breaks,3rd Party Payments,Day Care,BRUNEL EDUCATION,SN5 ,15/03/2024,983.22
130298233,Disabled Children,Children & Families,DCT Daytime Short Breaks,3rd Party Payments,Day Care,BRUNEL EDUCATION,SN5 ,13/03/2024,"1,182.21"
130265233,Disabled Children,Children & Families,DCT Daytime Short Breaks,3rd Party Payments,Day Care,BRUNEL EDUCATION,SN5 ,13/03/2024,807.65
130383233,Disabled Children,Children & Families,DCT Daytime Short Breaks,3rd Party Payments,Day Care,BRUNEL EDUCATION,SN5 ,13/03/2024,"1,193.91"
133999233,School Transport,"Education, Inclusion and Skills",Special Educational Needs Transport,Employees,Temporary / Agency - by Accounts Payable,BRUNEL EDUCATION,SN25,27/03/2024,680.63
130371233,Disabled Children,Children & Families,DCT Daytime Short Breaks,3rd Party Payments,Day Care,BRUNEL EDUCATION,SN5 ,13/03/2024,786.72
131263359,High Needs Block,Dedicated Schools Grant (DSG),SEN Resourcing Assessment Panel,3rd Party Payments,Top up funding - Academies and Free Schools Pre 16,REDACTED PERSONAL DATA,SN25,15/03/2024,"11,571.21"
131263340,High Needs Block,Dedicated Schools Grant (DSG),SEN Resourcing Assessment Panel,3rd Party Payments,Top up funding - Academies and Free Schools Pre 16,REDACTED PERSONAL DATA,SN25,15/03/2024,"228,830.07"
131263363,High Needs Block,Dedicated Schools Grant (DSG),SEN Resourcing Assessment Panel,3rd Party Payments,Top up funding - Academies and Free Schools Post 16,REDACTED PERSONAL DATA,SN25,15/03/2024,"106,138.00"
131263336,High Needs Block,Dedicated Schools Grant (DSG),SEN Resourcing Assessment Panel,3rd Party Payments,Top up funding - Academies and Free Schools Pre 16,REDACTED PERSONAL DATA,SN25,15/03/2024,"181,975.81"
131263333,High Needs Block,Dedicated Schools Grant (DSG),SEN Resourcing Assessment Panel,3rd Party Payments,Top up funding - Academies and Free Schools Pre 16,REDACTED PERSONAL DATA,SN25,15/03/2024,"7,291.67"
131263348,High Needs Block,Dedicated Schools Grant (DSG),SEN Resourcing Assessment Panel,3rd Party Payments,Top up funding - Academies and Free Schools Pre 16,REDACTED PERSONAL DATA,SN25,15/03/2024,"28,970.01"
131263332,High Needs Block,Dedicated Schools Grant (DSG),SEN Resourcing Assessment Panel,3rd Party Payments,Top up funding - Academies and Free Schools Pre 16,REDACTED PERSONAL DATA,SN25,15/03/2024,"144,539.83"
131263335,High Needs Block,Dedicated Schools Grant (DSG),SEN Resourcing Assessment Panel,3rd Party Payments,Top up funding - Academies and Free Schools Pre 16,REDACTED PERSONAL DATA,SN25,15/03/2024,"106,815.72"
131263360,High Needs Block,Dedicated Schools Grant (DSG),SEN Resourcing Assessment Panel,3rd Party Payments,Top up funding - Academies and Free Schools Pre 16,REDACTED PERSONAL DATA,SN25,15/03/2024,"33,918.08"
131263317,High Needs Block,Dedicated Schools Grant (DSG),SEN Resourcing Assessment Panel,3rd Party Payments,Top up funding - Academies and Free Schools Pre 16,REDACTED PERSONAL DATA,SN25,15/03/2024,"4,714.59"
131263355,High Needs Block,Dedicated Schools Grant (DSG),SEN Resourcing Assessment Panel,3rd Party Payments,Top up funding - Academies and Free Schools Pre 16,REDACTED PERSONAL DATA,SN25,15/03/2024,"7,332.89"
131263337,High Needs Block,Dedicated Schools Grant (DSG),SEN Resourcing Assessment Panel,3rd Party Payments,Top up funding - Academies and Free Schools Pre 16,REDACTED PERSONAL DATA,SN25,15/03/2024,"203,877.07"
129837469,Early Years Block,Dedicated Schools Grant (DSG),Free Nursery Education Commissioning - three & four  year olds,3rd Party Payments,Contracts - Child Care,REDACTED PERSONAL DATA,SN25,13/03/2024,"4,800.78"
130594233,Landscaping & Open Space,Culture & Heritage & Art,GWCF - Trees for Climate,Capital,Contractor Payments,BRUNEL SURVEYS LTD,CM20,13/03/2024,"1,900.00"
128827233,Landscaping & Open Space,Culture & Heritage & Art,GWCF - Trees for Climate,Capital,Contractor Payments,BRUNEL SURVEYS LTD,CM20,06/03/2024,595.00
128820233,Landscaping & Open Space,Culture & Heritage & Art,GWCF - Trees for Climate,Capital,Contractor Payments,BRUNEL SURVEYS LTD,CM20,06/03/2024,585.00
130594234,Landscaping & Open Space,Culture & Heritage & Art,GWCF - Trees for Climate,Capital,Contractor Payments,BRUNEL SURVEYS LTD,CM20,13/03/2024,435.00
129236233,Local Transport Plan Funded,Strategic Planning and Highways,Surface Water Management,Capital,Contractor Payments,BRUNEL SURVEYS LTD,CM20,08/03/2024,"1,000.00"
132189234,NEV,"Economy, Growth and Place",Southern Connector Road,Capital,Compensation Payments,BRUTON KNOWLES,GL2 ,20/03/2024,"20,308.80"
130980233,NEV,"Economy, Growth and Place",Southern Connector Road,Capital,Consultants,BRUTON KNOWLES,GL2 ,15/03/2024,"1,347.13"
129638233,NEV,"Economy, Growth and Place",Southern Connector Road,Capital,Consultants,BRUTON KNOWLES,GL2 ,08/03/2024,"2,702.15"
133936233,Social Care,Children & Families,Children's Resource and Home Finding Team,3rd Party Payments,Semi Independent,BUDWOOD LTD,B60 ,27/03/2024,"2,850.00"
133937233,Social Care,Children & Families,Children's Resource and Home Finding Team,3rd Party Payments,Residential Care,BUDWOOD LTD,B60 ,27/03/2024,"7,693.76"
133142233,Wichelstowe,"Economy, Growth and Place",District Centre,Capital,Professional Fees,BUILDING DESIGN PARTNERSHIP LTD,BS1 ,22/03/2024,"4,048.00"
130801233,Wichelstowe,"Economy, Growth and Place",District Centre,Capital,Professional Fees,BUILDING DESIGN PARTNERSHIP LTD,BS1 ,13/03/2024,"33,898.00"
129502233,Highways & Transport,Highways & Transport,Highways Management,Supplies and Services,Subscriptions,BUILDING SOFTWARE LTD,EX16,08/03/2024,"18,750.00"
131261241,Property & Assets,Property & Assets,General Enhancement Works Corporate Buildings,Capital,Contractor Payments,BUILDTECH SW LIMITED,GL53,15/03/2024,685.00
131261241,Property & Assets,Property & Assets,General Enhancement Works Corporate Buildings,Capital,Contractor Payments,BUILDTECH SW LIMITED,GL53,15/03/2024,"4,178.89"
131511233,Neighbourhood Wardens,Special Services,Neighbourhood Wardens,Supplies and Services,Hire / Rental,BUNZL CLEANING & HYGIENE SUPPLIES,BS11,18/03/2024,971.27
131647234,Neighbourhood Wardens,Special Services,Neighbourhood Wardens,Supplies and Services,Hire / Rental,BUNZL CLEANING & HYGIENE SUPPLIES,SL3 ,18/03/2024,820.07
130318317,Physical Support,Adults,Physical Support 65 and over,3rd Party Payments,Residential Care,BUPA CARE HOME (ANS) LTD,LS5 ,13/03/2024,"1,100.00"
130318317,Physical Support,Adults,Physical Support 65 and over,3rd Party Payments,Residential Care,BUPA CARE HOME (ANS) LTD,LS5 ,13/03/2024,"3,300.00"
131912234,Sheltered Accomodation,Special Services,Elizabeth House,Supplies and Services,Equipment,BURDEN ELECTRONICS,SN1 ,20/03/2024,835.84
130725233,Sheltered Accomodation,Special Services,Harold Thorpe Gardens,Supplies and Services,Equipment,BURDEN ELECTRONICS,SN1 ,13/03/2024,794.16
129823233,Early Years Block,Dedicated Schools Grant (DSG),Free Nursery Education Commissioning - two year olds,3rd Party Payments,Contracts - Child Care,"BUSY BEES, BROOME MANOR",SN3 ,13/03/2024,"1,273.80"
131846235,High Needs Block,Dedicated Schools Grant (DSG),SEN Resourcing Assessment Panel,3rd Party Payments,Top up funding - Maintained providers Pre 16,"BUSY BEES, BROOME MANOR",SN3 ,20/03/2024,912.00
129822233,Early Years Block,Dedicated Schools Grant (DSG),Free Nursery Education Commissioning - three & four  year olds,3rd Party Payments,Contracts - Child Care,"BUSY BEES, BROOME MANOR",SN3 ,13/03/2024,"10,143.45"
129824233,Early Years Block,Dedicated Schools Grant (DSG),Free Nursery Education Commissioning - two year olds,3rd Party Payments,Contracts - Child Care,"BUSY BEES, PEATMOOR",SN5 ,13/03/2024,"1,273.80"
131847234,High Needs Block,Dedicated Schools Grant (DSG),SEN Resourcing Assessment Panel,3rd Party Payments,Top up funding - Maintained providers Pre 16,"BUSY BEES, PEATMOOR",SN5 ,20/03/2024,"1,188.00"
129825233,Early Years Block,Dedicated Schools Grant (DSG),Free Nursery Education Commissioning - three & four  year olds,3rd Party Payments,Contracts - Child Care,"BUSY BEES, PEATMOOR",SN5 ,13/03/2024,"10,527.33"
131847233,High Needs Block,Dedicated Schools Grant (DSG),SEN Resourcing Assessment Panel,3rd Party Payments,Top up funding - Maintained providers Pre 16,"BUSY BEES, PEATMOOR",SN5 ,20/03/2024,660.00
129820233,Early Years Block,Dedicated Schools Grant (DSG),Free Nursery Education Commissioning - two year olds,3rd Party Payments,Contracts - Child Care,"BUSY BEES, ST ANDREWS RIDGE",SN25,13/03/2024,"2,177.04"
129821233,Early Years Block,Dedicated Schools Grant (DSG),Free Nursery Education Commissioning - three & four  year olds,3rd Party Payments,Contracts - Child Care,"BUSY BEES, ST ANDREWS RIDGE",SN25,13/03/2024,"16,915.20"
128973233,Highways Schemes,Strategic Planning and Highways,Mead Way Junction Improvements,Capital,Contractor Payments,BUTLER SIGNS,RG20,06/03/2024,"3,282.60"
129462233,Landscaping & Open Space,Culture & Heritage & Art,Mouldon Hill Country Park,Capital,Contractor Payments,C J COOK CONTRACTORS LTD,GL53,08/03/2024,"49,674.10"
130318251,Learning Disabilities,Adults,Learning Disability 65 and over,3rd Party Payments,Residential Care,C.H.O.I.C.E LTD,RG12,13/03/2024,"7,396.74"
130318249,Learning Disabilities,Adults,Learning Disability 18 - 64,Income,Client Contribution - Residential,C.H.O.I.C.E LTD,RG12,13/03/2024,-106.80
130318253,Learning Disabilities,Adults,Learning Disability 18 - 64,3rd Party Payments,Residential Care,C.H.O.I.C.E LTD,RG12,13/03/2024,"10,402.56"
130318250,Learning Disabilities,Adults,Learning Disability 18 - 64,3rd Party Payments,Residential Care,C.H.O.I.C.E LTD,SO23,13/03/2024,"2,132.94"
130318250,Learning Disabilities,Adults,Learning Disability 18 - 64,3rd Party Payments,Residential Care,C.H.O.I.C.E LTD,SO23,13/03/2024,"6,398.82"
130318249,Learning Disabilities,Adults,Learning Disability 18 - 64,Income,Client Contribution - Residential,C.H.O.I.C.E LTD,RG12,13/03/2024,-320.40
130318253,Physical Support,Adults,Physical Support 18 - 64,3rd Party Payments,Residential Care,C.H.O.I.C.E LTD,RG12,13/03/2024,"8,587.14"
130318253,Learning Disabilities,Adults,Learning Disability 18 - 64,3rd Party Payments,Residential Care,C.H.O.I.C.E LTD,RG12,13/03/2024,"3,467.52"
130318252,Learning Disabilities,Adults,Learning Disability 18 - 64,3rd Party Payments,Residential Care,C.H.O.I.C.E LTD,RG12,13/03/2024,"7,785.12"
130318252,Learning Disabilities,Adults,Learning Disability 18 - 64,Income,Client Contribution - Residential,C.H.O.I.C.E LTD,RG12,13/03/2024,-120.25
130318252,Learning Disabilities,Adults,Learning Disability 18 - 64,Income,Client Contribution - Residential,C.H.O.I.C.E LTD,RG12,13/03/2024,-360.75
130318252,Learning Disabilities,Adults,Learning Disability 18 - 64,Income,Client Contribution - Residential,C.H.O.I.C.E LTD,RG12,13/03/2024,-479.40
130318253,Physical Support,Adults,Physical Support 18 - 64,3rd Party Payments,Residential Care,C.H.O.I.C.E LTD,RG12,13/03/2024,"2,862.38"
130318252,Learning Disabilities,Adults,Learning Disability 18 - 64,3rd Party Payments,Residential Care,C.H.O.I.C.E LTD,RG12,13/03/2024,"2,595.04"
130318249,Learning Disabilities,Adults,Learning Disability 18 - 64,3rd Party Payments,Residential Care,C.H.O.I.C.E LTD,RG12,13/03/2024,"10,360.56"
130318253,Learning Disabilities,Adults,Learning Disability 18 - 64,Income,Client Contribution - Residential,C.H.O.I.C.E LTD,RG12,13/03/2024,-69.15
130318248,Learning Disabilities,Adults,Learning Disability 18 - 64,Income,Client Contribution - Residential,C.H.O.I.C.E LTD,RG12,13/03/2024,-383.40
130318251,Learning Disabilities,Adults,Learning Disability 65 and over,Income,Client Contribution - Residential,C.H.O.I.C.E LTD,RG12,13/03/2024,-518.40
130318251,Learning Disabilities,Adults,Learning Disability 65 and over,Income,Client Contribution - Residential,C.H.O.I.C.E LTD,RG12,13/03/2024,-193.30
130318252,Learning Disabilities,Adults,Learning Disability 18 - 64,3rd Party Payments,Residential Care,C.H.O.I.C.E LTD,RG12,13/03/2024,"2,471.84"
130318252,Learning Disabilities,Adults,Learning Disability 18 - 64,3rd Party Payments,Residential Care,C.H.O.I.C.E LTD,RG12,13/03/2024,"7,415.52"
130318253,Learning Disabilities,Adults,Learning Disability 18 - 64,Income,Client Contribution - Residential,C.H.O.I.C.E LTD,RG12,13/03/2024,-113.70
130318252,Learning Disabilities,Adults,Learning Disability 18 - 64,Income,Client Contribution - Residential,C.H.O.I.C.E LTD,RG12,13/03/2024,-463.32
130318247,Learning Disabilities,Adults,Learning Disability 18 - 64,Income,Client Contribution - Residential,C.H.O.I.C.E LTD,RG12,13/03/2024,-96.14
130318247,Learning Disabilities,Adults,Learning Disability 18 - 64,Income,Client Contribution - Residential,C.H.O.I.C.E LTD,RG12,13/03/2024,-288.42
130318251,Learning Disabilities,Adults,Learning Disability 65 and over,3rd Party Payments,Residential Care,C.H.O.I.C.E LTD,RG12,13/03/2024,"2,465.58"
130318248,Learning Disabilities,Adults,Learning Disability 18 - 64,3rd Party Payments,Residential Care,C.H.O.I.C.E LTD,RG12,13/03/2024,"7,148.64"
130318252,Learning Disabilities,Adults,Learning Disability 18 - 64,3rd Party Payments,Residential Care,C.H.O.I.C.E LTD,RG12,13/03/2024,"7,348.32"
130318248,Learning Disabilities,Adults,Learning Disability 18 - 64,3rd Party Payments,Residential Care,C.H.O.I.C.E LTD,RG12,13/03/2024,-127.80
130318247,Learning Disabilities,Adults,Learning Disability 18 - 64,3rd Party Payments,Residential Care,C.H.O.I.C.E LTD,RG12,13/03/2024,"10,080.00"
130318248,Learning Disabilities,Adults,Learning Disability 18 - 64,Income,Client Contribution - Residential,C.H.O.I.C.E LTD,RG12,13/03/2024,-127.80
130318251,Learning Disabilities,Adults,Learning Disability 65 and over,3rd Party Payments,Residential Care,C.H.O.I.C.E LTD,RG12,13/03/2024,"2,629.16"
130318251,Learning Disabilities,Adults,Learning Disability 65 and over,Income,Client Contribution - Residential,C.H.O.I.C.E LTD,RG12,13/03/2024,-579.90
130318251,Learning Disabilities,Adults,Learning Disability 65 and over,3rd Party Payments,Residential Care,C.H.O.I.C.E LTD,RG12,13/03/2024,"7,887.48"
130318251,Learning Disabilities,Adults,Learning Disability 65 and over,Income,Client Contribution - Residential,C.H.O.I.C.E LTD,RG12,13/03/2024,-172.80
130318253,Physical Support,Adults,Physical Support 18 - 64,Income,Client Contribution - Residential,C.H.O.I.C.E LTD,RG12,13/03/2024,-362.40
130318248,Learning Disabilities,Adults,Learning Disability 18 - 64,3rd Party Payments,Residential Care,C.H.O.I.C.E LTD,RG12,13/03/2024,"2,382.88"
130318247,Learning Disabilities,Adults,Learning Disability 18 - 64,3rd Party Payments,Residential Care,C.H.O.I.C.E LTD,RG12,13/03/2024,"3,360.00"
130318253,Learning Disabilities,Adults,Learning Disability 18 - 64,Income,Client Contribution - Residential,C.H.O.I.C.E LTD,RG12,13/03/2024,-341.10
130318253,Learning Disabilities,Adults,Learning Disability 18 - 64,Income,Client Contribution - Residential,C.H.O.I.C.E LTD,RG12,13/03/2024,-207.45
130318253,Physical Support,Adults,Physical Support 18 - 64,Income,Client Contribution - Residential,C.H.O.I.C.E LTD,RG12,13/03/2024,-120.80
130318253,Learning Disabilities,Adults,Learning Disability 18 - 64,3rd Party Payments,Residential Care,C.H.O.I.C.E LTD,RG12,13/03/2024,"9,633.12"
130318252,Learning Disabilities,Adults,Learning Disability 18 - 64,3rd Party Payments,Residential Care,C.H.O.I.C.E LTD,RG12,13/03/2024,"2,449.44"
130318249,Learning Disabilities,Adults,Learning Disability 18 - 64,3rd Party Payments,Residential Care,C.H.O.I.C.E LTD,RG12,13/03/2024,"3,453.52"
130318252,Learning Disabilities,Adults,Learning Disability 18 - 64,Income,Client Contribution - Residential,C.H.O.I.C.E LTD,RG12,13/03/2024,-159.80
130318252,Learning Disabilities,Adults,Learning Disability 18 - 64,Income,Client Contribution - Residential,C.H.O.I.C.E LTD,RG12,13/03/2024,-154.44
130318253,Learning Disabilities,Adults,Learning Disability 18 - 64,3rd Party Payments,Residential Care,C.H.O.I.C.E LTD,RG12,13/03/2024,"3,211.04"
131262251,Social Care,Children & Families,Children's Resource and Home Finding Team,3rd Party Payments,Residential Care,CALCOT SERVICES FOR CHILDREN LTD,RG7 ,15/03/2024,"29,361.34"
131262250,Social Care,Children & Families,Children's Resource and Home Finding Team,3rd Party Payments,Residential Care,CALCOT SERVICES FOR CHILDREN LTD,RG7 ,15/03/2024,"29,892.68"
133976233,Social Care,Children & Families,Children's Resource and Home Finding Team,3rd Party Payments,Independent Fostering Agency Placements,CALDECOTT FOSTERING LTD,TN25,27/03/2024,"7,146.43"
131258487,Learning Disabilities,Adults,Learning Disability 18 - 64,Transfer Payments,Personal Budget - Direct Payments - Domiciliary Care,REDACTED PERSONAL DATA,SP11,15/03/2024,99.16
131258487,Learning Disabilities,Adults,Learning Disability 18 - 64,Income,Client Contribution - Personal Budget - DP,REDACTED PERSONAL DATA,SP11,15/03/2024,-13.56
131258487,Learning Disabilities,Adults,Learning Disability 18 - 64,Income,Client Contribution - Personal Budget - DP,REDACTED PERSONAL DATA,SP11,15/03/2024,-2.46
131258487,Learning Disabilities,Adults,Learning Disability 18 - 64,Transfer Payments,Personal Budget - Direct Payments - Domiciliary Care,REDACTED PERSONAL DATA,SP11,15/03/2024,47.40
131258487,Learning Disabilities,Adults,Learning Disability 18 - 64,Transfer Payments,Personal Budget - Direct Payments - Domiciliary Care,REDACTED PERSONAL DATA,SP11,15/03/2024,180.24
131258487,Learning Disabilities,Adults,Learning Disability 18 - 64,Income,Client Contribution - Personal Budget - DP,REDACTED PERSONAL DATA,SP11,15/03/2024,-9.38
131258487,Learning Disabilities,Adults,Learning Disability 18 - 64,Transfer Payments,Personal Budget - Direct Payments - Domiciliary Care,REDACTED PERSONAL DATA,SP11,15/03/2024,260.48
131258487,Learning Disabilities,Adults,Learning Disability 18 - 64,Transfer Payments,Personal Budget - Direct Payments - Domiciliary Care,REDACTED PERSONAL DATA,SP11,15/03/2024,410.88
131258487,Learning Disabilities,Adults,Learning Disability 18 - 64,Income,Client Contribution - Personal Budget - DP,REDACTED PERSONAL DATA,SP11,15/03/2024,-5.18
131258487,Learning Disabilities,Adults,Learning Disability 18 - 64,Income,Client Contribution - Personal Budget - DP,REDACTED PERSONAL DATA,SP11,15/03/2024,-21.40
131258582,Learning Disabilities,Adults,Learning Disability 18 - 64,Transfer Payments,Personal Budget - Direct Payments - Domiciliary Care,REDACTED PERSONAL DATA,SP11,15/03/2024,325.60
132625233,Lydiard Park,Culture & Heritage,Lydiard : Hotel Operations,Premises Costs,Gas,CALOR GAS LTD,CV34,22/03/2024,"2,083.19"
132092233,Lydiard Park,Culture & Heritage,Lydiard : Hotel Operations,Premises Costs,Gas,CALOR GAS LTD,CV34,20/03/2024,"2,203.11"
126830233,Lydiard Park,Culture & Heritage,Lydiard House & Park,Premises Costs,Gas,CALOR GAS LTD,CV34,06/03/2024,"1,177.68"
131949233,Lydiard Park,Culture & Heritage,Lydiard House & Park,Premises Costs,Gas,CALOR GAS LTD,CV34,20/03/2024,944.16
128461233,Lydiard Park,Culture & Heritage,Lydiard : Hotel Operations,Premises Costs,Gas,CALOR GAS LTD,CV34,01/03/2024,"1,985.49"
129040233,Lydiard Park,Culture & Heritage,Lydiard : Hotel Operations,Premises Costs,Gas,CALOR GAS LTD,CV34,06/03/2024,"2,328.30"
126000233,Parking & Bus lanes,Highway Operations and Car Parking,Car Parking,Supplies and Services,Equipment,CAME PARKARE,DE74,06/03/2024,440.00
125989233,Parking & Bus lanes,Highway Operations and Car Parking,Car Parking,Supplies and Services,Fees,CAME PARKARE,DE74,06/03/2024,"1,792.25"
130424234,Parking & Bus lanes,Highway Operations and Car Parking,Car Parking,Supplies and Services,Equipment,CAME PARKARE,DE74,13/03/2024,440.00
129598233,Parking & Bus lanes,Highway Operations and Car Parking,Car Parking,Supplies and Services,Equipment,CAME PARKARE,DE74,08/03/2024,440.00
130419233,Parking & Bus lanes,Highway Operations and Car Parking,Car Parking,Supplies and Services,Fees,CAME PARKARE,DE74,13/03/2024,"1,893.65"
131258319,Physical Support,Adults,Physical Support 18 - 64,Income,Client Contribution - Personal Budget - DP,REDACTED PERSONAL DATA,SN25,15/03/2024,-26.36
131258319,Physical Support,Adults,Physical Support 18 - 64,Transfer Payments,Personal Budget - Direct Payments - Domiciliary Care,REDACTED PERSONAL DATA,SN25,15/03/2024,204.12
131258319,Physical Support,Adults,Physical Support 18 - 64,Transfer Payments,Personal Budget - Direct Payments - Domiciliary Care,REDACTED PERSONAL DATA,SN25,15/03/2024,293.04
131258319,Physical Support,Adults,Physical Support 18 - 64,Income,Client Contribution - Personal Budget - DP,REDACTED PERSONAL DATA,SN25,15/03/2024,-37.84
131883233,Social Care,Children & Families,Legal Fees,Supplies and Services,Fees,CANSFORD LABORATORIES LTD,CF23,20/03/2024,440.84
128730234,Other Repairs,Repairs,Cyclical Maintenance,Supplies and Services,Testing / Inspection,CANTILLON GROUP LTD,SN25,04/03/2024,968.80
128730234,Other Repairs,Repairs,Cyclical Maintenance,Supplies and Services,Testing / Inspection,CANTILLON GROUP LTD,SN25,04/03/2024,192.32
128730234,Other Repairs,Repairs,Cyclical Maintenance,Supplies and Services,Testing / Inspection,CANTILLON GROUP LTD,SN25,04/03/2024,877.96
128730234,Other Repairs,Repairs,Cyclical Maintenance,Supplies and Services,Testing / Inspection,CANTILLON GROUP LTD,SN25,04/03/2024,789.59
128730234,Other Repairs,Repairs,Cyclical Maintenance,Supplies and Services,Testing / Inspection,CANTILLON GROUP LTD,SN25,04/03/2024,440.83
128730234,Other Repairs,Repairs,Cyclical Maintenance,Supplies and Services,Testing / Inspection,CANTILLON GROUP LTD,SN25,04/03/2024,159.75
128730234,Other Repairs,Repairs,Cyclical Maintenance,Supplies and Services,Testing / Inspection,CANTILLON GROUP LTD,SN25,04/03/2024,108.30
128730234,Other Repairs,Repairs,Cyclical Maintenance,Supplies and Services,Testing / Inspection,CANTILLON GROUP LTD,SN25,04/03/2024,137.55
128730234,Other Repairs,Repairs,Cyclical Maintenance,Supplies and Services,Testing / Inspection,CANTILLON GROUP LTD,SN25,04/03/2024,"1,240.19"
128730234,Other Repairs,Repairs,Cyclical Maintenance,Supplies and Services,Testing / Inspection,CANTILLON GROUP LTD,SN25,04/03/2024,301.60
128262233,Void Repairs,Supervision & Management,Void Property Repairs,3rd Party Payments,Contract Payments,CANTILLON GROUP LTD,SN25,01/03/2024,"6,919.90"
134018233,Other Repairs,Repairs,Cyclical Maintenance,Supplies and Services,Testing / Inspection,CANTILLON GROUP LTD,SN25,27/03/2024,30.00
134018233,Other Repairs,Repairs,Cyclical Maintenance,Supplies and Services,Testing / Inspection,CANTILLON GROUP LTD,SN25,27/03/2024,185.31
134018233,Other Repairs,Repairs,Cyclical Maintenance,Supplies and Services,Testing / Inspection,CANTILLON GROUP LTD,SN25,27/03/2024,98.69
134018233,Other Repairs,Repairs,Cyclical Maintenance,Supplies and Services,Testing / Inspection,CANTILLON GROUP LTD,SN25,27/03/2024,211.70
134018233,Other Repairs,Repairs,Cyclical Maintenance,Supplies and Services,Testing / Inspection,CANTILLON GROUP LTD,SN25,27/03/2024,847.34
134018233,Other Repairs,Repairs,Cyclical Maintenance,Supplies and Services,Testing / Inspection,CANTILLON GROUP LTD,SN25,27/03/2024,972.76
134018233,Other Repairs,Repairs,Cyclical Maintenance,Supplies and Services,Testing / Inspection,CANTILLON GROUP LTD,SN25,27/03/2024,199.13
134018233,Other Repairs,Repairs,Cyclical Maintenance,Supplies and Services,Testing / Inspection,CANTILLON GROUP LTD,SN25,27/03/2024,"-5,651.20"
134018233,Other Repairs,Repairs,Cyclical Maintenance,Supplies and Services,Testing / Inspection,CANTILLON GROUP LTD,SN25,27/03/2024,98.30
134018233,Other Repairs,Repairs,Cyclical Maintenance,Supplies and Services,Testing / Inspection,CANTILLON GROUP LTD,SN25,27/03/2024,97.77
134018233,Other Repairs,Repairs,Cyclical Maintenance,Supplies and Services,Testing / Inspection,CANTILLON GROUP LTD,SN25,27/03/2024,143.91
134018233,Other Repairs,Repairs,Cyclical Maintenance,Supplies and Services,Testing / Inspection,CANTILLON GROUP LTD,SN25,27/03/2024,126.63
134077233,Other Repairs,Repairs,Cyclical Maintenance,Supplies and Services,Testing / Inspection,CANTILLON GROUP LTD,SN25,27/03/2024,88.30
131827233,Other Repairs,Repairs,Cyclical Maintenance,Supplies and Services,Testing / Inspection,CANTILLON GROUP LTD,SN25,20/03/2024,"1,103.45"
128803233,Other Repairs,Repairs,Cyclical Maintenance,Supplies and Services,Testing / Inspection,CANTILLON GROUP LTD,SN25,06/03/2024,226.53
128803233,Other Repairs,Repairs,Cyclical Maintenance,Supplies and Services,Testing / Inspection,CANTILLON GROUP LTD,SN25,06/03/2024,562.44
128803233,Other Repairs,Repairs,Cyclical Maintenance,Supplies and Services,Testing / Inspection,CANTILLON GROUP LTD,SN25,06/03/2024,"1,747.43"
128730234,Other Repairs,Repairs,Cyclical Maintenance,Supplies and Services,Testing / Inspection,CANTILLON GROUP LTD,SN25,04/03/2024,107.55
128730234,Other Repairs,Repairs,Cyclical Maintenance,Supplies and Services,Testing / Inspection,CANTILLON GROUP LTD,SN25,04/03/2024,927.09
128730234,Other Repairs,Repairs,Cyclical Maintenance,Supplies and Services,Testing / Inspection,CANTILLON GROUP LTD,SN25,04/03/2024,144.57
128730234,Other Repairs,Repairs,Cyclical Maintenance,Supplies and Services,Testing / Inspection,CANTILLON GROUP LTD,SN25,04/03/2024,127.63
128262233,Void Repairs,Supervision & Management,Void Property Repairs,3rd Party Payments,Contract Payments,CANTILLON GROUP LTD,SN25,01/03/2024,82.59
133376233,Void Properties,HRA Capital Financing,"Voids - Fencing, Concreting & Environmental Works",Capital,Contractor Payments,CANTILLON GROUP LTD,SN25,25/03/2024,"7,706.91"
128262233,Void Properties,HRA Capital Financing,"Voids - Fencing, Concreting & Environmental Works",Capital,Contractor Payments,CANTILLON GROUP LTD,SN25,01/03/2024,"14,401.01"
128262233,Void Properties,HRA Capital Financing,"Voids - Fencing, Concreting & Environmental Works",Capital,Contractor Payments,CANTILLON GROUP LTD,SN25,01/03/2024,"16,848.48"
128262233,Void Properties,HRA Capital Financing,"Voids - Fencing, Concreting & Environmental Works",Capital,Contractor Payments,CANTILLON GROUP LTD,SN25,01/03/2024,"9,305.96"
128262233,Void Properties,HRA Capital Financing,"Voids - Fencing, Concreting & Environmental Works",Capital,Contractor Payments,CANTILLON GROUP LTD,SN25,01/03/2024,"24,085.00"
133376233,Void Properties,HRA Capital Financing,Voids - Windows & Ext Doors,Capital,Contractor Payments,CANTILLON GROUP LTD,SN25,25/03/2024,"1,157.25"
134018233,Other Repairs,Repairs,Cyclical Maintenance,Supplies and Services,Testing / Inspection,CANTILLON GROUP LTD,SN25,27/03/2024,88.30
134018233,Other Repairs,Repairs,Cyclical Maintenance,Supplies and Services,Testing / Inspection,CANTILLON GROUP LTD,SN25,27/03/2024,96.59
134018233,Other Repairs,Repairs,Cyclical Maintenance,Supplies and Services,Testing / Inspection,CANTILLON GROUP LTD,SN25,27/03/2024,319.45
134018233,Other Repairs,Repairs,Cyclical Maintenance,Supplies and Services,Testing / Inspection,CANTILLON GROUP LTD,SN25,27/03/2024,829.58
134018233,Other Repairs,Repairs,Cyclical Maintenance,Supplies and Services,Testing / Inspection,CANTILLON GROUP LTD,SN25,27/03/2024,129.36
134018233,Other Repairs,Repairs,Cyclical Maintenance,Supplies and Services,Testing / Inspection,CANTILLON GROUP LTD,SN25,27/03/2024,117.37
134077233,Other Repairs,Repairs,Cyclical Maintenance,Supplies and Services,Testing / Inspection,CANTILLON GROUP LTD,SN25,27/03/2024,175.46
131260235,Other Repairs,Repairs,Cyclical Maintenance,Supplies and Services,Testing / Inspection,CANTILLON GROUP LTD,SN25,15/03/2024,"1,619.08"
131260235,Other Repairs,Repairs,Cyclical Maintenance,Supplies and Services,Testing / Inspection,CANTILLON GROUP LTD,SN25,15/03/2024,787.63
128803233,Other Repairs,Repairs,Cyclical Maintenance,Supplies and Services,Testing / Inspection,CANTILLON GROUP LTD,SN25,06/03/2024,147.47
128803233,Other Repairs,Repairs,Cyclical Maintenance,Supplies and Services,Testing / Inspection,CANTILLON GROUP LTD,SN25,06/03/2024,739.71
128803233,Other Repairs,Repairs,Cyclical Maintenance,Supplies and Services,Testing / Inspection,CANTILLON GROUP LTD,SN25,06/03/2024,721.86
128803233,Other Repairs,Repairs,Cyclical Maintenance,Supplies and Services,Testing / Inspection,CANTILLON GROUP LTD,SN25,06/03/2024,272.28
128803233,Other Repairs,Repairs,Cyclical Maintenance,Supplies and Services,Testing / Inspection,CANTILLON GROUP LTD,SN25,06/03/2024,424.48
128730234,Other Repairs,Repairs,Cyclical Maintenance,Supplies and Services,Testing / Inspection,CANTILLON GROUP LTD,SN25,04/03/2024,128.15
128730234,Other Repairs,Repairs,Cyclical Maintenance,Supplies and Services,Testing / Inspection,CANTILLON GROUP LTD,SN25,04/03/2024,114.69
128730234,Other Repairs,Repairs,Cyclical Maintenance,Supplies and Services,Testing / Inspection,CANTILLON GROUP LTD,SN25,04/03/2024,167.47
128730234,Other Repairs,Repairs,Cyclical Maintenance,Supplies and Services,Testing / Inspection,CANTILLON GROUP LTD,SN25,04/03/2024,88.30
128730234,Other Repairs,Repairs,Cyclical Maintenance,Supplies and Services,Testing / Inspection,CANTILLON GROUP LTD,SN25,04/03/2024,577.84
128730234,Other Repairs,Repairs,Cyclical Maintenance,Supplies and Services,Testing / Inspection,CANTILLON GROUP LTD,SN25,04/03/2024,120.62
128730234,Other Repairs,Repairs,Cyclical Maintenance,Supplies and Services,Testing / Inspection,CANTILLON GROUP LTD,SN25,04/03/2024,138.15
128730234,Other Repairs,Repairs,Cyclical Maintenance,Supplies and Services,Testing / Inspection,CANTILLON GROUP LTD,SN25,04/03/2024,593.28
133376233,Void Properties,HRA Capital Financing,Voids - Central Heating,Capital,Contractor Payments,CANTILLON GROUP LTD,SN25,25/03/2024,"40,000.00"
133376233,Void Properties,HRA Capital Financing,Voids - Kitchens,Capital,Contractor Payments,CANTILLON GROUP LTD,SN25,25/03/2024,"4,108.90"
133376233,Void Repairs,Supervision & Management,Void Property Repairs,3rd Party Payments,Contract Payments,CANTILLON GROUP LTD,SN25,25/03/2024,77.61
128262233,Void Repairs,Supervision & Management,Void Property Repairs,3rd Party Payments,Contract Payments,CANTILLON GROUP LTD,SN25,01/03/2024,62.53
133376233,Void Properties,HRA Capital Financing,"Voids - Fencing, Concreting & Environmental Works",Capital,Contractor Payments,CANTILLON GROUP LTD,SN25,25/03/2024,"5,328.01"
128262233,Void Properties,HRA Capital Financing,"Voids - Fencing, Concreting & Environmental Works",Capital,Contractor Payments,CANTILLON GROUP LTD,SN25,01/03/2024,"8,054.28"
134018233,Other Repairs,Repairs,Cyclical Maintenance,Supplies and Services,Testing / Inspection,CANTILLON GROUP LTD,SN25,27/03/2024,145.46
134077233,Other Repairs,Repairs,Cyclical Maintenance,Supplies and Services,Testing / Inspection,CANTILLON GROUP LTD,SN25,27/03/2024,971.30
131827233,Other Repairs,Repairs,Cyclical Maintenance,Supplies and Services,Testing / Inspection,CANTILLON GROUP LTD,SN25,20/03/2024,"1,034.45"
131827233,Other Repairs,Repairs,Cyclical Maintenance,Supplies and Services,Testing / Inspection,CANTILLON GROUP LTD,SN25,20/03/2024,114.69
131260235,Other Repairs,Repairs,Cyclical Maintenance,Supplies and Services,Testing / Inspection,CANTILLON GROUP LTD,SN25,15/03/2024,30.00
131260235,Other Repairs,Repairs,Cyclical Maintenance,Supplies and Services,Testing / Inspection,CANTILLON GROUP LTD,SN25,15/03/2024,241.70
129847233,Other Repairs,Repairs,Cyclical Maintenance,Supplies and Services,Testing / Inspection,CANTILLON GROUP LTD,SN25,08/03/2024,88.30
128803233,Other Repairs,Repairs,Cyclical Maintenance,Supplies and Services,Testing / Inspection,CANTILLON GROUP LTD,SN25,06/03/2024,142.90
128802233,Other Repairs,Repairs,Cyclical Maintenance,Supplies and Services,Testing / Inspection,CANTILLON GROUP LTD,SN25,06/03/2024,180.00
128730234,Other Repairs,Repairs,Cyclical Maintenance,Supplies and Services,Testing / Inspection,CANTILLON GROUP LTD,SN25,04/03/2024,98.30
128730234,Other Repairs,Repairs,Cyclical Maintenance,Supplies and Services,Testing / Inspection,CANTILLON GROUP LTD,SN25,04/03/2024,802.48
133376233,Void Properties,HRA Capital Financing,Voids - Central Heating,Capital,Contractor Payments,CANTILLON GROUP LTD,SN25,25/03/2024,"6,449.80"
128518233,Other Repairs,Repairs,Cyclical Maintenance,Supplies and Services,Testing / Inspection,CANTILLON GROUP LTD,SN25,01/03/2024,88.30
128262233,Void Properties,HRA Capital Financing,Voids - Kitchens,Capital,Contractor Payments,CANTILLON GROUP LTD,SN25,01/03/2024,"7,976.60"
133376233,Void Repairs,Supervision & Management,Void Property Repairs,3rd Party Payments,Contract Payments,CANTILLON GROUP LTD,SN25,25/03/2024,990.00
133376233,Void Repairs,Supervision & Management,Void Property Repairs,3rd Party Payments,Contract Payments,CANTILLON GROUP LTD,SN25,25/03/2024,"3,937.72"
133376233,Void Repairs,Supervision & Management,Void Property Repairs,3rd Party Payments,Contract Payments,CANTILLON GROUP LTD,SN25,25/03/2024,"17,276.86"
128262233,Void Repairs,Supervision & Management,Void Property Repairs,3rd Party Payments,Contract Payments,CANTILLON GROUP LTD,SN25,01/03/2024,56.99
128262233,Void Repairs,Supervision & Management,Void Property Repairs,3rd Party Payments,Contract Payments,CANTILLON GROUP LTD,SN25,01/03/2024,"15,932.05"
128262233,Void Properties,HRA Capital Financing,"Voids - Fencing, Concreting & Environmental Works",Capital,Contractor Payments,CANTILLON GROUP LTD,SN25,01/03/2024,"6,289.91"
128262233,Void Properties,HRA Capital Financing,"Voids - Fencing, Concreting & Environmental Works",Capital,Contractor Payments,CANTILLON GROUP LTD,SN25,01/03/2024,"7,971.97"
128262233,Void Properties,HRA Capital Financing,"Voids - Fencing, Concreting & Environmental Works",Capital,Contractor Payments,CANTILLON GROUP LTD,SN25,01/03/2024,"6,026.15"
134018233,Other Repairs,Repairs,Cyclical Maintenance,Supplies and Services,Testing / Inspection,CANTILLON GROUP LTD,SN25,27/03/2024,432.39
134018233,Other Repairs,Repairs,Cyclical Maintenance,Supplies and Services,Testing / Inspection,CANTILLON GROUP LTD,SN25,27/03/2024,"5,651.20"
134018233,Other Repairs,Repairs,Cyclical Maintenance,Supplies and Services,Testing / Inspection,CANTILLON GROUP LTD,SN25,27/03/2024,183.68
134018233,Other Repairs,Repairs,Cyclical Maintenance,Supplies and Services,Testing / Inspection,CANTILLON GROUP LTD,SN25,27/03/2024,272.38
134018233,Other Repairs,Repairs,Cyclical Maintenance,Supplies and Services,Testing / Inspection,CANTILLON GROUP LTD,SN25,27/03/2024,276.54
134018233,Other Repairs,Repairs,Cyclical Maintenance,Supplies and Services,Testing / Inspection,CANTILLON GROUP LTD,SN25,27/03/2024,114.69
134077233,Other Repairs,Repairs,Cyclical Maintenance,Supplies and Services,Testing / Inspection,CANTILLON GROUP LTD,SN25,27/03/2024,-971.30
134077233,Other Repairs,Repairs,Cyclical Maintenance,Supplies and Services,Testing / Inspection,CANTILLON GROUP LTD,SN25,27/03/2024,114.69
134077233,Other Repairs,Repairs,Cyclical Maintenance,Supplies and Services,Testing / Inspection,CANTILLON GROUP LTD,SN25,27/03/2024,191.45
134077233,Other Repairs,Repairs,Cyclical Maintenance,Supplies and Services,Testing / Inspection,CANTILLON GROUP LTD,SN25,27/03/2024,"1,121.68"
131827233,Other Repairs,Repairs,Cyclical Maintenance,Supplies and Services,Testing / Inspection,CANTILLON GROUP LTD,SN25,20/03/2024,604.79
131827233,Other Repairs,Repairs,Cyclical Maintenance,Supplies and Services,Testing / Inspection,CANTILLON GROUP LTD,SN25,20/03/2024,"1,588.15"
128803233,Other Repairs,Repairs,Cyclical Maintenance,Supplies and Services,Testing / Inspection,CANTILLON GROUP LTD,SN25,06/03/2024,88.30
128803233,Other Repairs,Repairs,Cyclical Maintenance,Supplies and Services,Testing / Inspection,CANTILLON GROUP LTD,SN25,06/03/2024,169.75
128803233,Other Repairs,Repairs,Cyclical Maintenance,Supplies and Services,Testing / Inspection,CANTILLON GROUP LTD,SN25,06/03/2024,740.33
128730234,Other Repairs,Repairs,Cyclical Maintenance,Supplies and Services,Testing / Inspection,CANTILLON GROUP LTD,SN25,04/03/2024,"-5,474.60"
128730234,Other Repairs,Repairs,Cyclical Maintenance,Supplies and Services,Testing / Inspection,CANTILLON GROUP LTD,SN25,04/03/2024,"1,359.11"
128730234,Other Repairs,Repairs,Cyclical Maintenance,Supplies and Services,Testing / Inspection,CANTILLON GROUP LTD,SN25,04/03/2024,228.62
128730234,Other Repairs,Repairs,Cyclical Maintenance,Supplies and Services,Testing / Inspection,CANTILLON GROUP LTD,SN25,04/03/2024,938.80
128730234,Other Repairs,Repairs,Cyclical Maintenance,Supplies and Services,Testing / Inspection,CANTILLON GROUP LTD,SN25,04/03/2024,923.85
128730234,Other Repairs,Repairs,Cyclical Maintenance,Supplies and Services,Testing / Inspection,CANTILLON GROUP LTD,SN25,04/03/2024,799.08
128730234,Other Repairs,Repairs,Cyclical Maintenance,Supplies and Services,Testing / Inspection,CANTILLON GROUP LTD,SN25,04/03/2024,902.86
128730234,Other Repairs,Repairs,Cyclical Maintenance,Supplies and Services,Testing / Inspection,CANTILLON GROUP LTD,SN25,04/03/2024,232.28
128262233,Void Properties,HRA Capital Financing,"Voids - Fencing, Concreting & Environmental Works",Capital,Contractor Payments,CANTILLON GROUP LTD,SN25,01/03/2024,"-50,000.00"
128262233,Void Properties,HRA Capital Financing,"Voids - Fencing, Concreting & Environmental Works",Capital,Contractor Payments,CANTILLON GROUP LTD,SN25,01/03/2024,"11,201.67"
133376233,Void Properties,HRA Capital Financing,Voids - Windows & Ext Doors,Capital,Contractor Payments,CANTILLON GROUP LTD,SN25,25/03/2024,217.25
128262233,Void Properties,HRA Capital Financing,Voids - Windows & Ext Doors,Capital,Contractor Payments,CANTILLON GROUP LTD,SN25,01/03/2024,"2,014.08"
134018233,Other Repairs,Repairs,Cyclical Maintenance,Supplies and Services,Testing / Inspection,CANTILLON GROUP LTD,SN25,27/03/2024,133.75
134018233,Other Repairs,Repairs,Cyclical Maintenance,Supplies and Services,Testing / Inspection,CANTILLON GROUP LTD,SN25,27/03/2024,379.75
134018233,Other Repairs,Repairs,Cyclical Maintenance,Supplies and Services,Testing / Inspection,CANTILLON GROUP LTD,SN25,27/03/2024,137.73
134077233,Other Repairs,Repairs,Cyclical Maintenance,Supplies and Services,Testing / Inspection,CANTILLON GROUP LTD,SN25,27/03/2024,"1,345.77"
131827233,Other Repairs,Repairs,Cyclical Maintenance,Supplies and Services,Testing / Inspection,CANTILLON GROUP LTD,SN25,20/03/2024,30.00
131827233,Other Repairs,Repairs,Cyclical Maintenance,Supplies and Services,Testing / Inspection,CANTILLON GROUP LTD,SN25,20/03/2024,"1,352.51"
131260235,Other Repairs,Repairs,Cyclical Maintenance,Supplies and Services,Testing / Inspection,CANTILLON GROUP LTD,SN25,15/03/2024,706.40
131260235,Other Repairs,Repairs,Cyclical Maintenance,Supplies and Services,Testing / Inspection,CANTILLON GROUP LTD,SN25,15/03/2024,"2,035.39"
129849233,Other Repairs,Repairs,Cyclical Maintenance,Supplies and Services,Testing / Inspection,CANTILLON GROUP LTD,SN25,08/03/2024,88.30
128803233,Other Repairs,Repairs,Cyclical Maintenance,Supplies and Services,Testing / Inspection,CANTILLON GROUP LTD,SN25,06/03/2024,232.28
128803233,Other Repairs,Repairs,Cyclical Maintenance,Supplies and Services,Testing / Inspection,CANTILLON GROUP LTD,SN25,06/03/2024,611.57
128730234,Other Repairs,Repairs,Cyclical Maintenance,Supplies and Services,Testing / Inspection,CANTILLON GROUP LTD,SN25,04/03/2024,30.00
134018233,Other Repairs,Repairs,Cyclical Maintenance,Supplies and Services,Testing / Inspection,CANTILLON GROUP LTD,SN25,27/03/2024,197.84
134018233,Other Repairs,Repairs,Cyclical Maintenance,Supplies and Services,Testing / Inspection,CANTILLON GROUP LTD,SN25,27/03/2024,517.85
134018233,Other Repairs,Repairs,Cyclical Maintenance,Supplies and Services,Testing / Inspection,CANTILLON GROUP LTD,SN25,27/03/2024,124.69
134018233,Other Repairs,Repairs,Cyclical Maintenance,Supplies and Services,Testing / Inspection,CANTILLON GROUP LTD,SN25,27/03/2024,262.70
134018233,Other Repairs,Repairs,Cyclical Maintenance,Supplies and Services,Testing / Inspection,CANTILLON GROUP LTD,SN25,27/03/2024,191.07
134018233,Other Repairs,Repairs,Cyclical Maintenance,Supplies and Services,Testing / Inspection,CANTILLON GROUP LTD,SN25,27/03/2024,799.79
134018233,Other Repairs,Repairs,Cyclical Maintenance,Supplies and Services,Testing / Inspection,CANTILLON GROUP LTD,SN25,27/03/2024,402.60
134018233,Other Repairs,Repairs,Cyclical Maintenance,Supplies and Services,Testing / Inspection,CANTILLON GROUP LTD,SN25,27/03/2024,97.29
134018233,Other Repairs,Repairs,Cyclical Maintenance,Supplies and Services,Testing / Inspection,CANTILLON GROUP LTD,SN25,27/03/2024,156.43
134018233,Other Repairs,Repairs,Cyclical Maintenance,Supplies and Services,Testing / Inspection,CANTILLON GROUP LTD,SN25,27/03/2024,171.45
134077233,Other Repairs,Repairs,Cyclical Maintenance,Supplies and Services,Testing / Inspection,CANTILLON GROUP LTD,SN25,27/03/2024,"1,665.07"
131827233,Other Repairs,Repairs,Cyclical Maintenance,Supplies and Services,Testing / Inspection,CANTILLON GROUP LTD,SN25,20/03/2024,"1,727.74"
131827233,Other Repairs,Repairs,Cyclical Maintenance,Supplies and Services,Testing / Inspection,CANTILLON GROUP LTD,SN25,20/03/2024,"-1,147.90"
131260235,Other Repairs,Repairs,Cyclical Maintenance,Supplies and Services,Testing / Inspection,CANTILLON GROUP LTD,SN25,15/03/2024,-706.40
128802233,Other Repairs,Repairs,Cyclical Maintenance,Supplies and Services,Testing / Inspection,CANTILLON GROUP LTD,SN25,06/03/2024,"1,109.20"
128803233,Other Repairs,Repairs,Cyclical Maintenance,Supplies and Services,Testing / Inspection,CANTILLON GROUP LTD,SN25,06/03/2024,"-1,714.10"
128730234,Other Repairs,Repairs,Cyclical Maintenance,Supplies and Services,Testing / Inspection,CANTILLON GROUP LTD,SN25,04/03/2024,981.02
133376233,Void Properties,HRA Capital Financing,Voids - Central Heating,Capital,Contractor Payments,CANTILLON GROUP LTD,SN25,25/03/2024,"5,578.22"
128262233,Void Properties,HRA Capital Financing,Voids - Bathrooms,Capital,Contractor Payments,CANTILLON GROUP LTD,SN25,01/03/2024,"2,653.15"
128262233,Void Properties,HRA Capital Financing,Voids - Bathrooms,Capital,Contractor Payments,CANTILLON GROUP LTD,SN25,01/03/2024,"2,340.64"
133376233,Void Properties,HRA Capital Financing,Voids - Kitchens,Capital,Contractor Payments,CANTILLON GROUP LTD,SN25,25/03/2024,"4,846.64"
128262233,Void Properties,HRA Capital Financing,Voids - Kitchens,Capital,Contractor Payments,CANTILLON GROUP LTD,SN25,01/03/2024,"7,337.47"
133376233,Void Properties,HRA Capital Financing,"Voids - Fencing, Concreting & Environmental Works",Capital,Contractor Payments,CANTILLON GROUP LTD,SN25,25/03/2024,"3,072.61"
133376233,Void Properties,HRA Capital Financing,"Voids - Fencing, Concreting & Environmental Works",Capital,Contractor Payments,CANTILLON GROUP LTD,SN25,25/03/2024,"4,650.67"
128262233,Void Properties,HRA Capital Financing,"Voids - Fencing, Concreting & Environmental Works",Capital,Contractor Payments,CANTILLON GROUP LTD,SN25,01/03/2024,"1,442.40"
128730234,Other Repairs,Repairs,Cyclical Maintenance,Supplies and Services,Testing / Inspection,CANTILLON GROUP LTD,SN25,04/03/2024,917.81
128730234,Other Repairs,Repairs,Cyclical Maintenance,Supplies and Services,Testing / Inspection,CANTILLON GROUP LTD,SN25,04/03/2024,292.28
128730234,Other Repairs,Repairs,Cyclical Maintenance,Supplies and Services,Testing / Inspection,CANTILLON GROUP LTD,SN25,04/03/2024,293.81
128730234,Other Repairs,Repairs,Cyclical Maintenance,Supplies and Services,Testing / Inspection,CANTILLON GROUP LTD,SN25,04/03/2024,465.89
128730234,Other Repairs,Repairs,Cyclical Maintenance,Supplies and Services,Testing / Inspection,CANTILLON GROUP LTD,SN25,04/03/2024,548.30
133376233,Void Properties,HRA Capital Financing,Voids - Central Heating,Capital,Contractor Payments,CANTILLON GROUP LTD,SN25,25/03/2024,"-40,000.00"
128262233,Void Properties,HRA Capital Financing,Voids - Central Heating,Capital,Contractor Payments,CANTILLON GROUP LTD,SN25,01/03/2024,"7,395.41"
128262233,Void Properties,HRA Capital Financing,Voids - Kitchens,Capital,Contractor Payments,CANTILLON GROUP LTD,SN25,01/03/2024,"4,502.52"
133376233,Void Repairs,Supervision & Management,Void Property Repairs,3rd Party Payments,Contract Payments,CANTILLON GROUP LTD,SN25,25/03/2024,"14,744.94"
128262233,Void Properties,HRA Capital Financing,"Voids - Fencing, Concreting & Environmental Works",Capital,Contractor Payments,CANTILLON GROUP LTD,SN25,01/03/2024,"3,868.46"
128262233,Void Properties,HRA Capital Financing,Voids - Windows & Ext Doors,Capital,Contractor Payments,CANTILLON GROUP LTD,SN25,01/03/2024,"2,295.35"
134018233,Other Repairs,Repairs,Cyclical Maintenance,Supplies and Services,Testing / Inspection,CANTILLON GROUP LTD,SN25,27/03/2024,236.30
134018233,Other Repairs,Repairs,Cyclical Maintenance,Supplies and Services,Testing / Inspection,CANTILLON GROUP LTD,SN25,27/03/2024,128.15
134018233,Other Repairs,Repairs,Cyclical Maintenance,Supplies and Services,Testing / Inspection,CANTILLON GROUP LTD,SN25,27/03/2024,225.78
134018233,Other Repairs,Repairs,Cyclical Maintenance,Supplies and Services,Testing / Inspection,CANTILLON GROUP LTD,SN25,27/03/2024,176.46
134018233,Other Repairs,Repairs,Cyclical Maintenance,Supplies and Services,Testing / Inspection,CANTILLON GROUP LTD,SN25,27/03/2024,195.31
134018233,Other Repairs,Repairs,Cyclical Maintenance,Supplies and Services,Testing / Inspection,CANTILLON GROUP LTD,SN25,27/03/2024,451.18
134018233,Other Repairs,Repairs,Cyclical Maintenance,Supplies and Services,Testing / Inspection,CANTILLON GROUP LTD,SN25,27/03/2024,136.63
134018233,Other Repairs,Repairs,Cyclical Maintenance,Supplies and Services,Testing / Inspection,CANTILLON GROUP LTD,SN25,27/03/2024,153.09
134018233,Other Repairs,Repairs,Cyclical Maintenance,Supplies and Services,Testing / Inspection,CANTILLON GROUP LTD,SN25,27/03/2024,169.12
134018233,Other Repairs,Repairs,Cyclical Maintenance,Supplies and Services,Testing / Inspection,CANTILLON GROUP LTD,SN25,27/03/2024,216.72
134018233,Other Repairs,Repairs,Cyclical Maintenance,Supplies and Services,Testing / Inspection,CANTILLON GROUP LTD,SN25,27/03/2024,175.36
134018233,Other Repairs,Repairs,Cyclical Maintenance,Supplies and Services,Testing / Inspection,CANTILLON GROUP LTD,SN25,27/03/2024,153.86
134018233,Other Repairs,Repairs,Cyclical Maintenance,Supplies and Services,Testing / Inspection,CANTILLON GROUP LTD,SN25,27/03/2024,276.15
134018233,Other Repairs,Repairs,Cyclical Maintenance,Supplies and Services,Testing / Inspection,CANTILLON GROUP LTD,SN25,27/03/2024,311.77
134077233,Other Repairs,Repairs,Cyclical Maintenance,Supplies and Services,Testing / Inspection,CANTILLON GROUP LTD,SN25,27/03/2024,118.30
131827233,Other Repairs,Repairs,Cyclical Maintenance,Supplies and Services,Testing / Inspection,CANTILLON GROUP LTD,SN25,20/03/2024,"1,652.50"
131827233,Other Repairs,Repairs,Cyclical Maintenance,Supplies and Services,Testing / Inspection,CANTILLON GROUP LTD,SN25,20/03/2024,640.45
131827233,Other Repairs,Repairs,Cyclical Maintenance,Supplies and Services,Testing / Inspection,CANTILLON GROUP LTD,SN25,20/03/2024,"1,147.90"
131827233,Other Repairs,Repairs,Cyclical Maintenance,Supplies and Services,Testing / Inspection,CANTILLON GROUP LTD,SN25,20/03/2024,289.86
131260235,Other Repairs,Repairs,Cyclical Maintenance,Supplies and Services,Testing / Inspection,CANTILLON GROUP LTD,SN25,15/03/2024,353.37
129849233,Other Repairs,Repairs,Cyclical Maintenance,Supplies and Services,Testing / Inspection,CANTILLON GROUP LTD,SN25,08/03/2024,713.11
128803233,Other Repairs,Repairs,Cyclical Maintenance,Supplies and Services,Testing / Inspection,CANTILLON GROUP LTD,SN25,06/03/2024,298.67
128801234,Other Repairs,Repairs,Cyclical Maintenance,Supplies and Services,Testing / Inspection,CANTILLON GROUP LTD,SN25,06/03/2024,"1,584.96"
128801234,Other Repairs,Repairs,Cyclical Maintenance,Supplies and Services,Testing / Inspection,CANTILLON GROUP LTD,SN25,06/03/2024,160.00
128730234,Other Repairs,Repairs,Cyclical Maintenance,Supplies and Services,Testing / Inspection,CANTILLON GROUP LTD,SN25,04/03/2024,147.62
128730234,Other Repairs,Repairs,Cyclical Maintenance,Supplies and Services,Testing / Inspection,CANTILLON GROUP LTD,SN25,04/03/2024,171.45
128730234,Other Repairs,Repairs,Cyclical Maintenance,Supplies and Services,Testing / Inspection,CANTILLON GROUP LTD,SN25,04/03/2024,177.47
128730234,Other Repairs,Repairs,Cyclical Maintenance,Supplies and Services,Testing / Inspection,CANTILLON GROUP LTD,SN25,04/03/2024,359.30
128730234,Other Repairs,Repairs,Cyclical Maintenance,Supplies and Services,Testing / Inspection,CANTILLON GROUP LTD,SN25,04/03/2024,228.98
128730234,Other Repairs,Repairs,Cyclical Maintenance,Supplies and Services,Testing / Inspection,CANTILLON GROUP LTD,SN25,04/03/2024,124.69
128730234,Other Repairs,Repairs,Cyclical Maintenance,Supplies and Services,Testing / Inspection,CANTILLON GROUP LTD,SN25,04/03/2024,257.12
128730234,Other Repairs,Repairs,Cyclical Maintenance,Supplies and Services,Testing / Inspection,CANTILLON GROUP LTD,SN25,04/03/2024,576.99
128730234,Other Repairs,Repairs,Cyclical Maintenance,Supplies and Services,Testing / Inspection,CANTILLON GROUP LTD,SN25,04/03/2024,128.30
128730234,Other Repairs,Repairs,Cyclical Maintenance,Supplies and Services,Testing / Inspection,CANTILLON GROUP LTD,SN25,04/03/2024,261.20
128518233,Other Repairs,Repairs,Cyclical Maintenance,Supplies and Services,Testing / Inspection,CANTILLON GROUP LTD,SN25,01/03/2024,439.04
133376233,Void Properties,HRA Capital Financing,Voids - Central Heating,Capital,Contractor Payments,CANTILLON GROUP LTD,SN25,25/03/2024,"4,620.55"
128262233,Void Properties,HRA Capital Financing,Voids - Bathrooms,Capital,Contractor Payments,CANTILLON GROUP LTD,SN25,01/03/2024,"3,411.84"
128262233,Void Properties,HRA Capital Financing,Voids - Kitchens,Capital,Contractor Payments,CANTILLON GROUP LTD,SN25,01/03/2024,"5,279.79"
133376233,Void Properties,HRA Capital Financing,"Voids - Fencing, Concreting & Environmental Works",Capital,Contractor Payments,CANTILLON GROUP LTD,SN25,25/03/2024,"7,304.83"
133376233,Planned Maintenance Programme,HRA Capital Financing,Kitchens,Capital,Contractor Payments,CANTILLON GROUP LTD,SN25,25/03/2024,"7,232.80"
128262233,Void Properties,HRA Capital Financing,Voids - Bathrooms,Capital,Contractor Payments,CANTILLON GROUP LTD,SN25,01/03/2024,"2,400.86"
133376233,Void Repairs,Supervision & Management,Void Property Repairs,3rd Party Payments,Contract Payments,CANTILLON GROUP LTD,SN25,25/03/2024,"10,754.61"
133376233,Void Repairs,Supervision & Management,Void Property Repairs,3rd Party Payments,Contract Payments,CANTILLON GROUP LTD,SN25,25/03/2024,56.99
133376233,Void Repairs,Supervision & Management,Void Property Repairs,3rd Party Payments,Contract Payments,CANTILLON GROUP LTD,SN25,25/03/2024,"4,219.65"
128262233,Void Repairs,Supervision & Management,Void Property Repairs,3rd Party Payments,Contract Payments,CANTILLON GROUP LTD,SN25,01/03/2024,770.00
128262233,Void Repairs,Supervision & Management,Void Property Repairs,3rd Party Payments,Contract Payments,CANTILLON GROUP LTD,SN25,01/03/2024,98.56
133376233,Void Properties,HRA Capital Financing,"Voids - Fencing, Concreting & Environmental Works",Capital,Contractor Payments,CANTILLON GROUP LTD,SN25,25/03/2024,"2,270.77"
128262233,Void Properties,HRA Capital Financing,"Voids - Fencing, Concreting & Environmental Works",Capital,Contractor Payments,CANTILLON GROUP LTD,SN25,01/03/2024,"50,000.00"
128262233,Void Properties,HRA Capital Financing,"Voids - Fencing, Concreting & Environmental Works",Capital,Contractor Payments,CANTILLON GROUP LTD,SN25,01/03/2024,935.00
134018233,Other Repairs,Repairs,Cyclical Maintenance,Supplies and Services,Testing / Inspection,CANTILLON GROUP LTD,SN25,27/03/2024,897.18
134018233,Other Repairs,Repairs,Cyclical Maintenance,Supplies and Services,Testing / Inspection,CANTILLON GROUP LTD,SN25,27/03/2024,183.86
134018233,Other Repairs,Repairs,Cyclical Maintenance,Supplies and Services,Testing / Inspection,CANTILLON GROUP LTD,SN25,27/03/2024,108.69
134018233,Other Repairs,Repairs,Cyclical Maintenance,Supplies and Services,Testing / Inspection,CANTILLON GROUP LTD,SN25,27/03/2024,135.30
134077233,Other Repairs,Repairs,Cyclical Maintenance,Supplies and Services,Testing / Inspection,CANTILLON GROUP LTD,SN25,27/03/2024,107.77
134077233,Other Repairs,Repairs,Cyclical Maintenance,Supplies and Services,Testing / Inspection,CANTILLON GROUP LTD,SN25,27/03/2024,"1,834.10"
131827233,Other Repairs,Repairs,Cyclical Maintenance,Supplies and Services,Testing / Inspection,CANTILLON GROUP LTD,SN25,20/03/2024,"1,633.81"
131827233,Other Repairs,Repairs,Cyclical Maintenance,Supplies and Services,Testing / Inspection,CANTILLON GROUP LTD,SN25,20/03/2024,856.16
131827233,Other Repairs,Repairs,Cyclical Maintenance,Supplies and Services,Testing / Inspection,CANTILLON GROUP LTD,SN25,20/03/2024,"1,668.31"
131260235,Other Repairs,Repairs,Cyclical Maintenance,Supplies and Services,Testing / Inspection,CANTILLON GROUP LTD,SN25,15/03/2024,127.55
131260235,Other Repairs,Repairs,Cyclical Maintenance,Supplies and Services,Testing / Inspection,CANTILLON GROUP LTD,SN25,15/03/2024,125.08
131260235,Other Repairs,Repairs,Cyclical Maintenance,Supplies and Services,Testing / Inspection,CANTILLON GROUP LTD,SN25,15/03/2024,"1,097.93"
129847233,Other Repairs,Repairs,Cyclical Maintenance,Supplies and Services,Testing / Inspection,CANTILLON GROUP LTD,SN25,08/03/2024,713.11
128803233,Other Repairs,Repairs,Cyclical Maintenance,Supplies and Services,Testing / Inspection,CANTILLON GROUP LTD,SN25,06/03/2024,968.48
128803233,Other Repairs,Repairs,Cyclical Maintenance,Supplies and Services,Testing / Inspection,CANTILLON GROUP LTD,SN25,06/03/2024,551.09
128803233,Other Repairs,Repairs,Cyclical Maintenance,Supplies and Services,Testing / Inspection,CANTILLON GROUP LTD,SN25,06/03/2024,"1,714.10"
128730234,Other Repairs,Repairs,Cyclical Maintenance,Supplies and Services,Testing / Inspection,CANTILLON GROUP LTD,SN25,04/03/2024,"5,474.60"
128730234,Other Repairs,Repairs,Cyclical Maintenance,Supplies and Services,Testing / Inspection,CANTILLON GROUP LTD,SN25,04/03/2024,132.64
128730234,Other Repairs,Repairs,Cyclical Maintenance,Supplies and Services,Testing / Inspection,CANTILLON GROUP LTD,SN25,04/03/2024,"1,303.16"
130763233,Business Development,Supervision & Management,ICT & Administration,Supplies and Services,Equipment,CAPITA BUSINESS SERVICES LTD,DL1 ,13/03/2024,650.00
129328233,Digital & Business Change,Digital & Business Change,IT Operations,3rd Party Payments,Strategic Partnership Service Charges,CAPITA BUSINESS SERVICES LTD,DL1 ,08/03/2024,"14,240.82"
131844234,Treasury,Corporate Finance,Barnfield Solar Scheme,Supplies and Services,Bank Charges,CARD PROCESSING ADVISORY SERVICES LTD (CPRAS),W1W ,20/03/2024,"1,362.75"
132280233,Treasury,Corporate Finance,Treasury,Supplies and Services,Bank Charges,CARD PROCESSING ADVISORY SERVICES LTD (CPRAS),W1W ,20/03/2024,"1,146.51"
128296233,Disabled Children,Children & Families,ICES Paediatric,Supplies and Services,Equipment,CARE AND INDEPENDENCE LTD,OX26,01/03/2024,706.70
128297233,Disabled Children,Children & Families,ICES Paediatric,Supplies and Services,Equipment,CARE AND INDEPENDENCE LTD,OX26,01/03/2024,"1,004.40"
130285233,Human Resources and Organisational Development,"People, Culture and Organisational Resilience",HR Operations,Employees,Employee Related Schemes,CARE FIRST,GL3 ,13/03/2024,"3,063.57"
131221233,Learning Disabilities,Adults,Learning Disability 18 - 64,3rd Party Payments,Supported Lodgings (Childrens)/Supported Living (Adults),CAREFORYOU LTD,N13 ,15/03/2024,"2,441.00"
133965233,Social Care,Children & Families,Placements - Positive Futures,3rd Party Payments,Semi Independent,CARING FOR COMMUNITIES AND PEOPLE (CCP),GL50,27/03/2024,"2,410.00"
128780238,Social Care,Children & Families,Placements - Positive Futures,3rd Party Payments,Semi Independent,CARING FOR COMMUNITIES AND PEOPLE (CCP),GL50,04/03/2024,765.00
128780240,Social Care,Children & Families,Unaccompanied Asylum Seeking Children (UASC),3rd Party Payments,Semi Independent,CARING FOR COMMUNITIES AND PEOPLE (CCP),GL50,04/03/2024,"20,462.00"
131451233,Social Care,Children & Families,Unaccompanied Asylum Seeking Children (UASC),3rd Party Payments,Semi Independent,CARING FOR COMMUNITIES AND PEOPLE (CCP),GL50,18/03/2024,"3,410.33"
130195233,Disabled Children,Children & Families,DCT Daytime Short Breaks,3rd Party Payments,Respite Care,CARING FOR COMMUNITIES AND PEOPLE (CCP),GL50,11/03/2024,529.75
131451233,Social Care,Children & Families,Unaccompanied Asylum Seeking Children (UASC),3rd Party Payments,Semi Independent,CARING FOR COMMUNITIES AND PEOPLE (CCP),GL50,18/03/2024,"3,410.33"
131451233,Social Care,Children & Families,Unaccompanied Asylum Seeking Children (UASC),3rd Party Payments,Semi Independent,CARING FOR COMMUNITIES AND PEOPLE (CCP),GL50,18/03/2024,"3,410.33"
128780239,Social Care,Children & Families,Unaccompanied Asylum Seeking Children (UASC),3rd Party Payments,Semi Independent,CARING FOR COMMUNITIES AND PEOPLE (CCP),GL50,04/03/2024,"20,462.00"
131451233,Social Care,Children & Families,Unaccompanied Asylum Seeking Children (UASC),3rd Party Payments,Semi Independent,CARING FOR COMMUNITIES AND PEOPLE (CCP),GL50,18/03/2024,"3,410.33"
132564234,Social Care,Children & Families,Placements - Positive Futures,3rd Party Payments,Semi Independent,CARING FOR COMMUNITIES AND PEOPLE (CCP),GL50,25/03/2024,"3,490.00"
131451233,Social Care,Children & Families,Placements - Positive Futures,3rd Party Payments,Semi Independent,CARING FOR COMMUNITIES AND PEOPLE (CCP),GL50,18/03/2024,"3,410.35"
132564233,Social Care,Children & Families,Placements - Positive Futures,3rd Party Payments,Semi Independent,CARING FOR COMMUNITIES AND PEOPLE (CCP),GL50,25/03/2024,"2,410.00"
131451233,Social Care,Children & Families,Unaccompanied Asylum Seeking Children (UASC),3rd Party Payments,Semi Independent,CARING FOR COMMUNITIES AND PEOPLE (CCP),GL50,18/03/2024,"3,410.33"
132111233,Physical Support,Adults,Physical Support 18 - 64,3rd Party Payments,Personal Budget - Domiciliary care,CARING HEART CARERS LIMITED,SN25,20/03/2024,-92.16
132111233,Physical Support,Adults,Physical Support 65 and over,3rd Party Payments,Personal Budget - Domiciliary care,CARING HEART CARERS LIMITED,SN25,20/03/2024,"1,244.16"
132111233,Physical Support,Adults,Physical Support 65 and over,3rd Party Payments,Personal Budget - Domiciliary care,CARING HEART CARERS LIMITED,SN25,20/03/2024,-184.32
132111233,Physical Support,Adults,Physical Support 18 - 64,3rd Party Payments,Personal Budget - Domiciliary care,CARING HEART CARERS LIMITED,SN25,20/03/2024,"1,290.24"
131258281,Learning Disabilities,Adults,Learning Disability 18 - 64,Transfer Payments,Personal Budget - Direct Payments - Domiciliary Care,REDACTED PERSONAL DATA,SN2 ,15/03/2024,179.76
131258281,Learning Disabilities,Adults,Learning Disability 18 - 64,Transfer Payments,Personal Budget - Direct Payments - Domiciliary Care,REDACTED PERSONAL DATA,SN2 ,15/03/2024,341.88
131258281,Learning Disabilities,Adults,Learning Disability 18 - 64,Income,Client Contribution - Personal Budget - DP,REDACTED PERSONAL DATA,SN2 ,15/03/2024,-2.54
131258281,Learning Disabilities,Adults,Learning Disability 18 - 64,Income,Client Contribution - Personal Budget - DP,REDACTED PERSONAL DATA,SN2 ,15/03/2024,-1.24
131258281,Learning Disabilities,Adults,Learning Disability 18 - 64,Transfer Payments,Personal Budget - Direct Payments - Domiciliary Care,REDACTED PERSONAL DATA,SN2 ,15/03/2024,368.08
131258281,Learning Disabilities,Adults,Learning Disability 18 - 64,Transfer Payments,Personal Budget - Direct Payments - Domiciliary Care,REDACTED PERSONAL DATA,SN2 ,15/03/2024,325.60
131258281,Learning Disabilities,Adults,Learning Disability 18 - 64,Income,Client Contribution - Personal Budget - DP,REDACTED PERSONAL DATA,SN2 ,15/03/2024,-2.36
131258281,Learning Disabilities,Adults,Learning Disability 18 - 64,Income,Client Contribution - Personal Budget - DP,REDACTED PERSONAL DATA,SN2 ,15/03/2024,-2.26
131263237,High Needs Block,Dedicated Schools Grant (DSG),SEN Resourcing Assessment Panel,Supplies and Services,Services,REDACTED PERSONAL DATA,SN3 ,15/03/2024,"1,079.20"
131263239,High Needs Block,Dedicated Schools Grant (DSG),SEN Resourcing Assessment Panel,Supplies and Services,Services,REDACTED PERSONAL DATA,SN3 ,15/03/2024,"1,557.82"
131258363,Learning Disabilities,Adults,Learning Disability 18 - 64,Income,Client Contribution - Personal Budget - DP,REDACTED PERSONAL DATA,SN2 ,15/03/2024,-1.88
131258363,Learning Disabilities,Adults,Learning Disability 18 - 64,Transfer Payments,Personal Budget - Direct Payments - Other,REDACTED PERSONAL DATA,SN2 ,15/03/2024,71.10
131258363,Learning Disabilities,Adults,Learning Disability 18 - 64,Transfer Payments,Personal Budget - Direct Payments - Other,REDACTED PERSONAL DATA,SN2 ,15/03/2024,48.00
131258363,Learning Disabilities,Adults,Learning Disability 18 - 64,Transfer Payments,Personal Budget - Direct Payments - Other,REDACTED PERSONAL DATA,SN2 ,15/03/2024,202.86
131258363,Learning Disabilities,Adults,Learning Disability 18 - 64,Transfer Payments,Personal Budget - Direct Payments - Other,REDACTED PERSONAL DATA,SN2 ,15/03/2024,59.40
131258363,Learning Disabilities,Adults,Learning Disability 18 - 64,Income,Client Contribution - Personal Budget - DP,REDACTED PERSONAL DATA,SN2 ,15/03/2024,-2.84
131258363,Learning Disabilities,Adults,Learning Disability 18 - 64,Income,Client Contribution - Personal Budget - DP,REDACTED PERSONAL DATA,SN2 ,15/03/2024,-0.42
131258363,Learning Disabilities,Adults,Learning Disability 18 - 64,Transfer Payments,Personal Budget - Direct Payments - Other,REDACTED PERSONAL DATA,SN2 ,15/03/2024,202.88
131258363,Learning Disabilities,Adults,Learning Disability 18 - 64,Income,Client Contribution - Personal Budget - DP,REDACTED PERSONAL DATA,SN2 ,15/03/2024,-0.32
131258363,Learning Disabilities,Adults,Learning Disability 18 - 64,Transfer Payments,Personal Budget - Direct Payments - Other,REDACTED PERSONAL DATA,SN2 ,15/03/2024,205.40
131258363,Learning Disabilities,Adults,Learning Disability 18 - 64,Transfer Payments,Personal Budget - Direct Payments - Other,REDACTED PERSONAL DATA,SN2 ,15/03/2024,47.40
131258363,Learning Disabilities,Adults,Learning Disability 18 - 64,Income,Client Contribution - Personal Budget - DP,REDACTED PERSONAL DATA,SN2 ,15/03/2024,-2.50
131258363,Learning Disabilities,Adults,Learning Disability 18 - 64,Transfer Payments,Personal Budget - Direct Payments - Other,REDACTED PERSONAL DATA,SN2 ,15/03/2024,30.08
131258363,Learning Disabilities,Adults,Learning Disability 18 - 64,Income,Client Contribution - Personal Budget - DP,REDACTED PERSONAL DATA,SN2 ,15/03/2024,-0.66
131258363,Learning Disabilities,Adults,Learning Disability 18 - 64,Income,Client Contribution - Personal Budget - DP,REDACTED PERSONAL DATA,SN2 ,15/03/2024,-1.04
131258363,Learning Disabilities,Adults,Learning Disability 18 - 64,Income,Client Contribution - Personal Budget - DP,REDACTED PERSONAL DATA,SN2 ,15/03/2024,-9.74
131258363,Learning Disabilities,Adults,Learning Disability 18 - 64,Transfer Payments,Personal Budget - Direct Payments - Other,REDACTED PERSONAL DATA,SN2 ,15/03/2024,75.60
131258363,Learning Disabilities,Adults,Learning Disability 18 - 64,Income,Client Contribution - Personal Budget - DP,REDACTED PERSONAL DATA,SN2 ,15/03/2024,-0.82
131258363,Learning Disabilities,Adults,Learning Disability 18 - 64,Transfer Payments,Personal Budget - Direct Payments - Other,REDACTED PERSONAL DATA,SN2 ,15/03/2024,135.24
131258363,Learning Disabilities,Adults,Learning Disability 18 - 64,Transfer Payments,Personal Budget - Direct Payments - Other,REDACTED PERSONAL DATA,SN2 ,15/03/2024,180.48
131258363,Learning Disabilities,Adults,Learning Disability 18 - 64,Transfer Payments,Personal Budget - Direct Payments - Other,REDACTED PERSONAL DATA,SN2 ,15/03/2024,78.96
131258363,Learning Disabilities,Adults,Learning Disability 18 - 64,Transfer Payments,Personal Budget - Direct Payments - Domiciliary Care,REDACTED PERSONAL DATA,SN2 ,15/03/2024,704.25
131258363,Learning Disabilities,Adults,Learning Disability 18 - 64,Transfer Payments,Personal Budget - Direct Payments - Other,REDACTED PERSONAL DATA,SN2 ,15/03/2024,22.54
131258363,Learning Disabilities,Adults,Learning Disability 18 - 64,Income,Client Contribution - Personal Budget - DP,REDACTED PERSONAL DATA,SN2 ,15/03/2024,-2.82
131258363,Learning Disabilities,Adults,Learning Disability 18 - 64,Income,Client Contribution - Personal Budget - DP,REDACTED PERSONAL DATA,SN2 ,15/03/2024,-1.10
131258363,Learning Disabilities,Adults,Learning Disability 18 - 64,Income,Client Contribution - Personal Budget - DP,REDACTED PERSONAL DATA,SN2 ,15/03/2024,-0.98
130190250,Social Care,Children & Families,Placement Fostering Service,3rd Party Payments,Carers Skills Payments - Advanced,REDACTED PERSONAL DATA,SN2 ,11/03/2024,370.00
133343233,Social Care,Children & Families,Placement Fostering Service,3rd Party Payments,Foster Care Basic Payments,REDACTED PERSONAL DATA,SN2 ,25/03/2024,600.00
133343233,Social Care,Children & Families,Placement Fostering Service,3rd Party Payments,Carers Skills Payments - Advanced,REDACTED PERSONAL DATA,SN2 ,25/03/2024,370.00
130190250,Social Care,Children & Families,Placement Fostering Service,3rd Party Payments,Foster Care Basic Payments,REDACTED PERSONAL DATA,SN2 ,11/03/2024,600.00
130609239,Responsive Repairs,Repairs,Responsive Repairs,3rd Party Payments,Contract Payments,CARPET WAREHOUSE SWINDON LTD,SN2 ,13/03/2024,"1,010.23"
130609240,Responsive Repairs,Repairs,Responsive Repairs,3rd Party Payments,Contract Payments,CARPET WAREHOUSE SWINDON LTD,SN2 ,13/03/2024,"1,498.15"
128184233,Responsive Repairs,Repairs,Responsive Repairs,3rd Party Payments,Contract Payments,CARPET WAREHOUSE SWINDON LTD,SN2 ,01/03/2024,"1,172.67"
132336233,Responsive Repairs,Repairs,Responsive Repairs,3rd Party Payments,Contract Payments,CARPET WAREHOUSE SWINDON LTD,SN2 ,20/03/2024,967.76
130609240,Responsive Repairs,Repairs,Responsive Repairs,3rd Party Payments,Contract Payments,CARPET WAREHOUSE SWINDON LTD,SN2 ,13/03/2024,926.50
132336233,Responsive Repairs,Repairs,Responsive Repairs,3rd Party Payments,Contract Payments,CARPET WAREHOUSE SWINDON LTD,SN2 ,20/03/2024,907.87
130609240,Responsive Repairs,Repairs,Responsive Repairs,3rd Party Payments,Contract Payments,CARPET WAREHOUSE SWINDON LTD,SN2 ,13/03/2024,"1,171.00"
130609240,Responsive Repairs,Repairs,Responsive Repairs,3rd Party Payments,Contract Payments,CARPET WAREHOUSE SWINDON LTD,SN2 ,13/03/2024,866.88
130609240,Responsive Repairs,Repairs,Responsive Repairs,3rd Party Payments,Contract Payments,CARPET WAREHOUSE SWINDON LTD,SN2 ,13/03/2024,855.00
130609240,Responsive Repairs,Repairs,Responsive Repairs,3rd Party Payments,Contract Payments,CARPET WAREHOUSE SWINDON LTD,SN2 ,13/03/2024,682.07
130609240,Responsive Repairs,Repairs,Responsive Repairs,3rd Party Payments,Contract Payments,CARPET WAREHOUSE SWINDON LTD,SN2 ,13/03/2024,"1,429.99"
130609240,Responsive Repairs,Repairs,Responsive Repairs,3rd Party Payments,Contract Payments,CARPET WAREHOUSE SWINDON LTD,SN2 ,13/03/2024,"1,274.35"
130609240,Responsive Repairs,Repairs,Responsive Repairs,3rd Party Payments,Contract Payments,CARPET WAREHOUSE SWINDON LTD,SN2 ,13/03/2024,"1,689.30"
128728234,Other Repairs,Repairs,Unallocated job costs from OPEN system,Premises Costs,Maintenance - Buildings,CARTER PUMPS LTD,SN10,04/03/2024,"1,090.00"
131258391,Learning Disabilities,Adults,Learning Disability 18 - 64,Income,Client Contribution - Personal Budget - DP,REDACTED PERSONAL DATA,SN6 ,15/03/2024,-9.40
131258391,Learning Disabilities,Adults,Learning Disability 18 - 64,Transfer Payments,Personal Budget - Direct Payments - Other,REDACTED PERSONAL DATA,SN6 ,15/03/2024,99.16
131258391,Learning Disabilities,Adults,Learning Disability 18 - 64,Income,Client Contribution - Personal Budget - DP,REDACTED PERSONAL DATA,SN6 ,15/03/2024,-6.04
131258391,Learning Disabilities,Adults,Learning Disability 18 - 64,Income,Client Contribution - Personal Budget - DP,REDACTED PERSONAL DATA,SN6 ,15/03/2024,-11.48
131258391,Learning Disabilities,Adults,Learning Disability 18 - 64,Transfer Payments,Personal Budget - Direct Payments - Domiciliary Care,REDACTED PERSONAL DATA,SN6 ,15/03/2024,90.18
131258391,Learning Disabilities,Adults,Learning Disability 18 - 64,Transfer Payments,Personal Budget - Direct Payments - Domiciliary Care,REDACTED PERSONAL DATA,SN6 ,15/03/2024,102.72
131258391,Learning Disabilities,Adults,Learning Disability 18 - 64,Transfer Payments,Personal Budget - Direct Payments - Other,REDACTED PERSONAL DATA,SN6 ,15/03/2024,73.80
131258391,Learning Disabilities,Adults,Learning Disability 18 - 64,Transfer Payments,Personal Budget - Direct Payments - Other,REDACTED PERSONAL DATA,SN6 ,15/03/2024,47.40
131258391,Learning Disabilities,Adults,Learning Disability 18 - 64,Income,Client Contribution - Personal Budget - DP,REDACTED PERSONAL DATA,SN6 ,15/03/2024,-12.64
131258391,Learning Disabilities,Adults,Learning Disability 18 - 64,Income,Client Contribution - Personal Budget - DP,REDACTED PERSONAL DATA,SN6 ,15/03/2024,-13.08
131258391,Learning Disabilities,Adults,Learning Disability 18 - 64,Transfer Payments,Personal Budget - Direct Payments - Other,REDACTED PERSONAL DATA,SN6 ,15/03/2024,75.20
131258391,Learning Disabilities,Adults,Learning Disability 18 - 64,Income,Client Contribution - Personal Budget - DP,REDACTED PERSONAL DATA,SN6 ,15/03/2024,-9.58
131410233,Traded Services,"Education, Inclusion and Skills",Plas Pencelli Outdoor Education Centre,Supplies and Services,Materials,CASTELL HOWELL FOODS LIMITED,SA14,15/03/2024,203.67
129368233,Traded Services,"Education, Inclusion and Skills",Plas Pencelli Outdoor Education Centre,Supplies and Services,Materials,CASTELL HOWELL FOODS LIMITED,SA14,08/03/2024,694.79
131596234,Traded Services,"Education, Inclusion and Skills",Plas Pencelli Outdoor Education Centre,Supplies and Services,Materials,CASTELL HOWELL FOODS LIMITED,SA14,18/03/2024,430.45
131596234,Traded Services,"Education, Inclusion and Skills",Plas Pencelli Outdoor Education Centre,Supplies and Services,Materials,CASTELL HOWELL FOODS LIMITED,SA14,18/03/2024,822.53
129373233,Traded Services,"Education, Inclusion and Skills",Plas Pencelli Outdoor Education Centre,Supplies and Services,Materials,CASTELL HOWELL FOODS LIMITED,SA14,08/03/2024,265.69
129678233,Traded Services,"Education, Inclusion and Skills",Plas Pencelli Outdoor Education Centre,Supplies and Services,Materials,CASTELL HOWELL FOODS LIMITED,SA14,08/03/2024,697.32
133210233,Traded Services,"Education, Inclusion and Skills",Plas Pencelli Outdoor Education Centre,Supplies and Services,Materials,CASTELL HOWELL FOODS LIMITED,SA14,22/03/2024,586.73
131410233,Traded Services,"Education, Inclusion and Skills",Plas Pencelli Outdoor Education Centre,Supplies and Services,Materials,CASTELL HOWELL FOODS LIMITED,SA14,15/03/2024,429.96
133210233,Traded Services,"Education, Inclusion and Skills",Plas Pencelli Outdoor Education Centre,Supplies and Services,Materials,CASTELL HOWELL FOODS LIMITED,SA14,22/03/2024,105.08
129368233,Traded Services,"Education, Inclusion and Skills",Plas Pencelli Outdoor Education Centre,Supplies and Services,Materials,CASTELL HOWELL FOODS LIMITED,SA14,08/03/2024,314.27
129678233,Traded Services,"Education, Inclusion and Skills",Plas Pencelli Outdoor Education Centre,Supplies and Services,Materials,CASTELL HOWELL FOODS LIMITED,SA14,08/03/2024,190.51
129373233,Traded Services,"Education, Inclusion and Skills",Plas Pencelli Outdoor Education Centre,Supplies and Services,Materials,CASTELL HOWELL FOODS LIMITED,SA14,08/03/2024,"1,831.06"
133617233,,,Balance Sheet,Balance Sheet & Recharge,Water invoices,CASTLE WATER LTD,PH10,25/03/2024,399.00
133617233,,,Balance Sheet,Balance Sheet & Recharge,Water invoices,CASTLE WATER LTD,PH10,25/03/2024,558.13
128961236,Social Care,Children & Families,Positive Futures,Supplies and Services,Subscriptions,CATCH22,TN16,06/03/2024,"3,595.00"
131207240,Learning Disabilities,Adults,Learning Disability 18 - 64,3rd Party Payments,Supported Lodgings (Childrens)/Supported Living (Adults),CATHEDRAL HOMES,GL1 ,15/03/2024,337.50
131207240,Learning Disabilities,Adults,Learning Disability 18 - 64,3rd Party Payments,Supported Lodgings (Childrens)/Supported Living (Adults),CATHEDRAL HOMES,GL1 ,15/03/2024,"2,231.26"
131207240,Learning Disabilities,Adults,Learning Disability 18 - 64,Income,Client Contribution - Supported Living,CATHEDRAL HOMES,GL1 ,15/03/2024,-59.20
131207240,Learning Disabilities,Adults,Learning Disability 18 - 64,Income,Client Contribution - Supported Living,CATHEDRAL HOMES,GL1 ,15/03/2024,-22.64
131207240,Learning Disabilities,Adults,Learning Disability 18 - 64,3rd Party Payments,Supported Lodgings (Childrens)/Supported Living (Adults),CATHEDRAL HOMES,GL1 ,15/03/2024,853.14
131207240,Learning Disabilities,Adults,Learning Disability 18 - 64,3rd Party Payments,Supported Lodgings (Childrens)/Supported Living (Adults),CATHEDRAL HOMES,GL1 ,15/03/2024,"1,162.50"
131207240,Learning Disabilities,Adults,Learning Disability 18 - 64,3rd Party Payments,Supported Lodgings (Childrens)/Supported Living (Adults),CATHEDRAL HOMES,GL1 ,15/03/2024,"1,612.50"
131207240,Learning Disabilities,Adults,Learning Disability 18 - 64,Income,Client Contribution - Supported Living,CATHEDRAL HOMES,GL1 ,15/03/2024,-8.96
131381233,Museums & Heritage,Culture & Heritage,Steam:Operations,3rd Party Payments,Contract Payments,CATHEDRAL LEASING LIMITED,B77 ,15/03/2024,"1,089.48"
131043238,Learning Disabilities,Adults,Learning Disability 18 - 64,3rd Party Payments,Supported Accommodation Scheme,REDACTED PERSONAL DATA,SN6 ,20/03/2024,"2,850.00"
131043238,Learning Disabilities,Adults,Learning Disability 18 - 64,3rd Party Payments,Supported Accommodation Scheme,REDACTED PERSONAL DATA,SN6 ,20/03/2024,"1,850.00"
130694233,Legal Services,Legal and Democracy,Committees,Supplies and Services,Services,REDACTED PERSONAL DATA,CF36,13/03/2024,850.00
132103233,Mental Health,Adults,Mental Health 65 and over,3rd Party Payments,Personal Budget - Domiciliary care,CELTIC CARE SERVICES LTD,SN15,20/03/2024,-11.52
132103233,Mental Health,Adults,Mental Health 65 and over,3rd Party Payments,Personal Budget - Domiciliary care,CELTIC CARE SERVICES LTD,SN15,20/03/2024,656.64
